Workbook

Sheet Running Totals

Sheet Donation Averages

Sheet Income Source Analytics

Sheet Donations by Class
A41: Row Labels | B41: Count of donate_id | C41: Sum of donate_amount | D41: Average of donate_amount2
A42: 1926 | B42: 2 | C42: 88 | D42: 44
A43: 1946 | B43: 4 | C43: 425 | D43: 106.25
A44: 1948 | B44: 4 | C44: 280 | D44: 70
A45: 1949 | B45: 3 | C45: 1240 | D45: 413.3333333
A46: 1951 | B46: 8 | C46: 752 | D46: 94
A47: 1954 | B47: 1 | C47: 200 | D47: 200
A48: 1955 | B48: 25 | C48: 3320 | D48: 132.8
A49: 1956 | B49: 19 | C49: 671 | D49: 35.31578947
A50: 1957 | B50: 18 | C50: 1495 | D50: 83.05555556
A51: 1958 | B51: 41 | C51: 2969.58 | D51: 72.42878049
A52: 1959 | B52: 12 | C52: 530 | D52: 44.16666667
A53: 1960 | B53: 9 | C53: 625 | D53: 69.44444444
A54: 1961 | B54: 1 | C54: 25 | D54: 25
A55: 1962 | B55: 2 | C55: 300 | D55: 150
A56: 1963 | B56: 29 | C56: 2224.71 | D56: 76.71413793
A57: 1964 | B57: 78 | C57: 5779.64 | D57: 74.09794872
A58: 1965 | B58: 18 | C58: 1145 | D58: 63.61111111
A59: 1966 | B59: 58 | C59: 4085.66 | D59: 70.44241379
A60: 1967 | B60: 12 | C60: 945 | D60: 78.75
A61: 1968 | B61: 35 | C61: 1955 | D61: 55.85714286
A62: 1969 | B62: 37 | C62: 4395.47 | D62: 118.7964865
A63: 1970 | B63: 1 | C63: 30 | D63: 30
A64: 1971 | B64: 1 | C64: 100 | D64: 100
A65: 1972 | B65: 1 | C65: 100 | D65: 100
A66: 1973 | B66: 4 | C66: 250 | D66: 62.5
A67: 1975 | B67: 34 | C67: 1791 | D67: 52.67647059
A68: 1976 | B68: 1 | C68: 25 | D68: 25
A69: 1977 | B69: 67 | C69: 4109.49 | D69: 61.33567164
A70: 1978 | B70: 36 | C70: 2103 | D70: 58.41666667
A71: 1979 | B71: 31 | C71: 1642.59 | D71: 52.98677419
A72: 1980 | B72: 18 | C72: 1070 | D72: 59.44444444
A73: 1981 | B73: 7 | C73: 85 | D73: 12.14285714
A74: 1982 | B74: 1 | C74: 25 | D74: 25
A75: 1985 | B75: 1 | C75: 85 | D75: 85
A76: 1986 | B76: 8 | C76: 210 | D76: 26.25
A77: 1987 | B77: 4 | C77: 199.23 | D77: 49.8075
A78: 1988 | B78: 1 | C78: 25 | D78: 25
A79: 1989 | B79: 10 | C79: 1444.78 | D79: 144.478
A80: 1992 | B80: 5 | C80: 725 | D80: 145
A81: 1995 | B81: 2 | C81: 62 | D81: 31
A82: 1996 | B82: 5 | C82: 190 | D82: 38
A83: 1997 | B83: 1 | C83: 19.97 | D83: 19.97
A84: 1998 | B84: 1 | C84: 100 | D84: 100
A85: 2001 | B85: 2 | C85: 200 | D85: 100
A86: 2002 | B86: 1 | C86: 50 | D86: 50
A87: 2003 | B87: 2 | C87: 50 | D87: 25
A88: 2004 | B88: 1 | C88: 20.04 | D88: 20.04
A89: 2005 | B89: 7 | C89: 225 | D89: 32.14285714
A90: 2006 | B90: 2 | C90: 75 | D90: 37.5
A91: 2007 | B91: 13 | C91: 410 | D91: 31.53846154
A92: 2008 | B92: 2 | C92: 240 | D92: 120
A93: 2009 | B93: 8 | C93: 155.54 | D93: 19.4425
A94: 2010 | B94: 4 | C94: 600 | D94: 150
A95: 2011 | B95: 3 | C95: 225 | D95: 75
A96: 2012 | B96: 6 | C96: 450 | D96: 75
A97: 2013 | B97: 2 | C97: 85 | D97: 42.5
A98: 2014 | B98: 2 | C98: 200 | D98: 100
A99: 2015 | B99: 31 | C99: 871.14 | D99: 28.10129032
A100: 2016 | B100: 10 | C100: 190 | D100: 19
A101: 2018 | B101: 1 | C101: 25 | D101: 25
A102: 2019 | B102: 6 | C102: 90 | D102: 15
A103: 2020 | B103: 2 | C103: 50 | D103: 25
A104: (blank) | B104: 12 | C104: 933.73 | D104: 77.81083333
A105: Grand Total | B105: 773 | C105: 52988.57 | D105: 68.54924968

Sheet Fund Drive Budget History
A1: 8 | B1: Fall 2000 | C1: 68617
A2: 9 | B2: Spring 2001 | C2: 102827
A3: 10 | B3: Fall 2001 | C3: 95623
A4: 11 | B4: Spring 2002 | C4: 111701
A5: 12 | B5: Fall 2002 | C5: 106844
A6: 13 | B6: Spring 2003 | C6: 102871
A7: 14 | B7: Fall 2003 | C7: 98477
A8: 15 | B8: Spring 2004 | C8: 108900
A9: 16 | B9: Fall 2004 | C9: 113124
A10: 17 | B10: Spring 2005 | C10: 118619
A11: 18 | B11: Fall 2005 | C11: 111051
A12: 19 | B12: Spring 2006 | C12: 113413
A13: 20 | B13: Fall 2006 | C13: 95079
A14: 21 | B14: Spring 2007 | C14: 103994
A15: 22 | B15: Fall 2007 | C15: 116556
A16: 23 | B16: Spring 2008 | C16: 107504
A17: 24 | B17: Fall 2008 | C17: 108019
A18: 25 | B18: Spring 2009 | C18: 113444
A19: 26 | B19: Fall 2009 | C19: 109229
A20: 27 | B20: Spring 2010 | C20: 98094
A21: 28 | B21: Fall 2010 | C21: 96500
A22: 29 | B22: Spring 2011 | C22: 104010
A23: 30 | B23: Fall 2011 | C23: 98593
A24: 31 | B24: Spring 2012 | C24: 104884
A25: 32 | B25: Fall 2012 | C25: 117343
A26: 33 | B26: Spring 2013 | C26: 104622
A27: 34 | B27: Fall 2013 | C27: 97167
A28: 35 | B28: Spring 2014 | C28: 99462
A29: 36 | B29: Fall 2014 | C29: 98667
A30: 37 | B30: Spring 2015 | C30: 101357
A31: 38 | B31: Fall 2015 | C31: 99590
A32: 39 | B32: Spring 2016 | C32: 89448
A33: 40 | B33: Fall 2016 | C33: 95352
A34: 41 | B34: Spring 2017 | C34: 96226
A35: 42 | B35: Fall 2017 | C35: 92344
A36: 43 | B36: Spring 2018 | C36: 96226
A37: 44 | B37: Fall 2018 | C37: 74104
A38: 45 | B38: Spring 2019 | C38: 74493
A39: 46 | B39: Fall 2019 | C39: 75511.82
A40: 47 | B40: Spring 2020 | C40: 65854
A41: 48 | B41: Fall 2020 | C41: 45171.65
A42: 49 | B42: Spring 2021 | C42: 59014
A43: 50 | B43: Fall 2021 | C43: 59014

Sheet Tables
A1: FD49 | AP1: FD 48 | CE1: FD 47 | DT1: FD 46 | FI1: FD 45
A2: Day | B2: Date | C2: Goal | D2: Matching Grant # | E2: Matching Grant Amt | F2: Cash # | G2: Cash Amt | H2: Credit Card # | I2: Credit Card Amt | J2: PayPal # | K2: PayPal Amt | L2: Check # | M2: Check Amt | N2: Operating Budget | O2: Donations by Day | P2: Total Donations | Q2: Avg Overall Donation Amt | R2: Avg Donation/Day | S2: Average Donated Daily | T2: Daily % of Goal | U2: Daily % Matching $ | V2: Daily % Matching # | W2: Overall %Matching $ | X2: Overall % Matching # | Y2: Daily % Cash $ | Z2: Daily % Cash # | AA2: Overall % Cash $ | AB2: Overall % Cash # | AC2: Daily % CC $ | AD2: Daily % CC # | AE2: Overall % CC $ | AF2: Overall % CC # | AG2: Daily % PP $ | AH2: Daily % PP # | AI2: Overall % PP $ | AJ2: Overall % PP # | AK2: Daily % Chk $ | AL2: Daily % Chk # | AM2: Overall % Chk $ | AN2: Overall % Chk # | AP2: Day | AQ2: Date | AR2: Goal | AS2: Matching Grant # | AT2: Matching Grant Amt | AU2: Cash # | AV2: Cash Amt | AW2: Credit Card # | AX2: Credit Card Amt | AY2: PayPal # | AZ2: PayPal Amt | BA2: Check # | BB2: Check Amt | BC2: Operating Budget | BD2: Donations by Day | BE2: Total Donations | BF2: Avg Overall Donation Amt | BG2: Avg Donation/Day | BH2: Average Donated Daily | BI2: Daily % of Goal | BJ2: Daily % Matching $ | BK2: Daily % Matching # | BL2: Overall %Matching $ | BM2: Overall % Matching # | BN2: Daily % Cash $ | BO2: Daily % Cash # | BP2: Overall % Cash $ | BQ2: Overall % Cash # | BR2: Daily % CC $ | BS2: Daily % CC # | BT2: Overall % CC $ | BU2: Overall % CC # | BV2: Daily % PP $ | BW2: Daily % PP # | BX2: Overall % PP $ | BY2: Overall % PP # | BZ2: Daily % Chk $ | CA2: Daily % Chk # | CB2: Overall % Chk $ | CC2: Overall % Chk # | CE2: Day | CF2: Date | CG2: Goal | CH2: Matching Grant # | CI2: Matching Grant Amt | CJ2: Cash # | CK2: Cash Amt | CL2: Credit Card # | CM2: Credit Card Amt | CN2: PayPal # | CO2: PayPal Amt | CP2: Check # | CQ2: Check Amt | CR2: Operating Budget | CS2: Donations by Day | CT2: Total Donations | CU2: Avg Overall Donation Amt | CV2: Avg Donation/Day | CW2: Average Donated Daily | CX2: Daily % of Goal | CY2: Daily % Matching $ | CZ2: Daily % Matching # | DA2: Overall %Matching $ | DB2: Overall % Matching # | DC2: Daily % Cash $ | DD2: Daily % Cash # | DE2: Overall % Cash $ | DF2: Overall % Cash # | DG2: Daily % CC $ | DH2: Daily % CC # | DI2: Overall % CC $ | DJ2: Overall % CC # | DK2: Daily % PP $ | DL2: Daily % PP # | DM2: Overall % PP $ | DN2: Overall % PP # | DO2: Daily % Chk $ | DP2: Daily % Chk # | DQ2: Overall % Chk $ | DR2: Overall % Chk # | DT2: Day | DU2: Date | DV2: Goal | DW2: Matching Grant # | DX2: Matching Grant Amt | DY2: Cash # | DZ2: Cash Amt | EA2: Credit Card # | EB2: Credit Card Amt | EC2: PayPal # | ED2: PayPal Amt | EE2: Check # | EF2: Check Amt | EG2: Operating Budget | EH2: Donations by Day | EI2: Total Donations | EJ2: Avg Overall Donation Amt | EK2: Avg Donation/Day | EL2: Average Donated Daily | EM2: Daily % of Goal | EN2: Daily % Matching $ | EO2: Daily % Matching # | EP2: Overall %Matching $ | EQ2: Overall % Matching # | ER2: Daily % Cash $ | ES2: Daily % Cash # | ET2: Overall % Cash $ | EU2: Overall % Cash # | EV2: Daily % CC $ | EW2: Daily % CC # | EX2: Overall % CC $ | EY2: Overall % CC # | EZ2: Daily % PP $ | FA2: Daily % PP # | FB2: Overall % PP $ | FC2: Overall % PP # | FD2: Daily % Chk $ | FE2: Daily % Chk # | FF2: Overall % Chk $ | FG2: Overall % Chk # | FI2: Day | FJ2: Date | FK2: Goal | FL2: Matching Grant # | FM2: Matching Grant Amt | FN2: Cash # | FO2: Cash Amt | FP2: Credit Card # | FQ2: Credit Card Amt | FR2: PayPal # | FS2: PayPal Amt | FT2: Check # | FU2: Check Amt | FV2: Operating Budget | FW2: Donations by Day | FX2: Total Donations | FY2: Avg Overall Donation Amt | FZ2: Avg Donation/Day | GA2: Average Donated Daily | GB2: Daily % of Goal | GC2: Daily % Matching $ | GD2: Daily % Matching # | GE2: Overall %Matching $ | GF2: Overall % Matching # | GG2: Daily % Cash $ | GH2: Daily % Cash # | GI2: Overall % Cash $ | GJ2: Overall % Cash # | GK2: Daily % CC $ | GL2: Daily % CC # | GM2: Overall % CC $ | GN2: Overall % CC # | GO2: Daily % PP $ | GP2: Daily % PP # | GQ2: Overall % PP $ | GR2: Overall % PP # | GS2: Daily % Chk $ | GT2: Daily % Chk # | GU2: Overall % Chk $ | GV2: Overall % Chk #
A3: Pre-Fund Drive | C3: 52905 | D3: =COUNTIFS('Sanitized Raw Data'!$H:$H,"<"&B4,'Sanitized Raw Data'!$D:$D,"Matching Grant") -> 20 | E3: =SUMIFS('Sanitized Raw Data'!$C:$C,'Sanitized Raw Data'!$H:$H,"<"&B4,'Sanitized Raw Data'!$D:$D,"Matching Grant") -> 541.07 | F3: =COUNTIFS('Sanitized Raw Data'!$H:$H,"<"&B4,'Sanitized Raw Data'!$D:$D,"Cash") -> 0 | G3: =SUMIFS('Sanitized Raw Data'!$C:$C,'Sanitized Raw Data'!$H:$H,"<"&B4,'Sanitized Raw Data'!$D:$D,"Cash") -> 0 | H3: =COUNTIFS('Sanitized Raw Data'!$H:$H,"<"&B4,'Sanitized Raw Data'!$D:$D,"CC") -> 3 | I3: =SUMIFS('Sanitized Raw Data'!$C:$C,'Sanitized Raw Data'!$H:$H,"<"&B4,'Sanitized Raw Data'!$D:$D,"CC") -> 70 | J3: =COUNTIFS('Sanitized Raw Data'!$H:$H,"<"&B4,'Sanitized Raw Data'!$D:$D,"PayPal") -> 122 | K3: =SUMIFS('Sanitized Raw Data'!$C:$C,'Sanitized Raw Data'!$H:$H,"<"&B4,'Sanitized Raw Data'!$D:$D,"PayPal") -> 3596.87 | L3: =COUNTIFS('Sanitized Raw Data'!$H:$H,"<"&B4,'Sanitized Raw Data'!$D:$D,"Personal Check")+COUNTIFS('Sanitized Raw Data'!$H:$H,"<"&B4,'Sanitized Raw Data'!$D:$D,"ACH Grant Deposit") -> 80 | M3: =SUMIFS('Sanitized Raw Data'!$C:$C,'Sanitized Raw Data'!$H:$H,"<"&B4,'Sanitized Raw Data'!$D:$D,"Personal Check")+SUMIFS('Sanitized Raw Data'!$C:$C,'Sanitized Raw Data'!$H:$H,"<"&B4,'Sanitized Raw Data'!$D:$D,"ACH Grant Deposit") -> 6204.49 | N3: =SUM(G3,M3,K3,I3,E3) -> 10412.43 | O3: =SUM(F3,H3,J3,L3) -> 205 | P3: =SUM(F3,L3,J3,H3,D3) -> 225 | Q3: =N3/P3 -> 46.27746667 | R3: =(SUM(G3,M3,K3,I3,E3))/(SUM(F3,H3,J3,L3,D3)) -> 46.27746667 | T3: =(N3/C$3) -> 0.1968137227 | U3: =E3/N3 -> 0.05196385474 | V3: =D3/O3 -> 0.09756097561 | W3: =E3/N3 -> 0.05196385474 | X3: =D3/O3 -> 0.09756097561 | Y3: =G3/N3 -> 0 | Z3: =F3/O3 -> 0 | AA3: =B3/J3 -> 0 | AB3: =F3/O3 -> 0 | AC3: =I3/N3 -> 0.00672273427 | AD3: =H3/O3 -> 0.01463414634 | AE3: =H3/N3 -> 0.000288117183 | AF3: =H3/P3 -> 0.01333333333 | AG3: =K3/N3 -> 0.3454400174 | AH3: =J3/O3 -> 0.5951219512 | AI3: =K3/N3 -> 0.3454400174 | AJ3: =J3/P3 -> 0.5422222222 | AK3: =M3/N3 -> 0.5958733936 | AL3: =L3/O3 -> 0.3902439024 | AM3: =M3/N3 -> 0.5958733936 | AN3: =L3/P3 -> 0.3555555556 | AP3: Pre-Fund Drive | AR3: 59014 | AS3: 4 | AT3: 42.46 | AU3: 0 | AV3: 0 | AW3: 0 | AX3: 0 | AY3: 72 | AZ3: 1289.45 | BA3: 66 | BB3: 7247 | BC3: 8578.91 | BD3: 138 | BE3: 142 | BF3: 60.41485915 | BG3: 60.41485915 | BI3: 0.1453707595 | BJ3: 0.004949346712 | BK3: 0.02898550725 | BL3: 0.004949346712 | BM3: 0.02898550725 | BN3: 0 | BO3: 0 | BP3: 0 | BQ3: 0 | BR3: 0 | BS3: 0 | BT3: 0 | BU3: 0 | BV3: 0.1503046424 | BW3: 0.5217391304 | BX3: 0.1503046424 | BY3: 0.5070422535 | BZ3: 0.8447460109 | CA3: 0.4782608696 | CB3: 0.8447460109 | CC3: 0.4647887324 | CE3: Pre-Fund Drive | CG3: 45128 | CJ3: 0 | CK3: 0 | CL3: 54 | CM3: 4648.89 | CN3: 68 | CO3: 2228.06 | CP3: 44 | CQ3: 5118.37 | CR3: 11995.32 | CS3: 166 | CT3: 166 | CU3: 72.26096386 | CV3: 72.26096386 | CX3: 0.2658065946 | DC3: 0 | DD3: 0 | DE3: 0 | DF3: 0 | DG3: 0.3875586479 | DH3: 0.3253012048 | DI3: 0.004501755685 | DJ3: 0.3253012048 | DK3: 0.1857441069 | DL3: 0.4096385542 | DM3: 0.1857441069 | DN3: 0.4096385542 | DO3: 0.4266972453 | DP3: 0.265060241 | DQ3: 0.4266972453 | DR3: 0.265060241 | DT3: Pre-Fund Drive | DV3: 65854 | DY3: 0 | DZ3: 0 | EA3: 21 | EB3: 2460.69 | EC3: 165 | ED3: 3373.72 | EE3: 66 | EF3: 5705.66 | EG3: 11540.07 | EH3: 252 | EI3: 252 | EJ3: 45.79392857 | EK3: 45.79392857 | EM3: 0.1752371914 | ER3: 0 | ES3: 0 | ET3: 0 | EU3: 0 | EV3: 0.2132300757 | EW3: 0.08333333333 | EX3: 0.001819746327 | EY3: 0.08333333333 | EZ3: 0.2923483133 | FA3: 0.6547619048 | FB3: 0.2923483133 | FC3: 0.6547619048 | FD3: 0.494421611 | FE3: 0.2619047619 | FF3: 0.494421611 | FG3: 0.2619047619 | FI3: Pre-Fund Drive | FK3: 76366 | FN3: 0 | FO3: 0 | FP3: 0 | FQ3: 0 | FR3: 88 | FS3: 2170.82 | FT3: 29 | FU3: 2963.79 | FV3: 5134.61 | FW3: 117 | FX3: 117 | FY3: 43.88555556 | FZ3: 43.88555556 | GB3: 0.06723685934 | GG3: 0 | GH3: 0 | GI3: 0 | GJ3: 0 | GK3: 0 | GL3: 0 | GM3: 0 | GN3: 0 | GO3: 0.4227818666 | GP3: 0.7521367521 | GQ3: 0.4227818666 | GR3: 0.7521367521 | GS3: 0.5772181334 | GT3: 0.2478632479 | GU3: 0.5772181334 | GV3: 0.2478632479
A4: Day 1 | B4: 2021-10-04 | C4: 52905 | D4: =COUNTIFS('Sanitized Raw Data'!$H:$H,">="&$B4,'Sanitized Raw Data'!$H:$H,"<"&$B5,'Sanitized Raw Data'!$D:$D,"Matching Grant") -> 0 | E4: =SUMIFS('Sanitized Raw Data'!$C:$C,'Sanitized Raw Data'!$H:$H,">="&$B4,'Sanitized Raw Data'!$H:$H,"<"&$B5,'Sanitized Raw Data'!$D:$D,"Matching Grant") -> 0 | F4: =COUNTIFS('Sanitized Raw Data'!$H:$H,">="&$B4,'Sanitized Raw Data'!$H:$H,"<"&$B5,'Sanitized Raw Data'!$D:$D,"Cash") -> 0 | G4: =SUMIFS('Sanitized Raw Data'!$C:$C,'Sanitized Raw Data'!$H:$H,">="&$B4,'Sanitized Raw Data'!$H:$H,"<"&$B5,'Sanitized Raw Data'!$D:$D,"Cash") -> 0 | H4: =COUNTIFS('Sanitized Raw Data'!$H:$H,">="&$B4,'Sanitized Raw Data'!$H:$H,"<"&$B5,'Sanitized Raw Data'!$D:$D,"CC") -> 87 | I4: =SUMIFS('Sanitized Raw Data'!$C:$C,'Sanitized Raw Data'!$H:$H,">="&$B4,'Sanitized Raw Data'!$H:$H,"<"&$B5,'Sanitized Raw Data'!$D:$D,"CC") -> 6723.66 | J4: =COUNTIFS('Sanitized Raw Data'!$H:$H,">="&$B4,'Sanitized Raw Data'!$H:$H,"<"&$B5,'Sanitized Raw Data'!$D:$D,"PayPal") -> 22 | K4: =SUMIFS('Sanitized Raw Data'!$C:$C,'Sanitized Raw Data'!$H:$H,">="&$B4,'Sanitized Raw Data'!$H:$H,"<"&$B5,'Sanitized Raw Data'!$D:$D,"PayPal") -> 1120.68 | L4: =COUNTIFS('Sanitized Raw Data'!$H:$H,">="&$B4,'Sanitized Raw Data'!$H:$H,"<"&$B5,'Sanitized Raw Data'!$D:$D,"Personal Check")+COUNTIFS('Sanitized Raw Data'!$H:$H,">="&$B4,'Sanitized Raw Data'!$H:$H,"<"&$B5,'Sanitized Raw Data'!$D:$D,"ACH Grant Deposit") -> 7 | M4: =SUMIFS('Sanitized Raw Data'!$C:$C,'Sanitized Raw Data'!$H:$H,">="&$B4,'Sanitized Raw Data'!$H:$H,"<"&$B5,'Sanitized Raw Data'!$D:$D,"Personal Check")+SUMIFS('Sanitized Raw Data'!$C:$C,'Sanitized Raw Data'!$H:$H,">="&$B4,'Sanitized Raw Data'!$H:$H,"<"&$B5,'Sanitized Raw Data'!$D:$D,"ACH Grant Deposit") -> 339 | N4: =SUM(G4,M4,K4,I4,N3,E4) -> 18595.77 | O4: =SUM(F4,H4,J4,L4,D4) -> 116 | P4: =SUM(F4,L4,J4,H4,P3,D4) -> 341 | Q4: =N4/P4 -> 54.53304985 | R4: 70.54603448 | S4: =N4/Sheet11!$A1 -> 18595.77 | T4: =(N4-N3)/C$3 -> 0.1546798979 | U4: =E4/(N4-N3) -> 0 | V4: 0 | W4: =SUM(E$3:E4)/N4 -> 0.02909640203 | X4: =SUM(D$3:D4)/O4 -> 0.1724137931 | Y4: =G4/(N4-N3) -> 0 | Z4: 0 | AA4: =SUM(G$3:G4)/N4 -> 0 | AB4: =SUM(F$3:F4)/O4 -> 0 | AC4: =I4/(N4-N3) -> 0.8216278439 | AD4: =H4/O4 -> 0.75 | AE4: =SUM(I$3:I4)/N4 -> 0.3653336216 | AF4: =SUM(H$3:H4)/P4 -> 0.2639296188 | AG4: =K4/(N4-N3) -> 0.1369465279 | AH4: =J4/O4 -> 0.1896551724 | AI4: =SUM(K$3:K4)/N4 -> 0.2536894143 | AJ4: =SUM(J$3:J4)/P4 -> 0.42228739 | AK4: =M4/(N4-N3) -> 0.04142562817 | AL4: =L4/O4 -> 0.06034482759 | AM4: =SUM(M$3:M4)/N4 -> 0.3518805621 | AN4: =SUM(L$3:L4)/P4 -> 0.2551319648 | AP4: Day 1 | AQ4: 2021-04-04 | AR4: 59014 | AS4: 0 | AT4: 0 | AU4: 0 | AV4: 0 | AW4: 21 | AX4: 1365.58 | AY4: 0 | AZ4: 0 | BA4: 0 | BB4: 0 | BC4: 9944.49 | BD4: 21 | BE4: 163 | BF4: 61.0091411 | BG4: 65.02761905 | BH4: 9944.49 | BI4: 0.0231399329 | BJ4: 0 | BK4: 0 | BL4: 0.004269701111 | BM4: 0.1904761905 | BN4: 0 | BO4: 0 | BP4: 0 | BQ4: 0 | BR4: 1 | BS4: 1 | BT4: 0.1373202648 | BU4: 0.1288343558 | BV4: 0 | BW4: 0 | BX4: 0.1296647691 | BY4: 0.4417177914 | BZ4: 0 | CA4: 0 | CB4: 0.728745265 | CC4: 0.4049079755 | CE4: Day 1 | CF4: 2020-11-08 | CG4: 45128 | CJ4: 0 | CK4: 0 | CL4: 36 | CM4: 2252.59 | CN4: 6 | CO4: 320 | CP4: 2 | CQ4: 100 | CR4: 14667.91 | CS4: 44 | CT4: 210 | CU4: 69.84719048 | CV4: 60.74068182 | CW4: 14667.91 | CX4: 0.05922243397 | DC4: 0 | DD4: 0 | DE4: 0 | DF4: 0 | DG4: 0.8428490715 | DH4: 0.8181818182 | DI4: 0.4705155677 | DJ4: 0.4285714286 | DK4: 0.1197340408 | DL4: 0.1363636364 | DM4: 0.1737166372 | DN4: 0.3523809524 | DO4: 0.03741688774 | DP4: 0.04545454545 | DQ4: 0.3557677951 | DR4: 0.219047619 | DT4: Day 1 | DU4: 2020-07-15 | DV4: 65854 | DY4: 0 | DZ4: 0 | EA4: 203 | EB4: 16744.55 | EC4: 9 | ED4: 265 | EE4: 22 | EF4: 1490 | EG4: 30039.62 | EH4: 234 | EI4: 486 | EJ4: 61.8099177 | EK4: 79.05790598 | EL4: 30039.62 | EM4: 0.280917636 | ER4: 0 | ES4: 0 | ET4: 0 | EU4: 0 | EV4: 0.9051328276 | EW4: 0.8675213675 | EX4: 0.6393303244 | EY4: 0.4609053498 | EZ4: 0.01432467276 | FA4: 0.03846153846 | FB4: 0.1211306934 | FC4: 0.3580246914 | FD4: 0.08054249968 | FE4: 0.09401709402 | FF4: 0.2395389822 | FG4: 0.1810699588 | FI4: Day 1 | FJ4: 2019-10-07 | FK4: 76366 | FN4: 0 | FO4: 0 | FP4: 31 | FQ4: 3227.28 | FR4: 11 | FS4: 474 | FT4: 6 | FU4: 569 | FV4: 9404.89 | FW4: 48 | FX4: 165 | FY4: 56.99933333 | FZ4: 88.96416667 | GA4: 9404.89 | GB4: 0.05591860252 | GG4: 0 | GH4: 0 | GI4: 0 | GJ4: 0 | GK4: 0.7557537211 | GL4: 0.6458333333 | GM4: 0.343149149 | GN4: 0.1878787879 | GO4: 0.1109997471 | GP4: 0.2291666667 | GQ4: 0.2812175368 | GR4: 0.6 | GS4: 0.1332465318 | GT4: 0.125 | GU4: 0.3756333142 | GV4: 0.2121212121
A5: Day 2 | B5: 2021-10-05 | C5: 52905 | D5: =COUNTIFS('Sanitized Raw Data'!$H:$H,">="&$B5,'Sanitized Raw Data'!$H:$H,"<"&$B6,'Sanitized Raw Data'!$D:$D,"Matching Grant") -> 0 | E5: =SUMIFS('Sanitized Raw Data'!$C:$C,'Sanitized Raw Data'!$H:$H,">="&$B5,'Sanitized Raw Data'!$H:$H,"<"&$B6,'Sanitized Raw Data'!$D:$D,"Matching Grant") -> 0 | F5: =COUNTIFS('Sanitized Raw Data'!$H:$H,">="&$B5,'Sanitized Raw Data'!$H:$H,"<"&$B6,'Sanitized Raw Data'!$D:$D,"Cash") -> 0 | G5: =SUMIFS('Sanitized Raw Data'!$C:$C,'Sanitized Raw Data'!$H:$H,">="&$B5,'Sanitized Raw Data'!$H:$H,"<"&$B6,'Sanitized Raw Data'!$D:$D,"Cash") -> 0 | H5: =COUNTIFS('Sanitized Raw Data'!$H:$H,">="&$B5,'Sanitized Raw Data'!$H:$H,"<"&$B6,'Sanitized Raw Data'!$D:$D,"CC") -> 51 | I5: =SUMIFS('Sanitized Raw Data'!$C:$C,'Sanitized Raw Data'!$H:$H,">="&$B5,'Sanitized Raw Data'!$H:$H,"<"&$B6,'Sanitized Raw Data'!$D:$D,"CC") -> 4535.36 | J5: =COUNTIFS('Sanitized Raw Data'!$H:$H,">="&$B5,'Sanitized Raw Data'!$H:$H,"<"&$B6,'Sanitized Raw Data'!$D:$D,"PayPal") -> 7 | K5: =SUMIFS('Sanitized Raw Data'!$C:$C,'Sanitized Raw Data'!$H:$H,">="&$B5,'Sanitized Raw Data'!$H:$H,"<"&$B6,'Sanitized Raw Data'!$D:$D,"PayPal") -> 1385 | L5: =COUNTIFS('Sanitized Raw Data'!$H:$H,">="&$B5,'Sanitized Raw Data'!$H:$H,"<"&$B6,'Sanitized Raw Data'!$D:$D,"Personal Check")+COUNTIFS('Sanitized Raw Data'!$H:$H,">="&$B5,'Sanitized Raw Data'!$H:$H,"<"&$B6,'Sanitized Raw Data'!$D:$D,"ACH Grant Deposit") -> 8 | M5: =SUMIFS('Sanitized Raw Data'!$C:$C,'Sanitized Raw Data'!$H:$H,">="&$B5,'Sanitized Raw Data'!$H:$H,"<"&$B6,'Sanitized Raw Data'!$D:$D,"Personal Check")+SUMIFS('Sanitized Raw Data'!$C:$C,'Sanitized Raw Data'!$H:$H,">="&$B5,'Sanitized Raw Data'!$H:$H,"<"&$B6,'Sanitized Raw Data'!$D:$D,"ACH Grant Deposit") -> 1110 | N5: =SUM(G5,M5,K5,I5,N4,E5) -> 25626.13 | O5: =SUM(F5,H5,J5,L5,D5) -> 66 | P5: =SUM(F5,L5,J5,H5,P4,D5) -> 407 | Q5: =N5/P5 -> 62.96346437 | R5: =(SUM(G5,M5,K5,I5,E5))/(SUM(F5,H5,J5,L5,D5)) -> 106.5206061 | S5: =N5/Sheet11!$A2 -> 12813.065 | T5: =(N5-N4)/C$3 -> 0.1328864947 | U5: =E5/(N5-N4) -> 0 | V5: =D5/O5 -> 0 | W5: =SUM(E$3:E5)/N5 -> 0.02111399575 | X5: =SUM(D$3:D5)/O5 -> 0.303030303 | Y5: =G5/(N5-N4) -> 0 | Z5: =F5/O5 -> 0 | AA5: =SUM(G$3:G5)/N5 -> 0 | AB5: =SUM(F$3:F5)/O5 -> 0 | AC5: =I5/(N5-N4) -> 0.6451106344 | AD5: =H5/O5 -> 0.7727272727 | AE5: =SUM(I$3:I5)/N5 -> 0.4420886025 | AF5: =SUM(H$3:H5)/P5 -> 0.3464373464 | AG5: =K5/(N5-N4) -> 0.1970027139 | AH5: =J5/O5 -> 0.1060606061 | AI5: =SUM(K$3:K5)/N5 -> 0.2381377914 | AJ5: =SUM(J$3:J5)/P5 -> 0.371007371 | AK5: =M5/(N5-N4) -> 0.1578866516 | AL5: =L5/O5 -> 0.1212121212 | AM5: =SUM(M$3:M5)/N5 -> 0.2986596103 | AN5: =SUM(L$3:L5)/P5 -> 0.2334152334 | AP5: Day 2 | AQ5: 2021-04-05 | AR5: 59014 | AS5: 0 | AT5: 0 | AU5: 0 | AV5: 0 | AW5: 130 | AX5: 9679.05 | AY5: 42 | AZ5: 2174.47 | BA5: 27 | BB5: 1885.79 | BC5: 23683.8 | BD5: 199 | BE5: 362 | BF5: 65.42486188 | BG5: 69.04175879 | BH5: 11841.9 | BI5: 0.2328144169 | BJ5: 0 | BK5: 0 | BL5: 0.001792786631 | BM5: 0.02010050251 | BN5: 0 | BO5: 0 | BP5: 0 | BQ5: 0 | BR5: 0.7044786092 | BS5: 0.6532663317 | BT5: 0.4663369054 | BU5: 0.4171270718 | BV5: 0.1582663176 | BW5: 0.2110552764 | BX5: 0.1462569351 | BY5: 0.3149171271 | BZ5: 0.1372550732 | CA5: 0.135678392 | CB5: 0.3856133729 | CC5: 0.2569060773 | CE5: Day 2 | CF5: 2020-11-09 | CG5: 45128 | CJ5: 0 | CK5: 0 | CL5: 100 | CM5: 6744.75 | CN5: 20 | CO5: 1199.47 | CP5: 11 | CQ5: 520 | CR5: 23132.13 | CS5: 131 | CT5: 341 | CU5: 67.83615836 | CV5: 64.61236641 | CW5: 11566.065 | CX5: 0.187560273 | DC5: 0 | DD5: 0 | DE5: 0 | DF5: 0 | DG5: 0.7968542878 | DH5: 0.7633587786 | DI5: 0.5899253549 | DJ5: 0.5571847507 | DK5: 0.1417106361 | DL5: 0.1526717557 | DM5: 0.1620054011 | DN5: 0.275659824 | DO5: 0.06143507612 | DP5: 0.08396946565 | DQ5: 0.2480692439 | DR5: 0.1671554252 | DT5: Day 2 | DU5: 2020-07-16 | DV5: 65854 | DY5: 0 | DZ5: 0 | EA5: 47 | EB5: 3898.15 | EC5: 4 | ED5: 330 | EE5: 11 | EF5: 970 | EG5: 35237.77 | EH5: 62 | EI5: 548 | EJ5: 64.3025 | EK5: 83.84112903 | EL5: 17618.885 | EM5: 0.07893446108 | ER5: 0 | ES5: 0 | ET5: 0 | EU5: 0 | EV5: 0.749911026 | EW5: 0.7580645161 | EX5: 0.6556427946 | EY5: 0.4945255474 | EZ5: 0.06348412416 | FA5: 0.06451612903 | FB5: 0.1126268774 | FC5: 0.3248175182 | FD5: 0.1866048498 | FE5: 0.1774193548 | FF5: 0.231730328 | FG5: 0.1806569343 | FI5: Day 2 | FJ5: 2019-10-08 | FK5: 76366 | FN5: 0 | FO5: 0 | FP5: 71 | FQ5: 4453.26 | FR5: 17 | FS5: 739.68 | FT5: 14 | FU5: 957 | FV5: 15554.83 | FW5: 102 | FX5: 267 | FY5: 58.25779026 | FZ5: 60.29352941 | GA5: 7777.415 | GB5: 0.0805324359 | GG5: 0 | GH5: 0 | GI5: 0 | GJ5: 0 | GK5: 0.7241143816 | GL5: 0.6960784314 | GM5: 0.4937720309 | GN5: 0.3820224719 | GO5: 0.1202743441 | GP5: 0.1666666667 | GQ5: 0.2175851488 | GR5: 0.4344569288 | GS5: 0.1556112743 | GT5: 0.137254902 | GU5: 0.2886428203 | GV5: 0.1835205993
A6: Day 3 | B6: 2021-10-06 | C6: 52905 | D6: =COUNTIFS('Sanitized Raw Data'!$H:$H,">="&$B6,'Sanitized Raw Data'!$H:$H,"<"&$B7,'Sanitized Raw Data'!$D:$D,"Matching Grant") -> 0 | E6: =SUMIFS('Sanitized Raw Data'!$C:$C,'Sanitized Raw Data'!$H:$H,">="&$B6,'Sanitized Raw Data'!$H:$H,"<"&$B7,'Sanitized Raw Data'!$D:$D,"Matching Grant") -> 0 | F6: =COUNTIFS('Sanitized Raw Data'!$H:$H,">="&$B6,'Sanitized Raw Data'!$H:$H,"<"&$B7,'Sanitized Raw Data'!$D:$D,"Cash") -> 0 | G6: =SUMIFS('Sanitized Raw Data'!$C:$C,'Sanitized Raw Data'!$H:$H,">="&$B6,'Sanitized Raw Data'!$H:$H,"<"&$B7,'Sanitized Raw Data'!$D:$D,"Cash") -> 0 | H6: =COUNTIFS('Sanitized Raw Data'!$H:$H,">="&$B6,'Sanitized Raw Data'!$H:$H,"<"&$B7,'Sanitized Raw Data'!$D:$D,"CC") -> 19 | I6: =SUMIFS('Sanitized Raw Data'!$C:$C,'Sanitized Raw Data'!$H:$H,">="&$B6,'Sanitized Raw Data'!$H:$H,"<"&$B7,'Sanitized Raw Data'!$D:$D,"CC") -> 1680 | J6: =COUNTIFS('Sanitized Raw Data'!$H:$H,">="&$B6,'Sanitized Raw Data'!$H:$H,"<"&$B7,'Sanitized Raw Data'!$D:$D,"PayPal") -> 5 | K6: =SUMIFS('Sanitized Raw Data'!$C:$C,'Sanitized Raw Data'!$H:$H,">="&$B6,'Sanitized Raw Data'!$H:$H,"<"&$B7,'Sanitized Raw Data'!$D:$D,"PayPal") -> 230 | L6: =COUNTIFS('Sanitized Raw Data'!$H:$H,">="&$B6,'Sanitized Raw Data'!$H:$H,"<"&$B7,'Sanitized Raw Data'!$D:$D,"Personal Check")+COUNTIFS('Sanitized Raw Data'!$H:$H,">="&$B6,'Sanitized Raw Data'!$H:$H,"<"&$B7,'Sanitized Raw Data'!$D:$D,"ACH Grant Deposit") -> 4 | M6: =SUMIFS('Sanitized Raw Data'!$C:$C,'Sanitized Raw Data'!$H:$H,">="&$B6,'Sanitized Raw Data'!$H:$H,"<"&$B7,'Sanitized Raw Data'!$D:$D,"Personal Check")+SUMIFS('Sanitized Raw Data'!$C:$C,'Sanitized Raw Data'!$H:$H,">="&$B6,'Sanitized Raw Data'!$H:$H,"<"&$B7,'Sanitized Raw Data'!$D:$D,"ACH Grant Deposit") -> 389 | N6: =SUM(G6,M6,K6,I6,N5,E6) -> 27925.13 | O6: =SUM(F6,H6,J6,L6,D6) -> 28 | P6: =SUM(F6,L6,J6,H6,P5,D6) -> 435 | Q6: =N6/P6 -> 64.19570115 | R6: =(SUM(G6,M6,K6,I6,E6))/(SUM(F6,H6,J6,L6,D6)) -> 82.10714286 | S6: =N6/Sheet11!$A3 -> 9308.376667 | T6: =(N6-N5)/C$3 -> 0.04345524998 | U6: =E6/(N6-N5) -> 0 | V6: =D6/O6 -> 0 | W6: =SUM(E$3:E6)/N6 -> 0.01937573791 | X6: =SUM(D$3:D6)/O6 -> 0.7142857143 | Y6: =G6/(N6-N5) -> 0 | Z6: =F6/O6 -> 0 | AA6: =SUM(G$3:G6)/N6 -> 0 | AB6: =SUM(F$3:F6)/O6 -> 0 | AC6: =I6/(N6-N5) -> 0.7307525011 | AD6: =H6/O6 -> 0.6785714286 | AE6: =SUM(I$3:I6)/N6 -> 0.4658535162 | AF6: =SUM(H$3:H6)/P6 -> 0.367816092 | AG6: =K6/(N6-N5) -> 0.1000434972 | AH6: =J6/O6 -> 0.1785714286 | AI6: =SUM(K$3:K6)/N6 -> 0.2267688637 | AJ6: =SUM(J$3:J6)/P6 -> 0.3586206897 | AK6: =M6/(N6-N5) -> 0.1692040017 | AL6: =L6/O6 -> 0.1428571429 | AM6: =SUM(M$3:M6)/N6 -> 0.2880018822 | AN6: =SUM(L$3:L6)/P6 -> 0.2275862069 | AP6: Day 3 | AQ6: 2021-04-06 | AR6: 59014 | AS6: 0 | AT6: 0 | AU6: 0 | AV6: 0 | AW6: 33 | AX6: 3646.3 | AY6: 10 | AZ6: 1038.79 | BA6: 3 | BB6: 264 | BC6: 28632.89 | BD6: 46 | BE6: 408 | BF6: 70.17865196 | BG6: 107.588913 | BH6: 9544.296667 | BI6: 0.08386298167 | BJ6: 0 | BK6: 0 | BL6: 0.001482910038 | BM6: 0.08695652174 | BN6: 0 | BO6: 0 | BP6: 0 | BQ6: 0 | BR6: 0.7367617077 | BS6: 0.7173913043 | BT6: 0.5130788405 | BU6: 0.4509803922 | BV6: 0.2098951524 | BW6: 0.2173913043 | BX6: 0.1572565675 | BY6: 0.3039215686 | BZ6: 0.05334313985 | CA6: 0.0652173913 | CB6: 0.328181682 | CC6: 0.2352941176 | CE6: Day 3 | CF6: 2020-11-10 | CG6: 45128 | CJ6: 0 | CK6: 0 | CL6: 18 | CM6: 1087.68 | CN6: 4 | CO6: 150 | CP6: 8 | CQ6: 584 | CR6: 24953.81 | CS6: 30 | CT6: 371 | CU6: 67.2609434 | CV6: 60.72266667 | CW6: 8317.936667 | CX6: 0.04036695621 | DC6: 0 | DD6: 0 | DE6: 0 | DF6: 0 | DG6: 0.5970752273 | DH6: 0.6 | DI6: 0.5904473105 | DJ6: 0.5606469003 | DK6: 0.08234157481 | DL6: 0.1333333333 | DM6: 0.1561897762 | DN6: 0.2641509434 | DO6: 0.3205831979 | DP6: 0.2666666667 | DQ6: 0.2533629133 | DR6: 0.1752021563 | DT6: Day 3 | DU6: 2020-07-17 | DV6: 65854 | DY6: 0 | DZ6: 0 | EA6: 28 | EB6: 2220 | EC6: 0 | ED6: 0 | EE6: 5 | EF6: 489 | EG6: 37946.77 | EH6: 33 | EI6: 581 | EJ6: 65.31285714 | EK6: 82.09090909 | EL6: 12648.92333 | EM6: 0.04113645337 | ER6: 0 | ES6: 0 | ET6: 0 | EU6: 0 | EV6: 0.8194905869 | EW6: 0.8484848485 | EX6: 0.6673398026 | EY6: 0.5146299484 | EZ6: 0 | FA6: 0 | FB6: 0.1045865037 | FC6: 0.3063683305 | FD6: 0.1805094131 | FE6: 0.1515151515 | FF6: 0.2280736938 | FG6: 0.1790017212 | FI6: Day 3 | FJ6: 2019-10-09 | FK6: 76366 | FN6: 0 | FO6: 0 | FP6: 17 | FQ6: 1729 | FR6: 3 | FS6: 99.79 | FT6: 8 | FU6: 331 | FV6: 17714.62 | FW6: 28 | FX6: 295 | FY6: 60.04955932 | FZ6: 77.13535714 | GA6: 5904.873333 | GB6: 0.02828208889 | GG6: 0 | GH6: 0 | GI6: 0 | GJ6: 0 | GK6: 0.8005407933 | GL6: 0.6071428571 | GM6: 0.5311736859 | GN6: 0.4033898305 | GO6: 0.04620356609 | GP6: 0.1071428571 | GQ6: 0.1966900786 | GR6: 0.4033898305 | GS6: 0.1532556406 | GT6: 0.2857142857 | GU6: 0.2721362355 | GV6: 0.193220339
A7: Day 4 | B7: 2021-10-07 | C7: 52905 | D7: =COUNTIFS('Sanitized Raw Data'!$H:$H,">="&$B7,'Sanitized Raw Data'!$H:$H,"<"&$B8,'Sanitized Raw Data'!$D:$D,"Matching Grant") -> 0 | E7: =SUMIFS('Sanitized Raw Data'!$C:$C,'Sanitized Raw Data'!$H:$H,">="&$B7,'Sanitized Raw Data'!$H:$H,"<"&$B8,'Sanitized Raw Data'!$D:$D,"Matching Grant") -> 0 | F7: =COUNTIFS('Sanitized Raw Data'!$H:$H,">="&$B7,'Sanitized Raw Data'!$H:$H,"<"&$B8,'Sanitized Raw Data'!$D:$D,"Cash") -> 0 | G7: =SUMIFS('Sanitized Raw Data'!$C:$C,'Sanitized Raw Data'!$H:$H,">="&$B7,'Sanitized Raw Data'!$H:$H,"<"&$B8,'Sanitized Raw Data'!$D:$D,"Cash") -> 0 | H7: =COUNTIFS('Sanitized Raw Data'!$H:$H,">="&$B7,'Sanitized Raw Data'!$H:$H,"<"&$B8,'Sanitized Raw Data'!$D:$D,"CC") -> 22 | I7: =SUMIFS('Sanitized Raw Data'!$C:$C,'Sanitized Raw Data'!$H:$H,">="&$B7,'Sanitized Raw Data'!$H:$H,"<"&$B8,'Sanitized Raw Data'!$D:$D,"CC") -> 1343.09 | J7: =COUNTIFS('Sanitized Raw Data'!$H:$H,">="&$B7,'Sanitized Raw Data'!$H:$H,"<"&$B8,'Sanitized Raw Data'!$D:$D,"PayPal") -> 1 | K7: =SUMIFS('Sanitized Raw Data'!$C:$C,'Sanitized Raw Data'!$H:$H,">="&$B7,'Sanitized Raw Data'!$H:$H,"<"&$B8,'Sanitized Raw Data'!$D:$D,"PayPal") -> 64 | L7: =COUNTIFS('Sanitized Raw Data'!$H:$H,">="&$B7,'Sanitized Raw Data'!$H:$H,"<"&$B8,'Sanitized Raw Data'!$D:$D,"Personal Check")+COUNTIFS('Sanitized Raw Data'!$H:$H,">="&$B7,'Sanitized Raw Data'!$H:$H,"<"&$B8,'Sanitized Raw Data'!$D:$D,"ACH Grant Deposit") -> 2 | M7: =SUMIFS('Sanitized Raw Data'!$C:$C,'Sanitized Raw Data'!$H:$H,">="&$B7,'Sanitized Raw Data'!$H:$H,"<"&$B8,'Sanitized Raw Data'!$D:$D,"Personal Check")+SUMIFS('Sanitized Raw Data'!$C:$C,'Sanitized Raw Data'!$H:$H,">="&$B7,'Sanitized Raw Data'!$H:$H,"<"&$B8,'Sanitized Raw Data'!$D:$D,"ACH Grant Deposit") -> 300 | N7: =SUM(G7,M7,K7,I7,N6,E7) -> 29632.22 | O7: =SUM(F7,H7,J7,L7,D7) -> 25 | P7: =SUM(F7,L7,J7,H7,P6,D7) -> 460 | Q7: =N7/P7 -> 64.41786957 | R7: =(SUM(G7,M7,K7,I7,E7))/(SUM(F7,H7,J7,L7,D7)) -> 68.2836 | S7: =N7/Sheet11!$A4 -> 7408.055 | T7: =(N7-N6)/C$3 -> 0.03226708251 | U7: =E7/(N7-N6) -> 0 | V7: =D7/O7 -> 0 | W7: =SUM(E$3:E7)/N7 -> 0.01825951616 | X7: =SUM(D$3:D7)/O7 -> 0.8 | Y7: =G7/(N7-N6) -> 0 | Z7: =F7/O7 -> 0 | AA7: =SUM(G$3:G7)/N7 -> 0 | AB7: =SUM(F$3:F7)/O7 -> 0 | AC7: =I7/(N7-N6) -> 0.7867716406 | AD7: =H7/O7 -> 0.88 | AE7: =SUM(I$3:I7)/N7 -> 0.484341369 | AF7: =SUM(H$3:H7)/P7 -> 0.3956521739 | AG7: =K7/(N7-N6) -> 0.03749070055 | AH7: =J7/O7 -> 0.04 | AI7: =SUM(K$3:K7)/N7 -> 0.2158646905 | AJ7: =SUM(J$3:J7)/P7 -> 0.3413043478 | AK7: =M7/(N7-N6) -> 0.1757376588 | AL7: =L7/O7 -> 0.08 | AM7: =SUM(M$3:M7)/N7 -> 0.2815344244 | AN7: =SUM(L$3:L7)/P7 -> 0.2195652174 | AP7: Day 4 | AQ7: 2021-04-07 | AR7: 59014 | AS7: 0 | AT7: 0 | AU7: 0 | AV7: 0 | AW7: 20 | AX7: 1203.32 | AY7: 2 | AZ7: 125 | BA7: 9 | BB7: 1059 | BC7: 31020.21 | BD7: 31 | BE7: 439 | BF7: 70.66107062 | BG7: 77.01032258 | BH7: 7755.0525 | BI7: 0.04045345172 | BJ7: 0 | BK7: 0 | BL7: 0.00136878506 | BM7: 0.1290322581 | BN7: 0 | BO7: 0 | BP7: 0 | BQ7: 0 | BR7: 0.5040463784 | BS7: 0.6451612903 | BT7: 0.5123837008 | BU7: 0.4646924829 | BV7: 0.0523599685 | BW7: 0.06451612903 | BX7: 0.1491837096 | BY7: 0.2870159453 | BZ7: 0.4435936531 | CA7: 0.2903225806 | CB7: 0.3370638045 | CC7: 0.2391799544 | CE7: Day 4 | CF7: 2020-11-11 | CG7: 45128 | CJ7: 0 | CK7: 0 | CL7: 13 | CM7: 1297 | CN7: 3 | CO7: 60 | CP7: 8 | CQ7: 456 | CR7: 26766.81 | CS7: 24 | CT7: 395 | CU7: 67.76407595 | CV7: 75.54166667 | CW7: 6691.7025 | CX7: 0.04017461443 | DC7: 0 | DD7: 0 | DE7: 0 | DF7: 0 | DG7: 0.7153888582 | DH7: 0.5416666667 | DI7: 0.5989099934 | DJ7: 0.5594936709 | DK7: 0.03309431881 | DL7: 0.125 | DM7: 0.1478521348 | DN7: 0.2556962025 | DO7: 0.2515168229 | DP7: 0.3333333333 | DQ7: 0.2532378718 | DR7: 0.1848101266 | DT7: Day 4 | DU7: 2020-07-18 | DV7: 65854 | DY7: 0 | DZ7: 0 | EA7: 13 | EB7: 784.79 | EC7: 0 | ED7: 0 | EE7: 2 | EF7: 75 | EG7: 38806.56 | EH7: 15 | EI7: 596 | EJ7: 65.11167785 | EK7: 57.31933333 | EL7: 9701.64 | EM7: 0.01305600267 | ER7: 0 | ES7: 0 | ET7: 0 | EU7: 0 | EV7: 0.9127693972 | EW7: 0.8666666667 | EX7: 0.6727774892 | EY7: 0.5234899329 | EZ7: 0 | FA7: 0 | FB7: 0.102269307 | FC7: 0.2986577181 | FD7: 0.08723060282 | FE7: 0.1333333333 | FF7: 0.2249532038 | FG7: 0.177852349 | FI7: Day 4 | FJ7: 2019-10-10 | FK7: 76366 | FN7: 0 | FO7: 0 | FP7: 9 | FQ7: 399.68 | FR7: 1 | FS7: 50 | FT7: 5 | FU7: 235 | FV7: 18399.3 | FW7: 15 | FX7: 310 | FY7: 59.35258065 | FZ7: 45.64533333 | GA7: 4599.825 | GB7: 0.008965770107 | GG7: 0 | GH7: 0 | GI7: 0 | GJ7: 0 | GK7: 0.583747152 | GL7: 0.6 | GM7: 0.5331300647 | GN7: 0.4129032258 | GO7: 0.07302681545 | GP7: 0.06666666667 | GQ7: 0.192088286 | GR7: 0.3870967742 | GS7: 0.3432260326 | GT7: 0.3333333333 | GU7: 0.2747816493 | GV7: 0.2
A8: Day 5 | B8: 2021-10-08 | C8: 52905 | D8: =COUNTIFS('Sanitized Raw Data'!$H:$H,">="&$B8,'Sanitized Raw Data'!$H:$H,"<"&$B9,'Sanitized Raw Data'!$D:$D,"Matching Grant") -> 0 | E8: =SUMIFS('Sanitized Raw Data'!$C:$C,'Sanitized Raw Data'!$H:$H,">="&$B8,'Sanitized Raw Data'!$H:$H,"<"&$B9,'Sanitized Raw Data'!$D:$D,"Matching Grant") -> 0 | F8: =COUNTIFS('Sanitized Raw Data'!$H:$H,">="&$B8,'Sanitized Raw Data'!$H:$H,"<"&$B9,'Sanitized Raw Data'!$D:$D,"Cash") -> 0 | G8: =SUMIFS('Sanitized Raw Data'!$C:$C,'Sanitized Raw Data'!$H:$H,">="&$B8,'Sanitized Raw Data'!$H:$H,"<"&$B9,'Sanitized Raw Data'!$D:$D,"Cash") -> 0 | H8: =COUNTIFS('Sanitized Raw Data'!$H:$H,">="&$B8,'Sanitized Raw Data'!$H:$H,"<"&$B9,'Sanitized Raw Data'!$D:$D,"CC") -> 14 | I8: =SUMIFS('Sanitized Raw Data'!$C:$C,'Sanitized Raw Data'!$H:$H,">="&$B8,'Sanitized Raw Data'!$H:$H,"<"&$B9,'Sanitized Raw Data'!$D:$D,"CC") -> 1085 | J8: =COUNTIFS('Sanitized Raw Data'!$H:$H,">="&$B8,'Sanitized Raw Data'!$H:$H,"<"&$B9,'Sanitized Raw Data'!$D:$D,"PayPal") -> 0 | K8: =SUMIFS('Sanitized Raw Data'!$C:$C,'Sanitized Raw Data'!$H:$H,">="&$B8,'Sanitized Raw Data'!$H:$H,"<"&$B9,'Sanitized Raw Data'!$D:$D,"PayPal") -> 0 | L8: =COUNTIFS('Sanitized Raw Data'!$H:$H,">="&$B8,'Sanitized Raw Data'!$H:$H,"<"&$B9,'Sanitized Raw Data'!$D:$D,"Personal Check")+COUNTIFS('Sanitized Raw Data'!$H:$H,">="&$B8,'Sanitized Raw Data'!$H:$H,"<"&$B9,'Sanitized Raw Data'!$D:$D,"ACH Grant Deposit") -> 1 | M8: =SUMIFS('Sanitized Raw Data'!$C:$C,'Sanitized Raw Data'!$H:$H,">="&$B8,'Sanitized Raw Data'!$H:$H,"<"&$B9,'Sanitized Raw Data'!$D:$D,"Personal Check")+SUMIFS('Sanitized Raw Data'!$C:$C,'Sanitized Raw Data'!$H:$H,">="&$B8,'Sanitized Raw Data'!$H:$H,"<"&$B9,'Sanitized Raw Data'!$D:$D,"ACH Grant Deposit") -> 40 | N8: =SUM(G8,M8,K8,I8,N7,E8) -> 30757.22 | O8: =SUM(F8,H8,J8,L8,D8) -> 15 | P8: =SUM(F8,L8,J8,H8,P7,D8) -> 475 | Q8: =N8/P8 -> 64.75204211 | R8: =(SUM(G8,M8,K8,I8,E8))/(SUM(F8,H8,J8,L8,D8)) -> 75 | S8: =N8/Sheet11!$A5 -> 6151.444 | T8: =(N8-N7)/C$3 -> 0.02126453076 | U8: =E8/(N8-N7) -> 0 | V8: =D8/O8 -> 0 | W8: =SUM(E$3:E8)/N8 -> 0.0175916419 | X8: =SUM(D$3:D8)/O8 -> 1.333333333 | Y8: =G8/(N8-N7) -> 0 | Z8: =F8/O8 -> 0 | AA8: =SUM(G$3:G8)/N8 -> 0 | AB8: =SUM(F$3:F8)/O8 -> 0 | AC8: =I8/(N8-N7) -> 0.9644444444 | AD8: =H8/O8 -> 0.9333333333 | AE8: =SUM(I$3:I8)/N8 -> 0.5019019924 | AF8: =SUM(H$3:H8)/P8 -> 0.4126315789 | AG8: =K8/(N8-N7) -> 0 | AH8: =J8/O8 -> 0 | AI8: =SUM(K$3:K8)/N8 -> 0.2079690557 | AJ8: =SUM(J$3:J8)/P8 -> 0.3305263158 | AK8: =M8/(N8-N7) -> 0.03555555556 | AL8: =L8/O8 -> 0.06666666667 | AM8: =SUM(M$3:M8)/N8 -> 0.2725373099 | AN8: =SUM(L$3:L8)/P8 -> 0.2147368421 | AP8: Day 5 | AQ8: 2021-04-08 | AR8: 59014 | AS8: 0 | AT8: 0 | AU8: 0 | AV8: 0 | AW8: 7 | AX8: 564 | AY8: 5 | AZ8: 165 | BA8: 6 | BB8: 499 | BC8: 32248.21 | BD8: 18 | BE8: 457 | BF8: 70.56501094 | BG8: 68.22222222 | BH8: 6449.642 | BI8: 0.02080862168 | BJ8: 0 | BK8: 0 | BL8: 0.001316662227 | BM8: 0.2222222222 | BN8: 0 | BO8: 0 | BP8: 0 | BQ8: 0 | BR8: 0.4592833876 | BS8: 0.3888888889 | BT8: 0.5103616604 | BU8: 0.4617067834 | BV8: 0.1343648208 | BW8: 0.2777777778 | BX8: 0.1486194117 | BY8: 0.2866520788 | BZ8: 0.4063517915 | CA8: 0.3333333333 | CB8: 0.3397022656 | CC8: 0.2428884026 | CE8: Day 5 | CF8: 2020-11-12 | CG8: 45128 | CJ8: 0 | CK8: 0 | CL8: 19 | CM8: 1168.32 | CN8: 3 | CO8: 165 | CP8: 9 | CQ8: 1134.01 | CR8: 29234.14 | CS8: 31 | CT8: 426 | CU8: 68.62474178 | CV8: 79.59129032 | CW8: 5846.828 | CX8: 0.05467403829 | DC8: 0 | DD8: 0 | DE8: 0 | DF8: 0 | DG8: 0.4735159059 | DH8: 0.6129032258 | DI8: 0.5883268671 | DJ8: 0.5633802817 | DK8: 0.06687390823 | DL8: 0.09677419355 | DM8: 0.1410176595 | DN8: 0.2441314554 | DO8: 0.4596101859 | DP8: 0.2903225806 | DQ8: 0.2706554734 | DR8: 0.1924882629 | DT8: Day 5 | DU8: 2020-07-19 | DV8: 65854 | DY8: 0 | DZ8: 0 | EA8: 9 | EB8: 481 | EC8: 0 | ED8: 0 | EE8: 2 | EF8: 75 | EG8: 39362.56 | EH8: 11 | EI8: 607 | EJ8: 64.84771005 | EK8: 50.54545455 | EL8: 7872.512 | EM8: 0.008442919185 | ER8: 0 | ES8: 0 | ET8: 0 | EU8: 0 | EV8: 0.8651079137 | EW8: 0.8181818182 | EX8: 0.6754941752 | EY8: 0.528830313 | EZ8: 0 | FA8: 0 | FB8: 0.1008247431 | FC8: 0.2932454695 | FD8: 0.1348920863 | FE8: 0.1818181818 | FF8: 0.2236810817 | FG8: 0.1779242175 | FI8: Day 5 | FJ8: 2019-10-11 | FK8: 76366 | FN8: 0 | FO8: 0 | FP8: 8 | FQ8: 425 | FR8: 2 | FS8: 20 | FT8: 3 | FU8: 246 | FV8: 19090.3 | FW8: 13 | FX8: 323 | FY8: 59.10309598 | FZ8: 53.15384615 | GA8: 3818.06 | GB8: 0.00904852945 | GG8: 0 | GH8: 0 | GI8: 0 | GJ8: 0 | GK8: 0.6150506512 | GL8: 0.6153846154 | GM8: 0.5360952945 | GN8: 0.4210526316 | GO8: 0.02894356006 | GP8: 0.1538461538 | GQ8: 0.1861830354 | GR8: 0.3777089783 | GS8: 0.3560057887 | GT8: 0.2307692308 | GU8: 0.2777216702 | GV8: 0.2012383901
A9: Day 6 | B9: 2021-10-09 | C9: 52905 | D9: =COUNTIFS('Sanitized Raw Data'!$H:$H,">="&$B9,'Sanitized Raw Data'!$H:$H,"<"&$B10,'Sanitized Raw Data'!$D:$D,"Matching Grant") -> 0 | E9: =SUMIFS('Sanitized Raw Data'!$C:$C,'Sanitized Raw Data'!$H:$H,">="&$B9,'Sanitized Raw Data'!$H:$H,"<"&$B10,'Sanitized Raw Data'!$D:$D,"Matching Grant") -> 0 | F9: =COUNTIFS('Sanitized Raw Data'!$H:$H,">="&$B9,'Sanitized Raw Data'!$H:$H,"<"&$B10,'Sanitized Raw Data'!$D:$D,"Cash") -> 0 | G9: =SUMIFS('Sanitized Raw Data'!$C:$C,'Sanitized Raw Data'!$H:$H,">="&$B9,'Sanitized Raw Data'!$H:$H,"<"&$B10,'Sanitized Raw Data'!$D:$D,"Cash") -> 0 | H9: =COUNTIFS('Sanitized Raw Data'!$H:$H,">="&$B9,'Sanitized Raw Data'!$H:$H,"<"&$B10,'Sanitized Raw Data'!$D:$D,"CC") -> 6 | I9: =SUMIFS('Sanitized Raw Data'!$C:$C,'Sanitized Raw Data'!$H:$H,">="&$B9,'Sanitized Raw Data'!$H:$H,"<"&$B10,'Sanitized Raw Data'!$D:$D,"CC") -> 380 | J9: =COUNTIFS('Sanitized Raw Data'!$H:$H,">="&$B9,'Sanitized Raw Data'!$H:$H,"<"&$B10,'Sanitized Raw Data'!$D:$D,"PayPal") -> 1 | K9: =SUMIFS('Sanitized Raw Data'!$C:$C,'Sanitized Raw Data'!$H:$H,">="&$B9,'Sanitized Raw Data'!$H:$H,"<"&$B10,'Sanitized Raw Data'!$D:$D,"PayPal") -> 5 | L9: =COUNTIFS('Sanitized Raw Data'!$H:$H,">="&$B9,'Sanitized Raw Data'!$H:$H,"<"&$B10,'Sanitized Raw Data'!$D:$D,"Personal Check")+COUNTIFS('Sanitized Raw Data'!$H:$H,">="&$B9,'Sanitized Raw Data'!$H:$H,"<"&$B10,'Sanitized Raw Data'!$D:$D,"ACH Grant Deposit") -> 4 | M9: =SUMIFS('Sanitized Raw Data'!$C:$C,'Sanitized Raw Data'!$H:$H,">="&$B9,'Sanitized Raw Data'!$H:$H,"<"&$B10,'Sanitized Raw Data'!$D:$D,"Personal Check")+SUMIFS('Sanitized Raw Data'!$C:$C,'Sanitized Raw Data'!$H:$H,">="&$B9,'Sanitized Raw Data'!$H:$H,"<"&$B10,'Sanitized Raw Data'!$D:$D,"ACH Grant Deposit") -> 396 | N9: =SUM(G9,M9,K9,I9,N8,E9) -> 31538.22 | O9: =SUM(F9,H9,J9,L9,D9) -> 11 | P9: =SUM(F9,L9,J9,H9,P8,D9) -> 486 | Q9: =N9/P9 -> 64.89345679 | R9: =(SUM(G9,M9,K9,I9,E9))/(SUM(F9,H9,J9,L9,D9)) -> 71 | S9: =N9/Sheet11!$A6 -> 5256.37 | T9: =(N9-N8)/C$3 -> 0.0147623098 | U9: =E9/(N9-N8) -> 0 | V9: =D9/O9 -> 0 | W9: =SUM(E$3:E9)/N9 -> 0.01715600944 | X9: =SUM(D$3:D9)/O9 -> 1.818181818 | Y9: =G9/(N9-N8) -> 0 | Z9: =F9/O9 -> 0 | AA9: =SUM(G$3:G9)/N9 -> 0 | AB9: =SUM(F$3:F9)/O9 -> 0 | AC9: =I9/(N9-N8) -> 0.4865556978 | AD9: =H9/O9 -> 0.5454545455 | AE9: =SUM(I$3:I9)/N9 -> 0.5015219629 | AF9: =SUM(H$3:H9)/P9 -> 0.4156378601 | AG9: =K9/(N9-N8) -> 0.006402048656 | AH9: =J9/O9 -> 0.09090909091 | AI9: =SUM(K$3:K9)/N9 -> 0.2029775301 | AJ9: =SUM(J$3:J9)/P9 -> 0.3251028807 | AK9: =M9/(N9-N8) -> 0.5070422535 | AL9: =L9/O9 -> 0.3636363636 | AM9: =SUM(M$3:M9)/N9 -> 0.2783444976 | AN9: =SUM(L$3:L9)/P9 -> 0.2181069959 | AP9: Day 6 | AQ9: 2021-04-09 | AR9: 59014 | AS9: 0 | AT9: 0 | AU9: 0 | AV9: 0 | AW9: 15 | AX9: 1007.77 | AY9: 0 | AZ9: 0 | BA9: 4 | BB9: 240 | BC9: 33495.98 | BD9: 19 | BE9: 476 | BF9: 70.36970588 | BG9: 65.67210526 | BH9: 5582.663333 | BI9: 0.02114362694 | BJ9: 0 | BK9: 0 | BL9: 0.0012676148 | BM9: 0.2105263158 | BN9: 0 | BO9: 0 | BP9: 0 | BQ9: 0 | BR9: 0.8076568598 | BS9: 0.7894736842 | BT9: 0.5214363037 | BU9: 0.474789916 | BV9: 0 | BW9: 0 | BX9: 0.1430831401 | BY9: 0.275210084 | BZ9: 0.1923431402 | CA9: 0.2105263158 | CB9: 0.3342129414 | CC9: 0.2415966387 | CE9: Day 6 | CF9: 2020-11-13 | CG9: 45128 | CJ9: 0 | CK9: 0 | CL9: 3 | CM9: 659 | CN9: 1 | CO9: 50 | CP9: 4 | CQ9: 260 | CR9: 30203.14 | CS9: 8 | CT9: 434 | CU9: 69.59248848 | CV9: 121.125 | CW9: 5033.856667 | CX9: 0.02147225669 | DC9: 0 | DD9: 0 | DE9: 0 | DF9: 0 | DG9: 0.6800825593 | DH9: 0.375 | DI9: 0.5912706427 | DJ9: 0.5599078341 | DK9: 0.0515995872 | DL9: 0.125 | DM9: 0.1381488812 | DN9: 0.2419354839 | DO9: 0.2683178535 | DP9: 0.5 | DQ9: 0.2705804761 | DR9: 0.198156682 | DT9: Day 6 | DU9: 2020-07-20 | DV9: 65854 | DY9: 0 | DZ9: 0 | EA9: 12 | EB9: 864 | EC9: 1 | ED9: 5 | EE9: 8 | EF9: 726 | EG9: 40957.56 | EH9: 21 | EI9: 628 | EJ9: 65.21904459 | EK9: 75.95238095 | EL9: 6826.26 | EM9: 0.02422024478 | ER9: 0 | ES9: 0 | ET9: 0 | EU9: 0 | EV9: 0.54169279 | EW9: 0.5714285714 | EX9: 0.6702835813 | EY9: 0.5302547771 | EZ9: 0.003134796238 | FA9: 0.04761904762 | FB9: 0.09702042797 | FC9: 0.2850318471 | FD9: 0.4551724138 | FE9: 0.380952381 | FF9: 0.2326959907 | FG9: 0.1847133758 | FI9: Day 6 | FJ9: 2019-10-12 | FK9: 76366 | FN9: 0 | FO9: 0 | FP9: 6 | FQ9: 328.51 | FR9: 3 | FS9: 40 | FT9: 2 | FU9: 125 | FV9: 19583.81 | FW9: 11 | FX9: 334 | FY9: 58.63416168 | FZ9: 44.86454545 | GA9: 3263.968333 | GB9: 0.006462430925 | GG9: 0 | GH9: 0 | GI9: 0 | GJ9: 0 | GK9: 0.6656602703 | GL9: 0.5454545455 | GM9: 0.5393603185 | GN9: 0.4251497006 | GO9: 0.08105205568 | GP9: 0.2727272727 | GQ9: 0.1835337455 | GR9: 0.374251497 | GS9: 0.253287674 | GT9: 0.1818181818 | GU9: 0.277105936 | GV9: 0.2005988024
A10: Day 7 | B10: 2021-10-10 | C10: 52905 | D10: =COUNTIFS('Sanitized Raw Data'!$H:$H,">="&$B10,'Sanitized Raw Data'!$H:$H,"<"&$B11,'Sanitized Raw Data'!$D:$D,"Matching Grant") -> 0 | E10: =SUMIFS('Sanitized Raw Data'!$C:$C,'Sanitized Raw Data'!$H:$H,">="&$B10,'Sanitized Raw Data'!$H:$H,"<"&$B11,'Sanitized Raw Data'!$D:$D,"Matching Grant") -> 0 | F10: =COUNTIFS('Sanitized Raw Data'!$H:$H,">="&$B10,'Sanitized Raw Data'!$H:$H,"<"&$B11,'Sanitized Raw Data'!$D:$D,"Cash") -> 0 | G10: =SUMIFS('Sanitized Raw Data'!$C:$C,'Sanitized Raw Data'!$H:$H,">="&$B10,'Sanitized Raw Data'!$H:$H,"<"&$B11,'Sanitized Raw Data'!$D:$D,"Cash") -> 0 | H10: =COUNTIFS('Sanitized Raw Data'!$H:$H,">="&$B10,'Sanitized Raw Data'!$H:$H,"<"&$B11,'Sanitized Raw Data'!$D:$D,"CC") -> 2 | I10: =SUMIFS('Sanitized Raw Data'!$C:$C,'Sanitized Raw Data'!$H:$H,">="&$B10,'Sanitized Raw Data'!$H:$H,"<"&$B11,'Sanitized Raw Data'!$D:$D,"CC") -> 127.51 | J10: =COUNTIFS('Sanitized Raw Data'!$H:$H,">="&$B10,'Sanitized Raw Data'!$H:$H,"<"&$B11,'Sanitized Raw Data'!$D:$D,"PayPal") -> 0 | K10: =SUMIFS('Sanitized Raw Data'!$C:$C,'Sanitized Raw Data'!$H:$H,">="&$B10,'Sanitized Raw Data'!$H:$H,"<"&$B11,'Sanitized Raw Data'!$D:$D,"PayPal") -> 0 | L10: =COUNTIFS('Sanitized Raw Data'!$H:$H,">="&$B10,'Sanitized Raw Data'!$H:$H,"<"&$B11,'Sanitized Raw Data'!$D:$D,"Personal Check")+COUNTIFS('Sanitized Raw Data'!$H:$H,">="&$B10,'Sanitized Raw Data'!$H:$H,"<"&$B11,'Sanitized Raw Data'!$D:$D,"ACH Grant Deposit") -> 0 | M10: =SUMIFS('Sanitized Raw Data'!$C:$C,'Sanitized Raw Data'!$H:$H,">="&$B10,'Sanitized Raw Data'!$H:$H,"<"&$B11,'Sanitized Raw Data'!$D:$D,"Personal Check")+SUMIFS('Sanitized Raw Data'!$C:$C,'Sanitized Raw Data'!$H:$H,">="&$B10,'Sanitized Raw Data'!$H:$H,"<"&$B11,'Sanitized Raw Data'!$D:$D,"ACH Grant Deposit") -> 0 | N10: =SUM(G10,M10,K10,I10,N9,E10) -> 31665.73 | O10: =SUM(F10,H10,J10,L10,D10) -> 2 | P10: =SUM(F10,L10,J10,H10,P9,D10) -> 488 | Q10: =N10/P10 -> 64.88879098 | R10: =(SUM(G10,M10,K10,I10,E10))/(SUM(F10,H10,J10,L10,D10)) -> 63.755 | S10: =N10/Sheet11!$A7 -> 4523.675714 | T10: =(N10-N9)/C$3 -> 0.002410169171 | U10: =E10/(N10-N9) -> 0 | V10: =D10/O10 -> 0 | W10: =SUM(E$3:E10)/N10 -> 0.01708692647 | X10: =SUM(D$3:D10)/O10 -> 10 | Y10: =G10/(N10-N9) -> 0 | Z10: =F10/O10 -> 0 | AA10: =SUM(G$3:G10)/N10 -> 0 | AB10: =SUM(F$3:F10)/O10 -> 0 | AC10: =I10/(N10-N9) -> 1 | AD10: =H10/O10 -> 1 | AE10: =SUM(I$3:I10)/N10 -> 0.5035292097 | AF10: =SUM(H$3:H10)/P10 -> 0.4180327869 | AG10: =K10/(N10-N9) -> 0 | AH10: =J10/O10 -> 0 | AI10: =SUM(K$3:K10)/N10 -> 0.2021601902 | AJ10: =SUM(J$3:J10)/P10 -> 0.3237704918 | AK10: =M10/(N10-N9) -> 0 | AL10: =L10/O10 -> 0 | AM10: =SUM(M$3:M10)/N10 -> 0.2772236737 | AN10: =SUM(L$3:L10)/P10 -> 0.2172131148 | AP10: Day 7 | AQ10: 2021-04-10 | AR10: 59014 | AS10: 0 | AT10: 0 | AU10: 0 | AV10: 0 | AW10: 6 | AX10: 380 | AY10: 3 | AZ10: 50 | BA10: 4 | BB10: 380 | BC10: 34305.98 | BD10: 13 | BE10: 489 | BF10: 70.15537832 | BG10: 62.30769231 | BH10: 4900.854286 | BI10: 0.01372555665 | BJ10: 0 | BK10: 0 | BL10: 0.001237685092 | BM10: 0.3076923077 | BN10: 0 | BO10: 0 | BP10: 0 | BQ10: 0 | BR10: 0.4691358025 | BS10: 0.4615384615 | BT10: 0.5202014343 | BU10: 0.4744376278 | BV10: 0.06172839506 | BW10: 0.2307692308 | BX10: 0.1411622697 | BY10: 0.2740286299 | BZ10: 0.4691358025 | CA10: 0.3076923077 | CB10: 0.337398611 | CC10: 0.2433537832 | CE10: Day 7 | CF10: 2020-11-14 | CG10: 45128 | CJ10: 0 | CK10: 0 | CL10: 4 | CM10: 594 | CN10: 1 | CO10: 25 | CP10: 5 | CQ10: 340 | CR10: 31162.14 | CS10: 10 | CT10: 444 | CU10: 70.185 | CV10: 95.9 | CW10: 4451.734286 | CX10: 0.02125066478 | DC10: 0 | DD10: 0 | DE10: 0 | DF10: 0 | DG10: 0.6193952033 | DH10: 0.4 | DI10: 0.5921361627 | DJ10: 0.5563063063 | DK10: 0.02606882169 | DL10: 0.1 | DM10: 0.1346996708 | DN10: 0.2387387387 | DO10: 0.354535975 | DP10: 0.5 | DQ10: 0.2731641665 | DR10: 0.204954955 | DT10: Day 7 | DU10: 2020-07-21 | DV10: 65854 | DY10: 0 | DZ10: 0 | EA10: 9 | EB10: 592.77 | EC10: 0 | ED10: 0 | EE10: 1 | EF10: 59 | EG10: 41609.33 | EH10: 10 | EI10: 638 | EJ10: 65.21838558 | EK10: 65.177 | EL10: 5944.19 | EM10: 0.009897196829 | ER10: 0 | ES10: 0 | ET10: 0 | EU10: 0 | EV10: 0.9094772696 | EW10: 0.9 | EX10: 0.6740303196 | EY10: 0.5360501567 | EZ10: 0 | FA10: 0 | FB10: 0.0955006966 | FC10: 0.2805642633 | FD10: 0.09052273041 | FE10: 0.1 | FF10: 0.2304689838 | FG10: 0.1833855799 | FI10: Day 7 | FJ10: 2019-10-13 | FK10: 76366 | FN10: 0 | FO10: 0 | FP10: 10 | FQ10: 665 | FR10: 3 | FS10: 40 | FT10: 5 | FU10: 364 | FV10: 20652.81 | FW10: 18 | FX10: 352 | FY10: 58.67275568 | FZ10: 59.38888889 | GA10: 2950.401429 | GB10: 0.01399837624 | GG10: 0 | GH10: 0 | GI10: 0 | GJ10: 0 | GK10: 0.6220767072 | GL10: 0.5555555556 | GM10: 0.5436417611 | GN10: 0.4318181818 | GO10: 0.0374181478 | GP10: 0.1666666667 | GQ10: 0.1759707275 | GR10: 0.3636363636 | GS10: 0.340505145 | GT10: 0.2777777778 | GU10: 0.2803875114 | GV10: 0.2045454545
A11: Day 8 | B11: 2021-10-11 | C11: 52905 | D11: =COUNTIFS('Sanitized Raw Data'!$H:$H,">="&$B11,'Sanitized Raw Data'!$H:$H,"<"&$B12,'Sanitized Raw Data'!$D:$D,"Matching Grant") -> 0 | E11: =SUMIFS('Sanitized Raw Data'!$C:$C,'Sanitized Raw Data'!$H:$H,">="&$B11,'Sanitized Raw Data'!$H:$H,"<"&$B12,'Sanitized Raw Data'!$D:$D,"Matching Grant") -> 0 | F11: =COUNTIFS('Sanitized Raw Data'!$H:$H,">="&$B11,'Sanitized Raw Data'!$H:$H,"<"&$B12,'Sanitized Raw Data'!$D:$D,"Cash") -> 0 | G11: =SUMIFS('Sanitized Raw Data'!$C:$C,'Sanitized Raw Data'!$H:$H,">="&$B11,'Sanitized Raw Data'!$H:$H,"<"&$B12,'Sanitized Raw Data'!$D:$D,"Cash") -> 0 | H11: =COUNTIFS('Sanitized Raw Data'!$H:$H,">="&$B11,'Sanitized Raw Data'!$H:$H,"<"&$B12,'Sanitized Raw Data'!$D:$D,"CC") -> 127 | I11: =SUMIFS('Sanitized Raw Data'!$C:$C,'Sanitized Raw Data'!$H:$H,">="&$B11,'Sanitized Raw Data'!$H:$H,"<"&$B12,'Sanitized Raw Data'!$D:$D,"CC") -> 8738.29 | J11: =COUNTIFS('Sanitized Raw Data'!$H:$H,">="&$B11,'Sanitized Raw Data'!$H:$H,"<"&$B12,'Sanitized Raw Data'!$D:$D,"PayPal") -> 29 | K11: =SUMIFS('Sanitized Raw Data'!$C:$C,'Sanitized Raw Data'!$H:$H,">="&$B11,'Sanitized Raw Data'!$H:$H,"<"&$B12,'Sanitized Raw Data'!$D:$D,"PayPal") -> 1771.09 | L11: =COUNTIFS('Sanitized Raw Data'!$H:$H,">="&$B11,'Sanitized Raw Data'!$H:$H,"<"&$B12,'Sanitized Raw Data'!$D:$D,"Personal Check")+COUNTIFS('Sanitized Raw Data'!$H:$H,">="&$B11,'Sanitized Raw Data'!$H:$H,"<"&$B12,'Sanitized Raw Data'!$D:$D,"ACH Grant Deposit") -> 5 | M11: =SUMIFS('Sanitized Raw Data'!$C:$C,'Sanitized Raw Data'!$H:$H,">="&$B11,'Sanitized Raw Data'!$H:$H,"<"&$B12,'Sanitized Raw Data'!$D:$D,"Personal Check")+SUMIFS('Sanitized Raw Data'!$C:$C,'Sanitized Raw Data'!$H:$H,">="&$B11,'Sanitized Raw Data'!$H:$H,"<"&$B12,'Sanitized Raw Data'!$D:$D,"ACH Grant Deposit") -> 375 | N11: =SUM(G11,M11,K11,I11,N10,E11) -> 42550.11 | O11: =SUM(F11,H11,J11,L11,D11) -> 161 | P11: =SUM(F11,L11,J11,H11,P10,D11) -> 649 | Q11: =N11/P11 -> 65.56257319 | R11: =(SUM(G11,M11,K11,I11,E11))/(SUM(F11,H11,J11,L11,D11)) -> 67.60484472 | S11: =N11/Sheet11!$A8 -> 5318.76375 | T11: =(N11-N10)/C$3 -> 0.2057344296 | U11: =E11/(N11-N10) -> 0 | V11: =D11/O11 -> 0 | W11: =SUM(E$3:E11)/N11 -> 0.01271606583 | X11: =SUM(D$3:D11)/O11 -> 0.1242236025 | Y11: =G11/(N11-N10) -> 0 | Z11: =F11/O11 -> 0 | AA11: =SUM(G$3:G11)/N11 -> 0 | AB11: =SUM(F$3:F11)/O11 -> 0 | AC11: =I11/(N11-N10) -> 0.8028284569 | AD11: =H11/O11 -> 0.7888198758 | AE11: =SUM(I$3:I11)/N11 -> 0.5800903922 | AF11: =SUM(H$3:H11)/P11 -> 0.5100154083 | AG11: =K11/(N11-N10) -> 0.1627185012 | AH11: =J11/O11 -> 0.1801242236 | AI11: =SUM(K$3:K11)/N11 -> 0.1920709488 | AJ11: =SUM(J$3:J11)/P11 -> 0.2881355932 | AK11: =M11/(N11-N10) -> 0.03445304188 | AL11: =L11/O11 -> 0.03105590062 | AM11: =SUM(M$3:M11)/N11 -> 0.2151225931 | AN11: =SUM(L$3:L11)/P11 -> 0.1710323575 | AP11: Day 8 | AQ11: 2021-04-11 | AR11: 59014 | AS11: 0 | AT11: 0 | AU11: 0 | AV11: 0 | AW11: 16 | AX11: 1289.12 | AY11: 4 | AZ11: 50 | BA11: 3 | BB11: 109.01 | BC11: 35754.11 | BD11: 23 | BE11: 512 | BF11: 69.83224609 | BG11: 62.96217391 | BH11: 4469.26375 | BI11: 0.02453875352 | BJ11: 0 | BK11: 0 | BL11: 0.00118755578 | BM11: 0.1739130435 | BN11: 0 | BO11: 0 | BP11: 0 | BQ11: 0 | BR11: 0.8901963222 | BS11: 0.6956521739 | BT11: 0.5351871435 | BU11: 0.484375 | BV11: 0.03452728691 | BW11: 0.1739130435 | BX11: 0.1368432888 | BY11: 0.26953125 | BZ11: 0.07527639093 | CA11: 0.1304347826 | CB11: 0.3267820119 | CC11: 0.23828125 | CE11: Day 8 | CF11: 2020-11-15 | CG11: 45128 | CJ11: 0 | CK11: 0 | CL11: 2 | CM11: 75 | CN11: 3 | CO11: 39.89 | CP11: 0 | CQ11: 0 | CR11: 31277.03 | CS11: 5 | CT11: 449 | CU11: 69.65930958 | CV11: 22.978 | CW11: 3909.62875 | CX11: 0.002545869527 | DC11: 0 | DD11: 0 | DE11: 0 | DF11: 0 | DG11: 0.6527983288 | DH11: 0.4 | DI11: 0.5923589932 | DJ11: 0.5545657016 | DK11: 0.3472016712 | DL11: 0.6 | DM11: 0.135480255 | DN11: 0.2427616927 | DO11: 0 | DP11: 0 | DQ11: 0.2721607518 | DR11: 0.2026726058 | DT11: Day 8 | DU11: 2020-07-22 | DV11: 65854 | DY11: 0 | DZ11: 0 | EA11: 30 | EB11: 1958.91 | EC11: 2 | ED11: 125 | EE11: 3 | EF11: 619.63 | EG11: 44312.87 | EH11: 35 | EI11: 673 | EJ11: 65.843789 | EK11: 77.244 | EL11: 5539.10875 | EM11: 0.04105354269 | ER11: 0 | ES11: 0 | ET11: 0 | EU11: 0 | EV11: 0.7245722275 | EW11: 0.8571428571 | EX11: 0.6771138949 | EY11: 0.5527488856 | EZ11: 0.04623567619 | FA11: 0.05714285714 | FB11: 0.09249502458 | FC11: 0.2689450223 | FD11: 0.2291920963 | FE11: 0.08571428571 | FF11: 0.2303910805 | FG11: 0.1783060921 | FI11: Day 8 | FJ11: 2019-10-14 | FK11: 76366 | FN11: 0 | FO11: 0 | FP11: 81 | FQ11: 6404.52 | FR11: 8 | FS11: 365 | FT11: 13 | FU11: 797.01 | FV11: 28219.34 | FW11: 102 | FX11: 454 | FY11: 62.15713656 | FZ11: 74.18166667 | GA11: 3527.4175 | GB11: 0.09908244507 | GG11: 0 | GH11: 0 | GI11: 0 | GJ11: 0 | GK11: 0.8464276227 | GL11: 0.7941176471 | GM11: 0.624828575 | GN11: 0.513215859 | GO11: 0.04823875674 | GP11: 0.07843137255 | GQ11: 0.1417215994 | GR11: 0.2995594714 | GS11: 0.1053336206 | GT11: 0.1274509804 | GU11: 0.2334498255 | GV11: 0.1872246696
A12: Day 9 | B12: 2021-10-12 | C12: 52905 | D12: =COUNTIFS('Sanitized Raw Data'!$H:$H,">="&$B12,'Sanitized Raw Data'!$H:$H,"<"&$B13,'Sanitized Raw Data'!$D:$D,"Matching Grant") -> 0 | E12: =SUMIFS('Sanitized Raw Data'!$C:$C,'Sanitized Raw Data'!$H:$H,">="&$B12,'Sanitized Raw Data'!$H:$H,"<"&$B13,'Sanitized Raw Data'!$D:$D,"Matching Grant") -> 0 | F12: =COUNTIFS('Sanitized Raw Data'!$H:$H,">="&$B12,'Sanitized Raw Data'!$H:$H,"<"&$B13,'Sanitized Raw Data'!$D:$D,"Cash") -> 0 | G12: =SUMIFS('Sanitized Raw Data'!$C:$C,'Sanitized Raw Data'!$H:$H,">="&$B12,'Sanitized Raw Data'!$H:$H,"<"&$B13,'Sanitized Raw Data'!$D:$D,"Cash") -> 0 | H12: =COUNTIFS('Sanitized Raw Data'!$H:$H,">="&$B12,'Sanitized Raw Data'!$H:$H,"<"&$B13,'Sanitized Raw Data'!$D:$D,"CC") -> 32 | I12: =SUMIFS('Sanitized Raw Data'!$C:$C,'Sanitized Raw Data'!$H:$H,">="&$B12,'Sanitized Raw Data'!$H:$H,"<"&$B13,'Sanitized Raw Data'!$D:$D,"CC") -> 3888.83 | J12: =COUNTIFS('Sanitized Raw Data'!$H:$H,">="&$B12,'Sanitized Raw Data'!$H:$H,"<"&$B13,'Sanitized Raw Data'!$D:$D,"PayPal") -> 6 | K12: =SUMIFS('Sanitized Raw Data'!$C:$C,'Sanitized Raw Data'!$H:$H,">="&$B12,'Sanitized Raw Data'!$H:$H,"<"&$B13,'Sanitized Raw Data'!$D:$D,"PayPal") -> 300 | L12: =COUNTIFS('Sanitized Raw Data'!$H:$H,">="&$B12,'Sanitized Raw Data'!$H:$H,"<"&$B13,'Sanitized Raw Data'!$D:$D,"Personal Check")+COUNTIFS('Sanitized Raw Data'!$H:$H,">="&$B12,'Sanitized Raw Data'!$H:$H,"<"&$B13,'Sanitized Raw Data'!$D:$D,"ACH Grant Deposit") -> 2 | M12: =SUMIFS('Sanitized Raw Data'!$C:$C,'Sanitized Raw Data'!$H:$H,">="&$B12,'Sanitized Raw Data'!$H:$H,"<"&$B13,'Sanitized Raw Data'!$D:$D,"Personal Check")+SUMIFS('Sanitized Raw Data'!$C:$C,'Sanitized Raw Data'!$H:$H,">="&$B12,'Sanitized Raw Data'!$H:$H,"<"&$B13,'Sanitized Raw Data'!$D:$D,"ACH Grant Deposit") -> 805 | N12: =SUM(G12,M12,K12,I12,N11,E12) -> 47543.94 | O12: =SUM(F12,H12,J12,L12,D12) -> 40 | P12: =SUM(F12,L12,J12,H12,P11,D12) -> 689 | Q12: =N12/P12 -> 69.00426705 | R12: =(SUM(G12,M12,K12,I12,E12))/(SUM(F12,H12,J12,L12,D12)) -> 124.84575 | S12: =N12/Sheet11!$A9 -> 5282.66 | T12: =(N12-N11)/C$3 -> 0.09439240147 | U12: =E12/(N12-N11) -> 0 | V12: =D12/O12 -> 0 | W12: =SUM(E$3:E12)/N12 -> 0.01138041988 | X12: =SUM(D$3:D12)/O12 -> 0.5 | Y12: =G12/(N12-N11) -> 0 | Z12: =F12/O12 -> 0 | AA12: =SUM(G$3:G12)/N12 -> 0 | AB12: =SUM(F$3:F12)/O12 -> 0 | AC12: =I12/(N12-N11) -> 0.7787269491 | AD12: =H12/O12 -> 0.8 | AE12: =SUM(I$3:I12)/N12 -> 0.6009544013 | AF12: =SUM(H$3:H12)/P12 -> 0.526850508 | AG12: =K12/(N12-N11) -> 0.06007413148 | AH12: =J12/O12 -> 0.15 | AI12: =SUM(K$3:K12)/N12 -> 0.178206518 | AJ12: =SUM(J$3:J12)/P12 -> 0.2801161103 | AK12: =M12/(N12-N11) -> 0.1611989195 | AL12: =L12/O12 -> 0.05 | AM12: =SUM(M$3:M12)/N12 -> 0.2094586608 | AN12: =SUM(L$3:L12)/P12 -> 0.1640058055 | AP12: Day 9 | AQ12: 2021-04-12 | AR12: 59014 | AS12: 0 | AT12: 0 | AU12: 0 | AV12: 0 | AW12: 122 | AX12: 9823.67 | AY12: 43 | AZ12: 2425.58 | BA12: 14 | BB12: 1615 | BC12: 49618.36 | BD12: 179 | BE12: 691 | BF12: 71.80659913 | BG12: 77.45391061 | BH12: 5513.151111 | BI12: 0.2349315417 | BJ12: 0 | BK12: 0 | BL12: 0.0008557316284 | BM12: 0.02234636872 | BN12: 0 | BO12: 0 | BP12: 0 | BQ12: 0 | BR12: 0.7085612276 | BS12: 0.6815642458 | BT12: 0.5836309382 | BU12: 0.5354558611 | BV12: 0.1749521251 | BW12: 0.2402234637 | BX12: 0.1474915737 | BY12: 0.2619392185 | BZ12: 0.1164866473 | CA12: 0.0782122905 | CB12: 0.2680217565 | CC12: 0.1968162084 | CE12: Day 9 | CF12: 2020-11-16 | CG12: 45128 | CJ12: 0 | CK12: 0 | CL12: 19 | CM12: 900.88 | CN12: 5 | CO12: 264.89 | CP12: 4 | CQ12: 583 | CR12: 33025.8 | CS12: 28 | CT12: 477 | CU12: 69.23647799 | CV12: 62.45607143 | CW12: 3669.533333 | CX12: 0.03875132955 | DC12: 0 | DD12: 0 | DE12: 0 | DF12: 0 | DG12: 0.5151506487 | DH12: 0.6785714286 | DI12: 0.5882706853 | DJ12: 0.5618448637 | DK12: 0.1514721776 | DL12: 0.1785714286 | DM12: 0.1363270534 | DN12: 0.2389937107 | DO12: 0.3333771737 | DP12: 0.1428571429 | DQ12: 0.2754022613 | DR12: 0.1991614256 | DT12: Day 9 | DU12: 2020-07-23 | DV12: 65854 | DY12: 0 | DZ12: 0 | EA12: 60 | EB12: 4166.15 | EC12: 8 | ED12: 390.09 | EE12: 10 | EF12: 764.63 | EG12: 49633.74 | EH12: 78 | EI12: 751 | EJ12: 66.09019973 | EK12: 68.21628205 | EL12: 5514.86 | EM12: 0.08079797734 | ER12: 0 | ES12: 0 | ET12: 0 | EU12: 0 | EV12: 0.7829828581 | EW12: 0.7692307692 | EX12: 0.6884633316 | EY12: 0.5752330226 | EZ12: 0.07331319878 | FA12: 0.1025641026 | FB12: 0.09043868143 | FC12: 0.2516644474 | FD12: 0.1437039432 | FE12: 0.1282051282 | FF12: 0.221097987 | FG12: 0.17310253 | FI12: Day 9 | FJ12: 2019-10-15 | FK12: 76366 | FN12: 0 | FO12: 0 | FP12: 16 | FQ12: 1567 | FR12: 3 | FS12: 60 | FT12: 4 | FU12: 225 | FV12: 30071.34 | FW12: 23 | FX12: 477 | FY12: 63.04264151 | FZ12: 80.52173913 | GA12: 3341.26 | GB12: 0.02425163031 | GG12: 0 | GH12: 0 | GI12: 0 | GJ12: 0 | GK12: 0.846112311 | GL12: 0.6956521739 | GM12: 0.6384567498 | GN12: 0.5220125786 | GO12: 0.03239740821 | GP12: 0.1304347826 | GQ12: 0.1349886636 | GR12: 0.2914046122 | GS12: 0.1214902808 | GT12: 0.1739130435 | GU12: 0.2265545865 | GV12: 0.1865828092
A13: Day 10 | B13: 2021-10-13 | C13: 52905 | D13: =COUNTIFS('Sanitized Raw Data'!$H:$H,">="&$B13,'Sanitized Raw Data'!$H:$H,"<"&$B14,'Sanitized Raw Data'!$D:$D,"Matching Grant") -> 0 | E13: =SUMIFS('Sanitized Raw Data'!$C:$C,'Sanitized Raw Data'!$H:$H,">="&$B13,'Sanitized Raw Data'!$H:$H,"<"&$B14,'Sanitized Raw Data'!$D:$D,"Matching Grant") -> 0 | F13: =COUNTIFS('Sanitized Raw Data'!$H:$H,">="&$B13,'Sanitized Raw Data'!$H:$H,"<"&$B14,'Sanitized Raw Data'!$D:$D,"Cash") -> 0 | G13: =SUMIFS('Sanitized Raw Data'!$C:$C,'Sanitized Raw Data'!$H:$H,">="&$B13,'Sanitized Raw Data'!$H:$H,"<"&$B14,'Sanitized Raw Data'!$D:$D,"Cash") -> 0 | H13: =COUNTIFS('Sanitized Raw Data'!$H:$H,">="&$B13,'Sanitized Raw Data'!$H:$H,"<"&$B14,'Sanitized Raw Data'!$D:$D,"CC") -> 15 | I13: =SUMIFS('Sanitized Raw Data'!$C:$C,'Sanitized Raw Data'!$H:$H,">="&$B13,'Sanitized Raw Data'!$H:$H,"<"&$B14,'Sanitized Raw Data'!$D:$D,"CC") -> 1153.97 | J13: =COUNTIFS('Sanitized Raw Data'!$H:$H,">="&$B13,'Sanitized Raw Data'!$H:$H,"<"&$B14,'Sanitized Raw Data'!$D:$D,"PayPal") -> 3 | K13: =SUMIFS('Sanitized Raw Data'!$C:$C,'Sanitized Raw Data'!$H:$H,">="&$B13,'Sanitized Raw Data'!$H:$H,"<"&$B14,'Sanitized Raw Data'!$D:$D,"PayPal") -> 410 | L13: =COUNTIFS('Sanitized Raw Data'!$H:$H,">="&$B13,'Sanitized Raw Data'!$H:$H,"<"&$B14,'Sanitized Raw Data'!$D:$D,"Personal Check")+COUNTIFS('Sanitized Raw Data'!$H:$H,">="&$B13,'Sanitized Raw Data'!$H:$H,"<"&$B14,'Sanitized Raw Data'!$D:$D,"ACH Grant Deposit") -> 1 | M13: =SUMIFS('Sanitized Raw Data'!$C:$C,'Sanitized Raw Data'!$H:$H,">="&$B13,'Sanitized Raw Data'!$H:$H,"<"&$B14,'Sanitized Raw Data'!$D:$D,"Personal Check")+SUMIFS('Sanitized Raw Data'!$C:$C,'Sanitized Raw Data'!$H:$H,">="&$B13,'Sanitized Raw Data'!$H:$H,"<"&$B14,'Sanitized Raw Data'!$D:$D,"ACH Grant Deposit") -> 64 | N13: =SUM(G13,M13,K13,I13,N12,E13) -> 49171.91 | O13: =SUM(F13,H13,J13,L13,D13) -> 19 | P13: =SUM(F13,L13,J13,H13,P12,D13) -> 708 | Q13: =N13/P13 -> 69.45185028 | R13: =(SUM(G13,M13,K13,I13,E13))/(SUM(F13,H13,J13,L13,D13)) -> 85.68263158 | S13: =N13/Sheet11!$A10 -> 4917.191 | T13: =(N13-N12)/C$3 -> 0.03077157169 | U13: =E13/(N13-N12) -> 0 | V13: =D13/O13 -> 0 | W13: =SUM(E$3:E13)/N13 -> 0.01100364009 | X13: =SUM(D$3:D13)/O13 -> 1.052631579 | Y13: =G13/(N13-N12) -> 0 | Z13: =F13/O13 -> 0 | AA13: =SUM(G$3:G13)/N13 -> 0 | AB13: =SUM(F$3:F13)/O13 -> 0 | AC13: =I13/(N13-N12) -> 0.7088398435 | AD13: =H13/O13 -> 0.7894736842 | AE13: =SUM(I$3:I13)/N13 -> 0.6045262427 | AF13: =SUM(H$3:H13)/P13 -> 0.5338983051 | AG13: =K13/(N13-N12) -> 0.2518473928 | AH13: =J13/O13 -> 0.1578947368 | AI13: =SUM(K$3:K13)/N13 -> 0.1806445997 | AJ13: =SUM(J$3:J13)/P13 -> 0.2768361582 | AK13: =M13/(N13-N12) -> 0.03931276375 | AL13: =L13/O13 -> 0.05263157895 | AM13: =SUM(M$3:M13)/N13 -> 0.2038255175 | AN13: =SUM(L$3:L13)/P13 -> 0.1610169492 | AP13: Day 10 | AQ13: 2021-04-13 | AR13: 59014 | AS13: 0 | AT13: 0 | AU13: 0 | AV13: 0 | AW13: 38 | AX13: 2294.21 | AY13: 14 | AZ13: 653.89 | BA13: 1 | BB13: 150 | BC13: 52716.46 | BD13: 53 | BE13: 744 | BF13: 70.85545699 | BG13: 58.45471698 | BH13: 5271.646 | BI13: 0.05249771241 | BJ13: 0 | BK13: 0 | BL13: 0.000805441033 | BM13: 0.07547169811 | BN13: 0 | BO13: 0 | BP13: 0 | BQ13: 0 | BR13: 0.74052161 | BS13: 0.7169811321 | BT13: 0.5928512651 | BU13: 0.5483870968 | BV13: 0.2110616184 | BW13: 0.2641509434 | BX13: 0.1512275293 | BY13: 0.2620967742 | BZ13: 0.04841677157 | CA13: 0.01886792453 | CB13: 0.2551157646 | CC13: 0.1841397849 | CE13: Day 10 | CF13: 2020-11-17 | CG13: 45128 | CJ13: 0 | CK13: 0 | CL13: 72 | CM13: 7223.77 | CN13: 11 | CO13: 551 | CP13: 2 | CQ13: 250 | CR13: 41050.57 | CS13: 85 | CT13: 562 | CU13: 73.04371886 | CV13: 94.40905882 | CW13: 4105.057 | CX13: 0.1778224162 | DC13: 0 | DD13: 0 | DE13: 0 | DF13: 0 | DG13: 0.9001840551 | DH13: 0.8470588235 | DI13: 0.6492450653 | DJ13: 0.6049822064 | DK13: 0.06866240403 | DL13: 0.1294117647 | DM13: 0.1230996305 | DN13: 0.2224199288 | DO13: 0.03115354085 | DP13: 0.02352941176 | DQ13: 0.2276553042 | DR13: 0.1725978648 | DT13: Day 10 | DU13: 2020-07-24 | DV13: 65854 | DY13: 0 | DZ13: 0 | EA13: 16 | EB13: 2211.33 | EC13: 1 | ED13: 50 | EE13: 2 | EF13: 264.01 | EG13: 52159.08 | EH13: 19 | EI13: 770 | EJ13: 67.73906494 | EK13: 132.9126316 | EL13: 5215.908 | EM13: 0.03834755672 | ER13: 0 | ES13: 0 | ET13: 0 | EU13: 0 | EV13: 0.8756563473 | EW13: 0.8421052632 | EX13: 0.6975264901 | EY13: 0.5818181818 | EZ13: 0.01979931415 | FA13: 0.05263157895 | FB13: 0.08701859772 | FC13: 0.2467532468 | FD13: 0.1045443386 | FE13: 0.1052631579 | FF13: 0.2154549122 | FG13: 0.1714285714 | FI13: Day 10 | FJ13: 2019-10-16 | FK13: 76366 | FN13: 0 | FO13: 0 | FP13: 10 | FQ13: 894 | FR13: 1 | FS13: 50 | FT13: 3 | FU13: 175 | FV13: 31190.34 | FW13: 14 | FX13: 491 | FY13: 63.52411405 | FZ13: 79.92857143 | GA13: 3119.034 | GB13: 0.01465311788 | GG13: 0 | GH13: 0 | GI13: 0 | GJ13: 0 | GK13: 0.7989276139 | GL13: 0.7142857143 | GM13: 0.6442138816 | GN13: 0.5274949084 | GO13: 0.04468275246 | GP13: 0.07142857143 | GQ13: 0.1317488043 | GR13: 0.2851323829 | GS13: 0.1563896336 | GT13: 0.2142857143 | GU13: 0.2240373141 | GV13: 0.1873727088
A14: Day 11 | B14: 2021-10-14 | C14: 52905 | D14: =COUNTIFS('Sanitized Raw Data'!$H:$H,">="&$B14,'Sanitized Raw Data'!$H:$H,"<"&$B15,'Sanitized Raw Data'!$D:$D,"Matching Grant") -> 0 | E14: =SUMIFS('Sanitized Raw Data'!$C:$C,'Sanitized Raw Data'!$H:$H,">="&$B14,'Sanitized Raw Data'!$H:$H,"<"&$B15,'Sanitized Raw Data'!$D:$D,"Matching Grant") -> 0 | F14: =COUNTIFS('Sanitized Raw Data'!$H:$H,">="&$B14,'Sanitized Raw Data'!$H:$H,"<"&$B15,'Sanitized Raw Data'!$D:$D,"Cash") -> 0 | G14: =SUMIFS('Sanitized Raw Data'!$C:$C,'Sanitized Raw Data'!$H:$H,">="&$B14,'Sanitized Raw Data'!$H:$H,"<"&$B15,'Sanitized Raw Data'!$D:$D,"Cash") -> 0 | H14: =COUNTIFS('Sanitized Raw Data'!$H:$H,">="&$B14,'Sanitized Raw Data'!$H:$H,"<"&$B15,'Sanitized Raw Data'!$D:$D,"CC") -> 9 | I14: =SUMIFS('Sanitized Raw Data'!$C:$C,'Sanitized Raw Data'!$H:$H,">="&$B14,'Sanitized Raw Data'!$H:$H,"<"&$B15,'Sanitized Raw Data'!$D:$D,"CC") -> 530 | J14: =COUNTIFS('Sanitized Raw Data'!$H:$H,">="&$B14,'Sanitized Raw Data'!$H:$H,"<"&$B15,'Sanitized Raw Data'!$D:$D,"PayPal") -> 0 | K14: =SUMIFS('Sanitized Raw Data'!$C:$C,'Sanitized Raw Data'!$H:$H,">="&$B14,'Sanitized Raw Data'!$H:$H,"<"&$B15,'Sanitized Raw Data'!$D:$D,"PayPal") -> 0 | L14: =COUNTIFS('Sanitized Raw Data'!$H:$H,">="&$B14,'Sanitized Raw Data'!$H:$H,"<"&$B15,'Sanitized Raw Data'!$D:$D,"Personal Check")+COUNTIFS('Sanitized Raw Data'!$H:$H,">="&$B14,'Sanitized Raw Data'!$H:$H,"<"&$B15,'Sanitized Raw Data'!$D:$D,"ACH Grant Deposit") -> 0 | M14: =SUMIFS('Sanitized Raw Data'!$C:$C,'Sanitized Raw Data'!$H:$H,">="&$B14,'Sanitized Raw Data'!$H:$H,"<"&$B15,'Sanitized Raw Data'!$D:$D,"Personal Check")+SUMIFS('Sanitized Raw Data'!$C:$C,'Sanitized Raw Data'!$H:$H,">="&$B14,'Sanitized Raw Data'!$H:$H,"<"&$B15,'Sanitized Raw Data'!$D:$D,"ACH Grant Deposit") -> 0 | N14: =SUM(G14,M14,K14,I14,N13,E14) -> 49701.91 | O14: =SUM(F14,H14,J14,L14,D14) -> 9 | P14: =SUM(F14,L14,J14,H14,P13,D14) -> 717 | Q14: =N14/P14 -> 69.31926081 | R14: =(SUM(G14,M14,K14,I14,E14))/(SUM(F14,H14,J14,L14,D14)) -> 58.88888889 | S14: =N14/Sheet11!$A11 -> 4518.355455 | T14: =(N14-N13)/C$3 -> 0.01001795671 | U14: =E14/(N14-N13) -> 0 | V14: =D14/O14 -> 0 | W14: =SUM(E$3:E14)/N14 -> 0.01088630195 | X14: =SUM(D$3:D14)/O14 -> 2.222222222 | Y14: =G14/(N14-N13) -> 0 | Z14: =F14/O14 -> 0 | AA14: =SUM(G$3:G14)/N14 -> 0 | AB14: =SUM(F$3:F14)/O14 -> 0 | AC14: =I14/(N14-N13) -> 1 | AD14: =H14/O14 -> 1 | AE14: =SUM(I$3:I14)/N14 -> 0.6087434064 | AF14: =SUM(H$3:H14)/P14 -> 0.539748954 | AG14: =K14/(N14-N13) -> 0 | AH14: =J14/O14 -> 0 | AI14: =SUM(K$3:K14)/N14 -> 0.1787182827 | AJ14: =SUM(J$3:J14)/P14 -> 0.2733612273 | AK14: =M14/(N14-N13) -> 0 | AL14: =L14/O14 -> 0 | AM14: =SUM(M$3:M14)/N14 -> 0.2016520089 | AN14: =SUM(L$3:L14)/P14 -> 0.1589958159 | AP14: Day 11 | AQ14: 2021-04-14 | AR14: 59014 | AS14: 0 | AT14: 0 | AU14: 0 | AV14: 0 | AW14: 11 | AX14: 1614.77 | AY14: 3 | AZ14: 65 | BA14: 2 | BB14: 115 | BC14: 54511.23 | BD14: 16 | BE14: 760 | BF14: 71.72530263 | BG14: 112.173125 | BH14: 4955.566364 | BI14: 0.03041261396 | BJ14: 0 | BK14: 0 | BL14: 0.000778922068 | BM14: 0.25 | BN14: 0 | BO14: 0 | BP14: 0 | BQ14: 0 | BR14: 0.8997085978 | BS14: 0.6875 | BT14: 0.6029544738 | BU14: 0.5513157895 | BV14: 0.0362163397 | BW14: 0.1875 | BX14: 0.1474408117 | BY14: 0.2605263158 | BZ14: 0.06407506254 | CA14: 0.125 | CB14: 0.2488257924 | CC14: 0.1828947368 | CE14: Day 11 | CF14: 2020-11-18 | CG14: 45128 | CJ14: 0 | CK14: 0 | CL14: 16 | CM14: 1214.77 | CN14: 4 | CO14: 205 | CP14: 1 | CQ14: 25 | CR14: 42495.34 | CS14: 21 | CT14: 583 | CU14: 72.89080617 | CV14: 68.79857143 | CW14: 3863.212727 | CX14: 0.0320149353 | DC14: 0 | DD14: 0 | DE14: 0 | DF14: 0 | DG14: 0.8408051108 | DH14: 0.7619047619 | DI14: 0.6557577843 | DJ14: 0.6106346484 | DK14: 0.1418910969 | DL14: 0.1904761905 | DM14: 0.1237385087 | DN14: 0.2212692967 | DO14: 0.0173037923 | DP14: 0.04761904762 | DQ14: 0.220503707 | DR14: 0.1680960549 | DT14: Day 11 | DU14: 2020-07-25 | DV14: 65854 | DY14: 0 | DZ14: 0 | EA14: 1 | EB14: 50 | EC14: 0 | ED14: 0 | EE14: 1 | EF14: 50 | EG14: 52259.08 | EH14: 2 | EI14: 772 | EJ14: 67.69310881 | EK14: 50 | EL14: 4750.825455 | EM14: 0.001518510645 | ER14: 0 | ES14: 0 | ET14: 0 | EU14: 0 | EV14: 0.5 | EW14: 0.5 | EX14: 0.6971485147 | EY14: 0.5816062176 | EZ14: 0 | FA14: 0 | FB14: 0.08685208389 | FC14: 0.2461139896 | FD14: 0.5 | FE14: 0.5 | FF14: 0.2159994014 | FG14: 0.1722797927 | FI14: Day 11 | FJ14: 2019-10-17 | FK14: 76366 | FN14: 0 | FO14: 0 | FP14: 1 | FQ14: 10 | FR14: 3 | FS14: 150 | FT14: 1 | FU14: 100 | FV14: 31450.34 | FW14: 5 | FX14: 496 | FY14: 63.40794355 | FZ14: 52 | GA14: 2859.121818 | GB14: 0.003404656523 | GG14: 0 | GH14: 0 | GI14: 0 | GJ14: 0 | GK14: 0.03846153846 | GL14: 0.2 | GM14: 0.6392061262 | GN14: 0.5241935484 | GO14: 0.5769230769 | GP14: 0.6 | GQ14: 0.1354290605 | GR14: 0.2883064516 | GS14: 0.3846153846 | GT14: 0.2 | GU14: 0.2253648132 | GV14: 0.1875
A15: Day 12 | B15: 2021-10-15 | C15: 52905 | D15: =COUNTIFS('Sanitized Raw Data'!$H:$H,">="&$B15,'Sanitized Raw Data'!$H:$H,"<"&$B16,'Sanitized Raw Data'!$D:$D,"Matching Grant") -> 0 | E15: =SUMIFS('Sanitized Raw Data'!$C:$C,'Sanitized Raw Data'!$H:$H,">="&$B15,'Sanitized Raw Data'!$H:$H,"<"&$B16,'Sanitized Raw Data'!$D:$D,"Matching Grant") -> 0 | F15: =COUNTIFS('Sanitized Raw Data'!$H:$H,">="&$B15,'Sanitized Raw Data'!$H:$H,"<"&$B16,'Sanitized Raw Data'!$D:$D,"Cash") -> 0 | G15: =SUMIFS('Sanitized Raw Data'!$C:$C,'Sanitized Raw Data'!$H:$H,">="&$B15,'Sanitized Raw Data'!$H:$H,"<"&$B16,'Sanitized Raw Data'!$D:$D,"Cash") -> 0 | H15: =COUNTIFS('Sanitized Raw Data'!$H:$H,">="&$B15,'Sanitized Raw Data'!$H:$H,"<"&$B16,'Sanitized Raw Data'!$D:$D,"CC") -> 5 | I15: =SUMIFS('Sanitized Raw Data'!$C:$C,'Sanitized Raw Data'!$H:$H,">="&$B15,'Sanitized Raw Data'!$H:$H,"<"&$B16,'Sanitized Raw Data'!$D:$D,"CC") -> 410.77 | J15: =COUNTIFS('Sanitized Raw Data'!$H:$H,">="&$B15,'Sanitized Raw Data'!$H:$H,"<"&$B16,'Sanitized Raw Data'!$D:$D,"PayPal") -> 0 | K15: =SUMIFS('Sanitized Raw Data'!$C:$C,'Sanitized Raw Data'!$H:$H,">="&$B15,'Sanitized Raw Data'!$H:$H,"<"&$B16,'Sanitized Raw Data'!$D:$D,"PayPal") -> 0 | L15: =COUNTIFS('Sanitized Raw Data'!$H:$H,">="&$B15,'Sanitized Raw Data'!$H:$H,"<"&$B16,'Sanitized Raw Data'!$D:$D,"Personal Check")+COUNTIFS('Sanitized Raw Data'!$H:$H,">="&$B15,'Sanitized Raw Data'!$H:$H,"<"&$B16,'Sanitized Raw Data'!$D:$D,"ACH Grant Deposit") -> 0 | M15: =SUMIFS('Sanitized Raw Data'!$C:$C,'Sanitized Raw Data'!$H:$H,">="&$B15,'Sanitized Raw Data'!$H:$H,"<"&$B16,'Sanitized Raw Data'!$D:$D,"Personal Check")+SUMIFS('Sanitized Raw Data'!$C:$C,'Sanitized Raw Data'!$H:$H,">="&$B15,'Sanitized Raw Data'!$H:$H,"<"&$B16,'Sanitized Raw Data'!$D:$D,"ACH Grant Deposit") -> 0 | N15: =SUM(G15,M15,K15,I15,N14,E15) -> 50112.68 | O15: =SUM(F15,H15,J15,L15,D15) -> 5 | P15: =SUM(F15,L15,J15,H15,P14,D15) -> 722 | Q15: =N15/P15 -> 69.40814404 | R15: =(SUM(G15,M15,K15,I15,E15))/(SUM(F15,H15,J15,L15,D15)) -> 82.154 | S15: =N15/Sheet11!$A12 -> 4176.056667 | T15: =(N15-N14)/C$3 -> 0.00776429449 | U15: =E15/(N15-N14) -> 0 | V15: =D15/O15 -> 0 | W15: =SUM(E$3:E15)/N15 -> 0.01079706773 | X15: =SUM(D$3:D15)/O15 -> 4 | Y15: =G15/(N15-N14) -> 0 | Z15: =F15/O15 -> 0 | AA15: =SUM(G$3:G15)/N15 -> 0 | AB15: =SUM(F$3:F15)/O15 -> 0 | AC15: =I15/(N15-N14) -> 1 | AD15: =H15/O15 -> 1 | AE15: =SUM(I$3:I15)/N15 -> 0.6119505083 | AF15: =SUM(H$3:H15)/P15 -> 0.5429362881 | AG15: =K15/(N15-N14) -> 0 | AH15: =J15/O15 -> 0 | AI15: =SUM(K$3:K15)/N15 -> 0.1772533419 | AJ15: =SUM(J$3:J15)/P15 -> 0.271468144 | AK15: =M15/(N15-N14) -> 0 | AL15: =L15/O15 -> 0 | AM15: =SUM(M$3:M15)/N15 -> 0.1999990821 | AN15: =SUM(L$3:L15)/P15 -> 0.1578947368 | AP15: Day 12 | AQ15: 2021-04-15 | AR15: 59014 | AS15: 0 | AT15: 0 | AU15: 0 | AV15: 0 | AW15: 11 | AX15: 819 | AY15: 2 | AZ15: 206.3 | BA15: 0 | BB15: 0 | BC15: 55536.53 | BD15: 13 | BE15: 773 | BF15: 71.84544631 | BG15: 78.86923077 | BH15: 4628.044167 | BI15: 0.01737384349 | BJ15: 0 | BK15: 0 | BL15: 0.000764541825 | BM15: 0.3076923077 | BN15: 0 | BO15: 0 | BP15: 0 | BQ15: 0 | BR15: 0.7987905979 | BS15: 0.8461538462 | BT15: 0.6065699459 | BU15: 0.5562742561 | BV15: 0.2012094021 | BW15: 0.1538461538 | BX15: 0.1484334725 | BY15: 0.2587322122 | BZ15: 0 | CA15: 0 | CB15: 0.2442320397 | CC15: 0.1798188875 | CE15: Day 12 | CF15: 2020-11-19 | CG15: 45128 | CJ15: 0 | CK15: 0 | CL15: 6 | CM15: 975 | CN15: 3 | CO15: 275 | CP15: 0 | CQ15: 0 | CR15: 43745.34 | CS15: 9 | CT15: 592 | CU15: 73.89415541 | CV15: 138.8888889 | CW15: 3645.445 | CX15: 0.02769898954 | DC15: 0 | DD15: 0 | DE15: 0 | DF15: 0 | DG15: 0.78 | DH15: 0.6666666667 | DI15: 0.65930794 | DJ15: 0.6114864865 | DK15: 0.22 | DL15: 0.3333333333 | DM15: 0.12648913 | DN15: 0.222972973 | DO15: 0 | DP15: 0 | DQ15: 0.21420293 | DR15: 0.1655405405 | DT15: Day 12 | DU15: 2020-07-26 | DV15: 65854 | DY15: 0 | DZ15: 0 | EA15: 5 | EB15: 250 | EC15: 0 | ED15: 0 | EE15: 0 | EF15: 0 | EG15: 52509.08 | EH15: 5 | EI15: 777 | EJ15: 67.57925354 | EK15: 50 | EL15: 4375.756667 | EM15: 0.003796276612 | ER15: 0 | ES15: 0 | ET15: 0 | EU15: 0 | EV15: 1 | EW15: 1 | EX15: 0.6985904152 | EY15: 0.5842985843 | EZ15: 0 | FA15: 0 | FB15: 0.08643857405 | FC15: 0.2445302445 | FD15: 0 | FE15: 0 | FF15: 0.2149710107 | FG15: 0.1711711712 | FI15: Day 12 | FJ15: 2019-10-18 | FK15: 76366 | FN15: 0 | FO15: 0 | FP15: 5 | FQ15: 400.2 | FR15: 0 | FS15: 0 | FT15: 3 | FU15: 158.63 | FV15: 32009.17 | FW15: 8 | FX15: 504 | FY15: 63.51025794 | FZ15: 69.85375 | GA15: 2667.430833 | GB15: 0.007317785402 | GG15: 0 | GH15: 0 | GI15: 0 | GJ15: 0 | GK15: 0.7161390763 | GL15: 0.625 | GM15: 0.6405492551 | GN15: 0.5257936508 | GO15: 0 | GP15: 0 | GQ15: 0.1330646812 | GR15: 0.2837301587 | GS15: 0.2838609237 | GT15: 0.375 | GU15: 0.2263860637 | GV15: 0.1904761905
A16: Day 13 | B16: 2021-10-16 | C16: 52905 | D16: =COUNTIFS('Sanitized Raw Data'!$H:$H,">="&$B16,'Sanitized Raw Data'!$H:$H,"<"&$B17,'Sanitized Raw Data'!$D:$D,"Matching Grant") -> 0 | E16: =SUMIFS('Sanitized Raw Data'!$C:$C,'Sanitized Raw Data'!$H:$H,">="&$B16,'Sanitized Raw Data'!$H:$H,"<"&$B17,'Sanitized Raw Data'!$D:$D,"Matching Grant") -> 0 | F16: =COUNTIFS('Sanitized Raw Data'!$H:$H,">="&$B16,'Sanitized Raw Data'!$H:$H,"<"&$B17,'Sanitized Raw Data'!$D:$D,"Cash") -> 0 | G16: =SUMIFS('Sanitized Raw Data'!$C:$C,'Sanitized Raw Data'!$H:$H,">="&$B16,'Sanitized Raw Data'!$H:$H,"<"&$B17,'Sanitized Raw Data'!$D:$D,"Cash") -> 0 | H16: =COUNTIFS('Sanitized Raw Data'!$H:$H,">="&$B16,'Sanitized Raw Data'!$H:$H,"<"&$B17,'Sanitized Raw Data'!$D:$D,"CC") -> 2 | I16: =SUMIFS('Sanitized Raw Data'!$C:$C,'Sanitized Raw Data'!$H:$H,">="&$B16,'Sanitized Raw Data'!$H:$H,"<"&$B17,'Sanitized Raw Data'!$D:$D,"CC") -> 60 | J16: =COUNTIFS('Sanitized Raw Data'!$H:$H,">="&$B16,'Sanitized Raw Data'!$H:$H,"<"&$B17,'Sanitized Raw Data'!$D:$D,"PayPal") -> 0 | K16: =SUMIFS('Sanitized Raw Data'!$C:$C,'Sanitized Raw Data'!$H:$H,">="&$B16,'Sanitized Raw Data'!$H:$H,"<"&$B17,'Sanitized Raw Data'!$D:$D,"PayPal") -> 0 | L16: =COUNTIFS('Sanitized Raw Data'!$H:$H,">="&$B16,'Sanitized Raw Data'!$H:$H,"<"&$B17,'Sanitized Raw Data'!$D:$D,"Personal Check")+COUNTIFS('Sanitized Raw Data'!$H:$H,">="&$B16,'Sanitized Raw Data'!$H:$H,"<"&$B17,'Sanitized Raw Data'!$D:$D,"ACH Grant Deposit") -> 0 | M16: =SUMIFS('Sanitized Raw Data'!$C:$C,'Sanitized Raw Data'!$H:$H,">="&$B16,'Sanitized Raw Data'!$H:$H,"<"&$B17,'Sanitized Raw Data'!$D:$D,"Personal Check")+SUMIFS('Sanitized Raw Data'!$C:$C,'Sanitized Raw Data'!$H:$H,">="&$B16,'Sanitized Raw Data'!$H:$H,"<"&$B17,'Sanitized Raw Data'!$D:$D,"ACH Grant Deposit") -> 0 | N16: =SUM(G16,M16,K16,I16,N15,E16) -> 50172.68 | O16: =SUM(F16,H16,J16,L16,D16) -> 2 | P16: =SUM(F16,L16,J16,H16,P15,D16) -> 724 | Q16: =N16/P16 -> 69.29928177 | R16: =(SUM(G16,M16,K16,I16,E16))/(SUM(F16,H16,J16,L16,D16)) -> 30 | S16: =N16/Sheet11!$A13 -> 3859.436923 | T16: =(N16-N15)/C$3 -> 0.001134108307 | U16: =E16/(N16-N15) -> 0 | V16: =D16/O16 -> 0 | W16: =SUM(E$3:E16)/N16 -> 0.01078415584 | X16: =SUM(D$3:D16)/O16 -> 10 | Y16: =G16/(N16-N15) -> 0 | Z16: =F16/O16 -> 0 | AA16: =SUM(G$3:G16)/N16 -> 0 | AB16: =SUM(F$3:F16)/O16 -> 0 | AC16: =I16/(N16-N15) -> 1 | AD16: =H16/O16 -> 1 | AE16: =SUM(I$3:I16)/N16 -> 0.6124145651 | AF16: =SUM(H$3:H16)/P16 -> 0.544198895 | AG16: =K16/(N16-N15) -> 0 | AH16: =J16/O16 -> 0 | AI16: =SUM(K$3:K16)/N16 -> 0.1770413699 | AJ16: =SUM(J$3:J16)/P16 -> 0.270718232 | AK16: =M16/(N16-N15) -> 0 | AL16: =L16/O16 -> 0 | AM16: =SUM(M$3:M16)/N16 -> 0.1997599092 | AN16: =SUM(L$3:L16)/P16 -> 0.1574585635 | AP16: Day 13 | AQ16: 2021-04-16 | AR16: 59014 | AS16: 0 | AT16: 0 | AU16: 0 | AV16: 0 | AW16: 4 | AX16: 84.73 | AY16: 0 | AZ16: 0 | BA16: 0 | BB16: 0 | BC16: 55621.26 | BD16: 4 | BE16: 777 | BF16: 71.5846332 | BG16: 21.1825 | BH16: 4278.558462 | BI16: 0.001435761006 | BJ16: 0 | BK16: 0 | BL16: 0.0007633771691 | BM16: 1 | BN16: 0 | BO16: 0 | BP16: 0 | BQ16: 0 | BR16: 1 | BS16: 1 | BT16: 0.607169273 | BU16: 0.5585585586 | BV16: 0 | BW16: 0 | BX16: 0.1482073581 | BY16: 0.2574002574 | BZ16: 0 | CA16: 0 | CB16: 0.2438599917 | CC16: 0.1788931789 | CE16: Day 13 | CF16: 2020-11-20 | CG16: 45128 | CJ16: 0 | CK16: 0 | CL16: 11 | CM16: 1021.31 | CN16: 3 | CO16: 155 | CP16: 1 | CQ16: 50 | CR16: 44971.65 | CS16: 15 | CT16: 607 | CU16: 74.0883855 | CV16: 81.754 | CW16: 3459.357692 | CX16: 0.02717403829 | DC16: 0 | DD16: 0 | DE16: 0 | DF16: 0 | DG16: 0.8328318288 | DH16: 0.7333333333 | DI16: 0.6640396783 | DJ16: 0.6144975288 | DK16: 0.1263954465 | DL16: 0.2 | DM16: 0.1264865754 | DN16: 0.2224052718 | DO16: 0.04077272468 | DP16: 0.06666666667 | DQ16: 0.2094737462 | DR16: 0.1630971993 | DT16: Day 13 | DU16: 2020-07-27 | DV16: 65854 | DY16: 0 | DZ16: 0 | EA16: 5 | EB16: 275 | EC16: 2 | ED16: 45 | EE16: 4 | EF16: 414 | EG16: 53243.08 | EH16: 11 | EI16: 788 | EJ16: 67.56736041 | EK16: 66.72727273 | EL16: 4095.621538 | EM16: 0.01114586813 | ER16: 0 | ES16: 0 | ET16: 0 | EU16: 0 | EV16: 0.3746594005 | EW16: 0.4545454545 | EX16: 0.6941247576 | EY16: 0.5824873096 | EZ16: 0.06130790191 | FA16: 0.1818181818 | FB16: 0.0860921269 | FC16: 0.2436548223 | FD16: 0.5640326975 | FE16: 0.3636363636 | FF16: 0.2197831155 | FG16: 0.173857868 | FI16: Day 13 | FJ16: 2019-10-19 | FK16: 76366 | FN16: 0 | FO16: 0 | FP16: 5 | FQ16: 304 | FR16: 2 | FS16: 75 | FT16: 1 | FU16: 50 | FV16: 32438.17 | FW16: 8 | FX16: 512 | FY16: 63.35580078 | FZ16: 53.625 | GA16: 2495.243846 | GB16: 0.005617683262 | GG16: 0 | GH16: 0 | GI16: 0 | GJ16: 0 | GK16: 0.7086247086 | GL16: 0.625 | GM16: 0.6414495639 | GN16: 0.52734375 | GO16: 0.1748251748 | GP16: 0.25 | GQ16: 0.1336169704 | GR16: 0.283203125 | GS16: 0.1165501166 | GT16: 0.125 | GU16: 0.2249334657 | GV16: 0.189453125
A17: Day 14 | B17: 2021-10-17 | C17: 52905 | D17: =COUNTIFS('Sanitized Raw Data'!$H:$H,">="&$B17,'Sanitized Raw Data'!$H:$H,"<"&$B18,'Sanitized Raw Data'!$D:$D,"Matching Grant") -> 0 | E17: =SUMIFS('Sanitized Raw Data'!$C:$C,'Sanitized Raw Data'!$H:$H,">="&$B17,'Sanitized Raw Data'!$H:$H,"<"&$B18,'Sanitized Raw Data'!$D:$D,"Matching Grant") -> 0 | F17: =COUNTIFS('Sanitized Raw Data'!$H:$H,">="&$B17,'Sanitized Raw Data'!$H:$H,"<"&$B18,'Sanitized Raw Data'!$D:$D,"Cash") -> 0 | G17: =SUMIFS('Sanitized Raw Data'!$C:$C,'Sanitized Raw Data'!$H:$H,">="&$B17,'Sanitized Raw Data'!$H:$H,"<"&$B18,'Sanitized Raw Data'!$D:$D,"Cash") -> 0 | H17: =COUNTIFS('Sanitized Raw Data'!$H:$H,">="&$B17,'Sanitized Raw Data'!$H:$H,"<"&$B18,'Sanitized Raw Data'!$D:$D,"CC") -> 5 | I17: =SUMIFS('Sanitized Raw Data'!$C:$C,'Sanitized Raw Data'!$H:$H,">="&$B17,'Sanitized Raw Data'!$H:$H,"<"&$B18,'Sanitized Raw Data'!$D:$D,"CC") -> 203 | J17: =COUNTIFS('Sanitized Raw Data'!$H:$H,">="&$B17,'Sanitized Raw Data'!$H:$H,"<"&$B18,'Sanitized Raw Data'!$D:$D,"PayPal") -> 0 | K17: =SUMIFS('Sanitized Raw Data'!$C:$C,'Sanitized Raw Data'!$H:$H,">="&$B17,'Sanitized Raw Data'!$H:$H,"<"&$B18,'Sanitized Raw Data'!$D:$D,"PayPal") -> 0 | L17: =COUNTIFS('Sanitized Raw Data'!$H:$H,">="&$B17,'Sanitized Raw Data'!$H:$H,"<"&$B18,'Sanitized Raw Data'!$D:$D,"Personal Check")+COUNTIFS('Sanitized Raw Data'!$H:$H,">="&$B17,'Sanitized Raw Data'!$H:$H,"<"&$B18,'Sanitized Raw Data'!$D:$D,"ACH Grant Deposit") -> 0 | M17: =SUMIFS('Sanitized Raw Data'!$C:$C,'Sanitized Raw Data'!$H:$H,">="&$B17,'Sanitized Raw Data'!$H:$H,"<"&$B18,'Sanitized Raw Data'!$D:$D,"Personal Check")+SUMIFS('Sanitized Raw Data'!$C:$C,'Sanitized Raw Data'!$H:$H,">="&$B17,'Sanitized Raw Data'!$H:$H,"<"&$B18,'Sanitized Raw Data'!$D:$D,"ACH Grant Deposit") -> 0 | N17: =SUM(G17,M17,K17,I17,N16,E17) -> 50375.68 | O17: =SUM(F17,H17,J17,L17,D17) -> 5 | P17: =SUM(F17,L17,J17,H17,P16,D17) -> 729 | Q17: =N17/P17 -> 69.1024417 | R17: =(SUM(G17,M17,K17,I17,E17))/(SUM(F17,H17,J17,L17,D17)) -> 40.6 | S17: =N17/Sheet11!$A14 -> 3598.262857 | T17: =(N17-N16)/C$3 -> 0.00383706644 | U17: =E17/(N17-N16) -> 0 | V17: =D17/O17 -> 0 | W17: =SUM(E$3:E17)/N17 -> 0.01074069869 | X17: =SUM(D$3:D17)/O17 -> 4 | Y17: =G17/(N17-N16) -> 0 | Z17: =F17/O17 -> 0 | AA17: =SUM(G$3:G17)/N17 -> 0 | AB17: =SUM(F$3:F17)/O17 -> 0 | AC17: =I17/(N17-N16) -> 1 | AD17: =H17/O17 -> 1 | AE17: =SUM(I$3:I17)/N17 -> 0.6139764267 | AF17: =SUM(H$3:H17)/P17 -> 0.5473251029 | AG17: =K17/(N17-N16) -> 0 | AH17: =J17/O17 -> 0 | AI17: =SUM(K$3:K17)/N17 -> 0.1763279424 | AJ17: =SUM(J$3:J17)/P17 -> 0.268861454 | AK17: =M17/(N17-N16) -> 0 | AL17: =L17/O17 -> 0 | AM17: =SUM(M$3:M17)/N17 -> 0.1989549322 | AN17: =SUM(L$3:L17)/P17 -> 0.1563786008 | AP17: Day 14 | AQ17: 2021-04-17 | AR17: 59014 | AS17: 0 | AT17: 0 | AU17: 0 | AV17: 0 | AW17: 3 | AX17: 203 | AY17: 0 | AZ17: 0 | BA17: 0 | BB17: 0 | BC17: 55824.26 | BD17: 3 | BE17: 780 | BF17: 71.5695641 | BG17: 67.66666667 | BH17: 3987.447143 | BI17: 0.003439861728 | BJ17: 0 | BK17: 0 | BL17: 0.0007606012153 | BM17: 1.333333333 | BN17: 0 | BO17: 0 | BP17: 0 | BQ17: 0 | BR17: 1 | BS17: 1 | BT17: 0.6085977674 | BU17: 0.5602564103 | BV17: 0 | BW17: 0 | BX17: 0.1476684151 | BY17: 0.2564102564 | BZ17: 0 | CA17: 0 | CB17: 0.2429732163 | CC17: 0.1782051282 | CE17: Day 14 | CF17: 2020-11-21 | CG17: 45128 | CJ17: 0 | CK17: 0 | CL17: 3 | CM17: 200 | CN17: 0 | CO17: 0 | CP17: 0 | CQ17: 0 | CR17: 45171.65 | CS17: 3 | CT17: 610 | CU17: 74.05188525 | CV17: 66.66666667 | CW17: 3226.546429 | CX17: 0.004431838327 | DC17: 0 | DD17: 0 | DE17: 0 | DF17: 0 | DG17: 1 | DH17: 1 | DI17: 0.6655271614 | DJ17: 0.6163934426 | DK17: 0 | DL17: 0 | DM17: 0.1259265491 | DN17: 0.2213114754 | DO17: 0 | DP17: 0 | DQ17: 0.2085462895 | DR17: 0.162295082 | DT17: Day 14 | DU17: 2020-07-28 | DV17: 65854 | DY17: 0 | DZ17: 0 | EA17: 15 | EB17: 1122.63 | EC17: 1 | ED17: 20 | EE17: 1 | EF17: 25 | EG17: 54410.71 | EH17: 17 | EI17: 805 | EJ17: 67.5909441 | EK17: 68.68411765 | EL17: 3886.479286 | EM17: 0.01773058584 | ER17: 0 | ES17: 0 | ET17: 0 | EU17: 0 | EV17: 0.9614603941 | EW17: 0.8823529412 | EX17: 0.6998616633 | EY17: 0.5888198758 | EZ17: 0.01712871372 | FA17: 0.05882352941 | FB17: 0.08461220227 | FC17: 0.2397515528 | FD17: 0.02141089215 | FE17: 0.05882352941 | FF17: 0.2155261345 | FG17: 0.1714285714 | FI17: Day 14 | FJ17: 2019-10-20 | FK17: 76366 | FN17: 0 | FO17: 0 | FP17: 44 | FQ17: 3830.89 | FR17: 12 | FS17: 599.79 | FT17: 3 | FU17: 125 | FV17: 36993.85 | FW17: 59 | FX17: 571 | FY17: 64.78782837 | FZ17: 77.21491525 | GA17: 2642.417857 | GB17: 0.05965586779 | GG17: 0 | GH17: 0 | GI17: 0 | GJ17: 0 | GK17: 0.8409041021 | GL17: 0.7457627119 | GM17: 0.666011783 | GN17: 0.5499124343 | GO17: 0.131657623 | GP17: 0.2033898305 | GQ17: 0.1333756827 | GR17: 0.2749562172 | GS17: 0.02743827486 | GT17: 0.05084745763 | GU17: 0.2006125342 | GV17: 0.1751313485
A18: Day 15 | B18: 2021-10-18 | C18: 52905 | D18: =COUNTIFS('Sanitized Raw Data'!$H:$H,">="&$B18,'Sanitized Raw Data'!$H:$H,"<"&$B19,'Sanitized Raw Data'!$D:$D,"Matching Grant") -> 0 | E18: =SUMIFS('Sanitized Raw Data'!$C:$C,'Sanitized Raw Data'!$H:$H,">="&$B18,'Sanitized Raw Data'!$H:$H,"<"&$B19,'Sanitized Raw Data'!$D:$D,"Matching Grant") -> 0 | F18: =COUNTIFS('Sanitized Raw Data'!$H:$H,">="&$B18,'Sanitized Raw Data'!$H:$H,"<"&$B19,'Sanitized Raw Data'!$D:$D,"Cash") -> 0 | G18: =SUMIFS('Sanitized Raw Data'!$C:$C,'Sanitized Raw Data'!$H:$H,">="&$B18,'Sanitized Raw Data'!$H:$H,"<"&$B19,'Sanitized Raw Data'!$D:$D,"Cash") -> 0 | H18: =COUNTIFS('Sanitized Raw Data'!$H:$H,">="&$B18,'Sanitized Raw Data'!$H:$H,"<"&$B19,'Sanitized Raw Data'!$D:$D,"CC") -> 44 | I18: =SUMIFS('Sanitized Raw Data'!$C:$C,'Sanitized Raw Data'!$H:$H,">="&$B18,'Sanitized Raw Data'!$H:$H,"<"&$B19,'Sanitized Raw Data'!$D:$D,"CC") -> 2612.89 | J18: =COUNTIFS('Sanitized Raw Data'!$H:$H,">="&$B18,'Sanitized Raw Data'!$H:$H,"<"&$B19,'Sanitized Raw Data'!$D:$D,"PayPal") -> 0 | K18: =SUMIFS('Sanitized Raw Data'!$C:$C,'Sanitized Raw Data'!$H:$H,">="&$B18,'Sanitized Raw Data'!$H:$H,"<"&$B19,'Sanitized Raw Data'!$D:$D,"PayPal") -> 0 | L18: =COUNTIFS('Sanitized Raw Data'!$H:$H,">="&$B18,'Sanitized Raw Data'!$H:$H,"<"&$B19,'Sanitized Raw Data'!$D:$D,"Personal Check")+COUNTIFS('Sanitized Raw Data'!$H:$H,">="&$B18,'Sanitized Raw Data'!$H:$H,"<"&$B19,'Sanitized Raw Data'!$D:$D,"ACH Grant Deposit") -> 0 | M18: =SUMIFS('Sanitized Raw Data'!$C:$C,'Sanitized Raw Data'!$H:$H,">="&$B18,'Sanitized Raw Data'!$H:$H,"<"&$B19,'Sanitized Raw Data'!$D:$D,"Personal Check")+SUMIFS('Sanitized Raw Data'!$C:$C,'Sanitized Raw Data'!$H:$H,">="&$B18,'Sanitized Raw Data'!$H:$H,"<"&$B19,'Sanitized Raw Data'!$D:$D,"ACH Grant Deposit") -> 0 | N18: =SUM(G18,M18,K18,I18,N17,E18) -> 52988.57 | O18: =SUM(F18,H18,J18,L18,D18) -> 44 | P18: =SUM(F18,L18,J18,H18,P17,D18) -> 773 | Q18: =N18/P18 -> 68.54924968 | R18: =(SUM(G18,M18,K18,I18,E18))/(SUM(F18,H18,J18,L18,D18)) -> 59.38386364 | S18: =N18/Sheet11!$A15 -> 3532.571333 | T18: =(N18-N17)/C$3 -> 0.04938833759 | U18: =E18/(N18-N17) -> 0 | V18: =D18/O18 -> 0 | W18: =SUM(E$3:E18)/N18 -> 0.01021107005 | X18: =SUM(D$3:D18)/O18 -> 0.4545454545 | Y18: =G18/(N18-N17) -> 0 | Z18: =F18/O18 -> 0 | AA18: =SUM(G$3:G18)/N18 -> 0 | AB18: =SUM(F$3:F18)/O18 -> 0 | AC18: =I18/(N18-N17) -> 1 | AD18: =H18/O18 -> 1 | AE18: =SUM(I$3:I18)/N18 -> 0.6330114211 | AF18: =SUM(H$3:H18)/P18 -> 0.5730918499 | AG18: =K18/(N18-N17) -> 0 | AH18: =J18/O18 -> 0 | AI18: =SUM(K$3:K18)/N18 -> 0.167633133 | AJ18: =SUM(J$3:J18)/P18 -> 0.2535575679 | AK18: =M18/(N18-N17) -> 0 | AL18: =L18/O18 -> 0 | AM18: =SUM(M$3:M18)/N18 -> 0.1891443759 | AN18: =SUM(L$3:L18)/P18 -> 0.1474773609 | AP18: Day 15 | AQ18: 2021-04-18 | AR18: 59014 | AS18: 0 | AT18: 0 | AU18: 0 | AV18: 0 | AW18: 28 | AX18: 2339.74 | AY18: 0 | AZ18: 0 | BA18: 0 | BB18: 0 | BC18: 58164 | BD18: 28 | BE18: 808 | BF18: 71.98514851 | BG18: 83.56214286 | BH18: 3877.6 | BI18: 0.03964720236 | BJ18: 0 | BK18: 0 | BL18: 0.000730004814 | BM18: 0.1428571429 | BN18: 0 | BO18: 0 | BP18: 0 | BQ18: 0 | BR18: 1 | BS18: 1 | BT18: 0.6243425487 | BU18: 0.5754950495 | BV18: 0 | BW18: 0 | BX18: 0.1417282168 | BY18: 0.2475247525 | BZ18: 0 | CA18: 0 | CB18: 0.2331992298 | CC18: 0.172029703 | CE18: Day 15 | DT18: Day 15 | DU18: 2020-07-29 | DV18: 65854 | DY18: 0 | DZ18: 0 | EA18: 23 | EB18: 1921.64 | EC18: 1 | ED18: 10 | EE18: 1 | EF18: 55 | EG18: 56397.35 | EH18: 25 | EI18: 830 | EJ18: 67.94861446 | EK18: 79.4656 | EL18: 3759.823333 | EM18: 0.03016733987 | ER18: 0 | ES18: 0 | ET18: 0 | EU18: 0 | EV18: 0.96728144 | EW18: 0.92 | EX18: 0.7092817304 | EY18: 0.5987951807 | EZ18: 0.005033624612 | FA18: 0.04 | FB18: 0.08180898571 | FC18: 0.2337349398 | FD18: 0.02768493537 | FE18: 0.04 | FF18: 0.2089092839 | FG18: 0.1674698795 | FI18: Day 15 | FJ18: 2019-10-21 | FK18: 76366 | FN18: 0 | FO18: 0 | FP18: 68 | FQ18: 5477.52 | FR18: 21 | FS18: 1522.58 | FT18: 13 | FU18: 948 | FV18: 44941.95 | FW18: 102 | FX18: 673 | FY18: 66.77852897 | FZ18: 77.92254902 | GA18: 2996.13 | GB18: 0.1040790404 | GG18: 0 | GH18: 0 | GI18: 0 | GJ18: 0 | GK18: 0.6891609315 | GL18: 0.6666666667 | GM18: 0.6701057698 | GN18: 0.5676077266 | GO18: 0.1915652798 | GP18: 0.2058823529 | GQ18: 0.1436666633 | GR18: 0.26448737 | GS18: 0.1192737887 | GT18: 0.1274509804 | GU18: 0.1862275669 | GV18: 0.1679049034
A19: Day 16 | B19: 2021-10-19 | C19: 52905 | AP19: Day 16 | AQ19: 2021-04-19 | AR19: 59014 | AS19: 0 | AT19: 0 | AU19: 0 | AV19: 0 | AW19: 22 | AX19: 2167.56 | AY19: 0 | AZ19: 0 | BA19: 0 | BB19: 0 | BC19: 60331.56 | BD19: 22 | BE19: 830 | BF19: 72.68862651 | BG19: 98.52545455 | BH19: 3770.7225 | BI19: 0.03672958959 | BJ19: 0 | BK19: 0 | BL19: 0.0007037775917 | BM19: 0.1818181818 | BN19: 0 | BO19: 0 | BP19: 0 | BQ19: 0 | BR19: 1 | BS19: 1 | BT19: 0.6378389685 | BU19: 0.586746988 | BV19: 0 | BW19: 0 | BX19: 0.1366362812 | BY19: 0.2409638554 | BZ19: 0 | CA19: 0 | CB19: 0.2248209726 | CC19: 0.1674698795 | CE19: Day 16 | DT19: Day 16 | DU19: 2020-07-30 | DV19: 65854 | DY19: 0 | DZ19: 0 | EA19: 59 | EB19: 3821.58 | EC19: 15 | ED19: 873 | EE19: 3 | EF19: 275 | EG19: 61366.93 | EH19: 77 | EI19: 907 | EJ19: 67.65923925 | EK19: 64.54 | EL19: 3835.433125 | EM19: 0.0754636013 | ER19: 0 | ES19: 0 | ET19: 0 | EU19: 0 | EV19: 0.7689945629 | EW19: 0.7662337662 | EX19: 0.7141173593 | EY19: 0.6130099228 | EZ19: 0.1756687688 | FA19: 0.1948051948 | FB19: 0.08940988249 | FC19: 0.230429989 | FD19: 0.05533666829 | FE19: 0.03896103896 | FF19: 0.1964727582 | FG19: 0.1565600882 | FI19: Day 16 | FJ19: 2019-10-22 | FK19: 76366 | FN19: 0 | FO19: 0 | FP19: 20 | FQ19: 1289.89 | FR19: 1 | FS19: 64 | FT19: 10 | FU19: 1096 | FV19: 47391.84 | FW19: 31 | FX19: 704 | FY19: 67.31795455 | FZ19: 79.02870968 | GA19: 2961.99 | GB19: 0.03208089988 | GG19: 0 | GH19: 0 | GI19: 0 | GJ19: 0 | GK19: 0.5265093535 | GL19: 0.6451612903 | GM19: 0.6626826475 | GN19: 0.5710227273 | GO19: 0.02612362188 | GP19: 0.03225806452 | GQ19: 0.1375903531 | GR19: 0.2542613636 | GS19: 0.4473670246 | GT19: 0.3225806452 | GU19: 0.1997269994 | GV19: 0.1747159091
A20: Day 17 | B20: 2021-10-20 | C20: 52905 | AP20: Day 17 | AQ20: 2021-04-20 | AR20: 59014 | CE20: Day 17 | DT20: Day 17 | DU20: 2020-07-31 | DV20: 65854 | DY20: 0 | DZ20: 0 | EA20: 8 | EB20: 484 | EC20: 4 | ED20: 175 | EE20: 1 | EF20: 50 | EG20: 62075.93 | EH20: 13 | EI20: 920 | EJ20: 67.47383696 | EK20: 54.53846154 | EL20: 3651.525294 | EM20: 0.01076624047 | ER20: 0 | ES20: 0 | ET20: 0 | EU20: 0 | EV20: 0.682651622 | EW20: 0.6153846154 | EX20: 0.7137579735 | EY20: 0.6130434783 | EZ20: 0.2468265162 | FA20: 0.3076923077 | FB20: 0.09120781598 | FC20: 0.2315217391 | FD20: 0.07052186178 | FE20: 0.07692307692 | FF20: 0.1950342105 | FG20: 0.1554347826 | FI20: Day 17 | FJ20: 2019-10-23 | FK20: 76366 | FN20: 0 | FO20: 0 | FP20: 5 | FQ20: 475 | FR20: 6 | FS20: 195.09 | FT20: 2 | FU20: 200 | FV20: 48261.93 | FW20: 13 | FX20: 717 | FY20: 67.3109205 | FZ20: 66.93 | GA20: 2838.937059 | GB20: 0.01139368305 | GG20: 0 | GH20: 0 | GI20: 0 | GJ20: 0 | GK20: 0.545920537 | GL20: 0.3846153846 | GM20: 0.6605776023 | GN20: 0.5676429568 | GO20: 0.2242181843 | GP20: 0.4615384615 | GQ20: 0.1391521226 | GR20: 0.2580195258 | GS20: 0.2298612787 | GT20: 0.1538461538 | GU20: 0.2002702751 | GV20: 0.1743375174
A21: Day 18 | B21: 2021-10-21 | C21: 52905 | AP21: Day 18 | AQ21: 2021-04-21 | AR21: 59014 | CE21: Day 18 | DT21: Day 18 | DU21: 2020-08-01 | DV21: 65854 | DY21: 0 | DZ21: 0 | EA21: 3 | EB21: 175 | EC21: 2 | ED21: 65 | EE21: 2 | EF21: 150 | EG21: 62465.93 | EH21: 7 | EI21: 927 | EJ21: 67.38503776 | EK21: 55.71428571 | EL21: 3470.329444 | EM21: 0.005922191515 | ER21: 0 | ES21: 0 | ET21: 0 | EU21: 0 | EV21: 0.4487179487 | EW21: 0.4285714286 | EX21: 0.7121032217 | EY21: 0.6116504854 | EZ21: 0.1666666667 | FA21: 0.2857142857 | FB21: 0.09167893602 | FC21: 0.2319309601 | FD21: 0.3846153846 | FE21: 0.2857142857 | FF21: 0.1962178423 | FG21: 0.1564185545 | FI21: Day 18 | FJ21: 2019-10-24 | FK21: 76366 | FN21: 0 | FO21: 0 | FP21: 6 | FQ21: 589 | FR21: 0 | FS21: 0 | FT21: 3 | FU21: 109 | FV21: 48959.93 | FW21: 9 | FX21: 726 | FY21: 67.43792011 | FZ21: 77.55555556 | GA21: 2719.996111 | GB21: 0.00914019328 | GG21: 0 | GH21: 0 | GI21: 0 | GJ21: 0 | GK21: 0.8438395415 | GL21: 0.6666666667 | GM21: 0.6631902864 | GN21: 0.5688705234 | GO21: 0 | GP21: 0 | GQ21: 0.1371682925 | GR21: 0.2548209366 | GS21: 0.1561604585 | GT21: 0.3333333333 | GU21: 0.1996414211 | GV21: 0.1763085399
A22: Day 19 | B22: 2021-10-22 | C22: 52905 | AP22: Day 19 | AQ22: 2021-04-22 | AR22: 59014 | CE22: Day 19 | DT22: Day 19 | DU22: 2020-08-02 | DV22: 65854 | DY22: 0 | DZ22: 0 | EA22: 3 | EB22: 200 | EC22: 1 | ED22: 100 | EE22: 0 | EF22: 0 | EG22: 62765.93 | EH22: 4 | EI22: 931 | EJ22: 67.4177551 | EK22: 75 | EL22: 3303.47 | EM22: 0.004555531934 | ER22: 0 | ES22: 0 | ET22: 0 | EU22: 0 | EV22: 0.6666666667 | EW22: 0.75 | EX22: 0.7118860503 | EY22: 0.612244898 | EZ22: 0.3333333333 | FA22: 0.25 | FB22: 0.09283396263 | FC22: 0.2320085929 | FD22: 0 | FE22: 0 | FF22: 0.1952799871 | FG22: 0.1557465091 | FI22: Day 19 | FJ22: 2019-10-25 | FK22: 76366 | FN22: 0 | FO22: 0 | FP22: 6 | FQ22: 475 | FR22: 0 | FS22: 0 | FT22: 3 | FU22: 5350 | FV22: 54784.93 | FW22: 9 | FX22: 735 | FY22: 74.53731973 | FZ22: 647.2222222 | GA22: 2883.417368 | GB22: 0.07627740094 | GG22: 0 | GH22: 0 | GI22: 0 | GJ22: 0 | GK22: 0.08154506438 | GL22: 0.6666666667 | GM22: 0.6013469398 | GN22: 0.5700680272 | GO22: 0 | GP22: 0 | GQ22: 0.1225838931 | GR22: 0.2517006803 | GS22: 0.9184549356 | GT22: 0.3333333333 | GU22: 0.2760691672 | GV22: 0.1782312925
A23: Day 20 | B23: 2021-10-23 | C23: 52905 | AP23: Day 20 | AQ23: 2021-04-23 | AR23: 59014 | CE23: Day 20 | DT23: Day 20 | DU23: 2020-08-03 | DV23: 65854 | DY23: 0 | DZ23: 0 | EA23: 8 | EB23: 650 | EC23: 0 | ED23: 0 | EE23: 0 | EF23: 0 | EG23: 63415.93 | EH23: 8 | EI23: 939 | EJ23: 67.5356017 | EK23: 81.25 | EL23: 3170.7965 | EM23: 0.009870319191 | ER23: 0 | ES23: 0 | ET23: 0 | EU23: 0 | EV23: 1 | EW23: 1 | EX23: 0.7148391579 | EY23: 0.6155484558 | EZ23: 0 | FA23: 0 | FB23: 0.09188243396 | FC23: 0.2300319489 | FD23: 0 | FE23: 0 | FF23: 0.1932784081 | FG23: 0.1544195953 | FI23: Day 20 | FJ23: 2019-10-26 | FK23: 76366 | FN23: 0 | FO23: 0 | FP23: 1 | FQ23: 25 | FR23: 0 | FS23: 0 | FT23: 0 | FU23: 0 | FV23: 54809.93 | FW23: 1 | FX23: 736 | FY23: 74.47001359 | FZ23: 25 | GA23: 2740.4965 | GB23: 0.0003273708195 | GG23: 0 | GH23: 0 | GI23: 0 | GJ23: 0 | GK23: 1 | GL23: 1 | GM23: 0.6015287741 | GN23: 0.5706521739 | GO23: 0 | GP23: 0 | GQ23: 0.1225279799 | GR23: 0.2513586957 | GS23: 0 | GT23: 0 | GU23: 0.2759432461 | GV23: 0.1779891304
A24: Day 21 | B24: 2021-10-24 | C24: 52905 | AP24: Day 21 | AQ24: 2021-04-24 | AR24: 59014 | CE24: Day 21 | DT24: Day 21 | DU24: 2020-08-04 | DV24: 65854 | DY24: 0 | DZ24: 0 | EA24: 7 | EB24: 675 | EC24: 2 | ED24: 61 | EE24: 0 | EF24: 0 | EG24: 64151.93 | EH24: 9 | EI24: 948 | EJ24: 67.67081224 | EK24: 81.77777778 | EL24: 3054.85381 | EM24: 0.01117623835 | ER24: 0 | ES24: 0 | ET24: 0 | EU24: 0 | EV24: 0.9171195652 | EW24: 0.7777777778 | EX24: 0.7171598734 | EY24: 0.6170886076 | EZ24: 0.08288043478 | FA24: 0.2222222222 | FB24: 0.09177915614 | FC24: 0.2299578059 | FD24: 0 | FE24: 0 | FF24: 0.1910609704 | FG24: 0.1529535865 | FI24: Day 21 | FJ24: 2019-10-27 | FK24: 76366 | FN24: 0 | FO24: 0 | FP24: 5 | FQ24: 289 | FR24: 4 | FS24: 209 | FT24: 2 | FU24: 75 | FV24: 55382.93 | FW24: 11 | FX24: 747 | FY24: 74.14046854 | FZ24: 52.09090909 | GA24: 2637.282381 | GB24: 0.007503339182 | GG24: 0 | GH24: 0 | GI24: 0 | GJ24: 0 | GK24: 0.5043630017 | GL24: 0.4545454545 | GM24: 0.6005234826 | GN24: 0.5689424364 | GO24: 0.3647469459 | GP24: 0.3636363636 | GQ24: 0.1250340132 | GR24: 0.2530120482 | GS24: 0.1308900524 | GT24: 0.1818181818 | GU24: 0.2744425042 | GV24: 0.1780455154
A25: Day 22 | B25: 2021-10-25 | C25: 52905 | AP25: Day 22 | AQ25: 2021-04-25 | AR25: 59014 | CE25: Day 22 | DT25: Day 22 | DU25: 2020-08-05 | DV25: 65854 | DY25: 0 | DZ25: 0 | EA25: 5 | EB25: 300 | EC25: 0 | ED25: 0 | EE25: 0 | EF25: 0 | EG25: 64451.93 | EH25: 5 | EI25: 953 | EJ25: 67.63056663 | EK25: 60 | EL25: 2929.633182 | EM25: 0.004555531934 | ER25: 0 | ES25: 0 | ET25: 0 | EU25: 0 | EV25: 1 | EW25: 1 | EX25: 0.7184763901 | EY25: 0.6190975866 | EZ25: 0 | FA25: 0 | FB25: 0.09135195796 | FC25: 0.2287513116 | FD25: 0 | FE25: 0 | FF25: 0.190171652 | FG25: 0.1521511018 | FI25: Day 22 | FJ25: 2019-10-28 | FK25: 76366 | FN25: 0 | FO25: 0 | FP25: 86 | FQ25: 8055.79 | FR25: 33 | FS25: 1865 | FT25: 10 | FU25: 1690 | FV25: 66993.72 | FW25: 129 | FX25: 876 | FY25: 76.47684932 | FZ25: 90.00612403 | GA25: 3045.169091 | GB25: 0.1520413535 | GG25: 0 | GH25: 0 | GI25: 0 | GJ25: 0 | GK25: 0.6938192836 | GL25: 0.6666666667 | GM25: 0.6166927288 | GN25: 0.5833333333 | GO25: 0.1606264518 | GP25: 0.2558139535 | GQ25: 0.1312025963 | GR25: 0.2534246575 | GS25: 0.1455542646 | GT25: 0.07751937984 | GU25: 0.2521046749 | GV25: 0.1632420091
A26: Day 23 | B26: 2021-10-26 | C26: 52905 | AP26: Day 23 | AQ26: 2021-04-26 | AR26: 59014 | CE26: Day 23 | DT26: Day 23 | DU26: 2020-08-06 | DV26: 65854 | DY26: 0 | DZ26: 0 | EA26: 15 | EB26: 1405 | EC26: 0 | ED26: 0 | EE26: 0 | EF26: 0 | EG26: 65856.93 | EH26: 15 | EI26: 968 | EJ26: 68.0340186 | EK26: 93.66666667 | EL26: 2863.344783 | EM26: 0.02133507456 | ER26: 0 | ES26: 0 | ET26: 0 | EU26: 0 | EV26: 1 | EW26: 1 | EX26: 0.7244824501 | EY26: 0.625 | EZ26: 0 | FA26: 0 | FB26: 0.08940304384 | FC26: 0.2252066116 | FD26: 0 | FE26: 0 | FF26: 0.1861145061 | FG26: 0.1497933884 | FI26: Day 23 | FJ26: 2019-10-29 | FK26: 76366 | FN26: 0 | FO26: 0 | FP26: 21 | FQ26: 2100 | FR26: 3 | FS26: 110 | FT26: 1 | FU26: 200 | FV26: 69403.72 | FW26: 25 | FX26: 901 | FY26: 77.02965594 | FZ26: 96.4 | GA26: 3017.553043 | GB26: 0.031558547 | GG26: 0 | GH26: 0 | GI26: 0 | GJ26: 0 | GK26: 0.8713692946 | GL26: 0.84 | GM26: 0.6255362105 | GN26: 0.5904550499 | GO26: 0.04564315353 | GP26: 0.12 | GQ26: 0.1282315991 | GR26: 0.2497225305 | GS26: 0.08298755187 | GT26: 0.04 | GU26: 0.2462321904 | GV26: 0.1598224195
A27: Day 24 | B27: 2021-10-27 | C27: 52905 | AP27: Day 24 | AQ27: 2021-04-27 | AR27: 59014 | CE27: Day 24 | DT27: Day 24 | FI27: Day 24 | FJ27: 2019-10-30 | FK27: 76366 | FN27: 0 | FO27: 0 | FP27: 9 | FQ27: 1369.79 | FR27: 1 | FS27: 10 | FT27: 0 | FU27: 0 | FV27: 70783.51 | FW27: 10 | FX27: 911 | FY27: 77.69869374 | FZ27: 137.979 | GA27: 2949.312917 | GB27: 0.01806811932 | GG27: 0 | GH27: 0 | GI27: 0 | GJ27: 0 | GK27: 0.9927525203 | GL27: 0.9 | GM27: 0.6326943945 | GN27: 0.5938529089 | GO27: 0.007247479689 | GP27: 0.1 | GQ27: 0.1258732436 | GR27: 0.248079034 | GS27: 0 | GT27: 0 | GU27: 0.2414323619 | GV27: 0.1580680571
A28: Day 25 | B28: 2021-10-28 | C28: 52905 | AP28: Day 25 | AQ28: 2021-04-28 | AR28: 59014 | CE28: Day 25 | DT28: Day 25 | FI28: Day 25 | FJ28: 2019-10-31 | FK28: 76366 | FN28: 0 | FO28: 0 | FP28: 9 | FQ28: 684 | FR28: 2 | FS28: 75 | FT28: 0 | FU28: 0 | FV28: 71542.51 | FW28: 11 | FX28: 922 | FY28: 77.59491323 | FZ28: 69 | GA28: 2861.7004 | GB28: 0.009938978079 | GG28: 0 | GH28: 0 | GI28: 0 | GJ28: 0 | GK28: 0.9011857708 | GL28: 0.8181818182 | GM28: 0.6355428402 | GN28: 0.5965292842 | GO28: 0.09881422925 | GP28: 0.1818181818 | GQ28: 0.1255861725 | GR28: 0.2472885033 | GS28: 0 | GT28: 0 | GU28: 0.2388709873 | GV28: 0.1561822126
A29: Day 26 | B29: 2021-10-29 | C29: 52905 | AP29: Day 26 | AQ29: 2021-04-29 | AR29: 59014 | CE29: Day 26 | DT29: Day 26 | FI29: Day 26 | FJ29: 2019-11-01 | FK29: 76366 | FN29: 0 | FO29: 0 | FP29: 9 | FQ29: 461 | FR29: 0 | FS29: 0 | FT29: 0 | FU29: 0 | FV29: 72003.51 | FW29: 9 | FX29: 931 | FY29: 77.33996778 | FZ29: 51.22222222 | GA29: 2769.365769 | GB29: 0.006036717911 | GG29: 0 | GH29: 0 | GI29: 0 | GJ29: 0 | GK29: 1 | GL29: 1 | GM29: 0.6378762646 | GN29: 0.6004296455 | GO29: 0 | GP29: 0 | GQ29: 0.1247821113 | GR29: 0.2448979592 | GS29: 0 | GT29: 0 | GU29: 0.237341624 | GV29: 0.1546723953
A30: Day 27 | B30: 2021-10-30 | C30: 52905 | AP30: Day 27 | AQ30: 2021-04-30 | AR30: 59014 | CE30: Day 27 | DT30: Day 27 | FI30: Day 27 | FJ30: 2019-11-02 | FK30: 76366 | FN30: 0 | FO30: 0 | FP30: 4 | FQ30: 219.79 | FR30: 1 | FS30: 35 | FT30: 0 | FU30: 0 | FV30: 72258.3 | FW30: 5 | FX30: 936 | FY30: 77.19903846 | FZ30: 50.958 | GA30: 2676.233333 | GB30: 0.003336432444 | GG30: 0 | GH30: 0 | GI30: 0 | GJ30: 0 | GK30: 0.8626319714 | GL30: 0.8 | GM30: 0.6386687758 | GN30: 0.6014957265 | GO30: 0.1373680286 | GP30: 0.2 | GQ30: 0.1248264905 | GR30: 0.2446581197 | GS30: 0 | GT30: 0 | GU30: 0.2365047337 | GV30: 0.1538461538
A31: Day 28 | B31: 2021-10-31 | C31: 52905 | AP31: Day 28 | AQ31: 2021-05-01 | AR31: 59014 | CE31: Day 28 | DT31: Day 28 | FI31: Day 28 | FJ31: 2019-11-03 | FK31: 76366 | FN31: 0 | FO31: 0 | FP31: 11 | FQ31: 458.89 | FR31: 0 | FS31: 0 | FT31: 0 | FU31: 0 | FV31: 72717.19 | FW31: 11 | FX31: 947 | FY31: 76.78689546 | FZ31: 41.71727273 | GA31: 2597.0425 | GB31: 0.006009087814 | GG31: 0 | GH31: 0 | GI31: 0 | GJ31: 0 | GK31: 1 | GL31: 1 | GM31: 0.6409489971 | GN31: 0.606124604 | GO31: 0 | GP31: 0 | GQ31: 0.1240387589 | GR31: 0.2418162619 | GS31: 0 | GT31: 0 | GU31: 0.235012244 | GV31: 0.1520591341
A32: Day 29 | B32: 2021-11-01 | C32: 52905 | AP32: Day 29 | AQ32: 2021-05-02 | AR32: 59014 | CE32: Day 29 | DT32: Day 29 | FI32: Day 29 | FJ32: 2019-11-04 | FK32: 76366 | FN32: 0 | FO32: 0 | FP32: 35 | FQ32: 2794.63 | FR32: 0 | FS32: 0 | FT32: 0 | FU32: 0 | FV32: 75511.82 | FW32: 35 | FX32: 982 | FY32: 76.89594705 | FZ32: 79.84657143 | GA32: 2603.855862 | GB32: 0.03659521253 | GG32: 0 | GH32: 0 | GI32: 0 | GJ32: 0 | GK32: 1 | GL32: 1 | GM32: 0.6542371777 | GN32: 0.6201629328 | GO32: 0 | GP32: 0 | GQ32: 0.1194481871 | GR32: 0.233197556 | GS32: 0 | GT32: 0 | GU32: 0.2263146352 | GV32: 0.1466395112
A33: Day 30 | B33: 2021-11-02 | C33: 52905 | AP33: Day 30 | AQ33: 2021-05-03 | AR33: 59014 | CE33: Day 30 | DT33: Day 30 | FI33: Day 30
A34: Day 31 | B34: 2021-11-03 | C34: 52905 | AP34: Day 31 | AQ34: 2021-05-04 | AR34: 59014 | CE34: Day 31 | DT34: Day 31 | FI34: Day 31
A35: Day 32 | B35: 2021-11-04 | C35: 52905 | AP35: Day 32 | AQ35: 2021-05-05 | AR35: 59014 | CE35: Day 32 | DT35: Day 32 | FI35: Day 32
A36: Day 33 | B36: 2021-11-05 | C36: 52905 | AP36: Day 33 | AQ36: 2021-05-06 | AR36: 59014 | CE36: Day 33 | DT36: Day 33 | FI36: Day 33
A37: Day 34 | B37: 2021-11-06 | C37: 52905 | AP37: Day 34 | AQ37: 2021-05-07 | AR37: 59014 | CE37: Day 34 | DT37: Day 34 | FI37: Day 34
A38: Day 35 | B38: 2021-11-07 | C38: 52905 | AP38: Day 35 | AQ38: 2021-05-08 | AR38: 59014 | CE38: Day 35 | DT38: Day 35 | FI38: Day 35
A39: Day 36 | B39: 2021-11-08 | C39: 52905 | AP39: Day 36 | AQ39: 2021-05-09 | AR39: 59014 | CE39: Day 36 | DT39: Day 36 | FI39: Day 36
A40: Day 37 | B40: 2021-11-09 | C40: 52905 | AP40: Day 37 | AQ40: 2021-05-10 | AR40: 59014 | CE40: Day 37 | DT40: Day 37 | FI40: Day 37
A41: Day 38 | B41: 2021-11-10 | C41: 52905 | AP41: Day 38 | AQ41: 2021-05-11 | AR41: 59014 | CE41: Day 38 | DT41: Day 38 | FI41: Day 38
A42: Day 39 | B42: 2021-11-11 | C42: 52905 | AP42: Day 39 | AQ42: 2021-05-12 | AR42: 59014 | CE42: Day 39 | DT42: Day 39 | FI42: Day 39
A43: Day 40 | B43: 2021-11-12 | C43: 52905 | AP43: Day 40 | AQ43: 2021-05-13 | AR43: 59014 | CE43: Day 40 | DT43: Day 40 | FI43: Day 40
A44: Day 41 | B44: 2021-11-13 | C44: 52905 | AP44: Day 41 | AQ44: 2021-05-14 | AR44: 59014 | CE44: Day 41 | DT44: Day 41 | FI44: Day 41
A45: Day 42 | B45: 2021-11-14 | C45: 52905 | AP45: Day 42 | AQ45: 2021-05-15 | AR45: 59014 | CE45: Day 42 | DT45: Day 42 | FI45: Day 42
A46: Day 43 | B46: 2021-11-15 | C46: 52905 | AP46: Day 43 | AQ46: 2021-05-16 | AR46: 59014 | CE46: Day 43 | DT46: Day 43 | FI46: Day 43
C47: 52905 | F47: =SUM(F3:F46) -> 0 | G47: =SUM(G3:G46) -> 0 | H47: 443 | I47: 33542.37 | J47: 196 | K47: 8882.64 | L47: 114 | M47: 10022.49 | N47: =LARGE(N3:N46,1) -> 52988.57 | AP47: Day 44 | AR47: 59014 | AU47: 0 | AV47: 0 | AW47: 487 | AX47: 38481.82 | AY47: 200 | AZ47: 8243.48 | BA47: 139 | BB47: 13563.8 | BC47: 60331.56 | CE47: Day 44 | DT47: Day 44 | FI47: Day 44

Sheet Sanitized Raw Data
A1: donate_id | B1: donate_invoice | C1: donate_amount | D1: donate_method | E1: donate_affiliation | F1: donate_classyear | G1: donate_isthanked | H1: donate_transac_date | I1: donate_create_date | J1: donate_mod_date | K1: donate_num_recurring | L1: donate_pledge
A2: 56425 | B2: EF50-000001 | C2: 25 | D2: PayPal | E2: 1 | F2: 1965 | G2: N | H2: 2021-04-17 | I2: 2021-04-19T11:58:01 | J2: 2021-04-19T11:58:01 | K2: 1 | L2: None. Donation by check.
A3: 56426 | B3: EF50-000002 | C3: 50 | D3: PayPal | E3: 1 | F3: 1964 | G3: N | H3: 2021-04-17 | I3: 2021-04-19T11:59:13 | J3: 2021-04-19T11:59:13 | K3: 1 | L3: None. Donation by check.
A4: 56427 | B4: EF50-000003 | C4: 200 | D4: PayPal | E4: 1 | F4: 1980 | G4: N | H4: 2021-04-18 | I4: 2021-04-19T12:01:05 | J4: 2021-04-19T12:01:05 | K4: 1 | L4: None. Donation by check.
A5: 56428 | B5: EF50-000004 | C5: 100 | D5: PayPal | E5: 1 | F5: 1979 | G5: N | H5: 2021-04-18 | I5: 2021-04-19T12:02:20 | J5: 2021-04-19T12:02:20 | K5: 1 | L5: None. Donation by check.
A6: 56429 | B6: EF50-000005 | C6: 25 | D6: PayPal | E6: 1 | F6: 1992 | G6: N | H6: 2021-04-18 | I6: 2021-04-19T12:03:45 | J6: 2021-04-19T12:03:45 | K6: 1 | L6: None. Donation by check.
A7: 56430 | B7: EF50-000006 | C7: 25 | D7: PayPal | E7: 1 | F7: 1963 | G7: N | H7: 2021-04-18 | I7: 2021-04-19T12:04:53 | J7: 2021-04-19T12:04:53 | K7: 1 | L7: None. Donation by check.
A8: 56431 | B8: EF50-000007 | C8: 100 | D8: PayPal | E8: 2 | F8: 2011 | G8: N | H8: 2021-04-18 | I8: 2021-04-19T13:43:17 | J8: 2021-04-19T13:43:17 | K8: 1 | L8: None. Donation by check.
A9: 56432 | B9: EF50-000008 | C9: 30 | D9: PayPal | E9: 2 | F9: 2015 | G9: N | H9: 2021-04-18 | I9: 2021-04-19T13:44:54 | J9: 2021-04-19T13:44:54 | K9: 1 | L9: None. Donation by check.
A10: 56433 | B10: EF50-000009 | C10: 77.77 | D10: PayPal | E10: 1 | F10: 1977 | G10: N | H10: 2021-04-18 | I10: 2021-04-19T13:46:05 | J10: 2021-04-19T13:46:05 | K10: 1 | L10: None. Donation by check.
A11: 56434 | B11: EF50-000010 | C11: 50 | D11: PayPal | E11: 1 | F11: 1977 | G11: N | H11: 2021-04-18 | I11: 2021-04-19T13:47:31 | J11: 2021-04-19T13:47:31 | K11: 1 | L11: None. Donation by check.
A12: 56435 | B12: EF50-000011 | C12: 100 | D12: PayPal | E12: 2 | F12: 1998 | G12: N | H12: 2021-04-18 | I12: 2021-04-19T13:50:35 | J12: 2021-04-19T23:46:48 | K12: 1 | L12: None. Donation by check.
A13: 56436 | B13: EF50-000012 | C13: 25 | D13: PayPal | E13: 2 | F13: 2011 | G13: N | H13: 2021-04-18 | I13: 2021-04-19T13:51:53 | J13: 2021-04-19T13:51:53 | K13: 1 | L13: None. Donation by check.
A14: 56437 | B14: EF50-000013 | C14: 79 | D14: PayPal | E14: 1 | F14: 1979 | G14: N | H14: 2021-04-19 | I14: 2021-04-19T13:52:56 | J14: 2021-04-19T13:52:56 | K14: 1 | L14: None. Donation by check.
A15: 56438 | B15: EF50-000014 | C15: 19.79 | D15: PayPal | E15: 1 | F15: 1979 | G15: N | H15: 2021-04-19 | I15: 2021-04-19T13:53:46 | J15: 2021-04-19T13:53:46 | K15: 1 | L15: None. Donation by check.
A16: 56439 | B16: EF50-000015 | C16: 100 | D16: PayPal | E16: 5 | F16: 1955 | G16: N | H16: 2021-04-19 | I16: 2021-04-19T13:56:06 | J16: 2021-04-19T13:56:06 | K16: 1 | L16: None. Donation by check.
A17: 56440 | B17: EF50-000016 | C17: 50 | D17: PayPal | E17: 1 | F17: 1968 | G17: N | H17: 2021-04-19 | I17: 2021-04-19T13:57:21 | J17: 2021-04-19T13:57:21 | K17: 1 | L17: None. Donation by check.
A18: 56441 | B18: EF50-000017 | C18: 50 | D18: PayPal | E18: 1 | F18: 1959 | G18: N | H18: 2021-04-19 | I18: 2021-04-19T13:58:15 | J18: 2021-04-19T13:58:15 | K18: 1 | L18: None. Donation by check.
A19: 56442 | B19: EF50-000018 | C19: 25 | D19: PayPal | E19: 2 | F19: 2003 | G19: N | H19: 2021-04-19 | I19: 2021-04-19T13:59:27 | J19: 2021-04-19T13:59:27 | K19: 1 | L19: None. Donation by check.
A20: 56443 | B20: EF50-000019 | C20: 25 | D20: PayPal | E20: 1 | F20: 1968 | G20: N | H20: 2021-04-19 | I20: 2021-04-19T14:00:36 | J20: 2021-04-19T14:00:36 | K20: 1 | L20: None. Donation by check.
A21: 56444 | B21: EF50-000020 | C21: 50 | D21: PayPal | E21: 1 | F21: 1975 | G21: N | H21: 2021-04-19 | I21: 2021-04-19T14:01:43 | J21: 2021-04-19T14:01:43 | K21: 1 | L21: None. Donation by check.
A22: 56445 | B22: EF50-000021 | C22: 25 | D22: PayPal | E22: 1 | F22: 1973 | G22: N | H22: 2021-04-19 | I22: 2021-04-19T14:02:41 | J22: 2021-04-19T14:02:41 | K22: 1 | L22: None. Donation by check.
A23: 56446 | B23: EF50-000022 | C23: 50 | D23: PayPal | E23: 1 | F23: 1975 | G23: N | H23: 2021-04-19 | I23: 2021-04-19T14:03:42 | J23: 2021-04-19T14:03:42 | K23: 1 | L23: None. Donation by check.
A24: 56447 | B24: EF50-000023 | C24: 50 | D24: PayPal | E24: 1 | F24: 1977 | G24: N | H24: 2021-04-19 | I24: 2021-04-19T22:20:06 | J24: 2021-04-19T22:20:06 | K24: 1 | L24: None. Donation by check.
A25: 56448 | B25: EF50-000024 | C25: 20 | D25: PayPal | E25: 1 | F25: 1980 | G25: N | H25: 2021-04-19 | I25: 2021-04-19T22:21:10 | J25: 2021-04-19T22:21:10 | K25: 1 | L25: None. Donation by check.
A26: 56449 | B26: EF50-000025 | C26: 20 | D26: PayPal | E26: 1 | F26: 1968 | G26: N | H26: 2021-04-19 | I26: 2021-04-19T22:22:36 | J26: 2021-04-19T22:22:36 | K26: 1 | L26: None. Donation by check.
A27: 56450 | B27: EF50-000026 | C27: 10 | D27: PayPal | E27: 1 | F27: 1980 | G27: N | H27: 2021-04-19 | I27: 2021-04-19T22:23:27 | J27: 2021-04-19T22:23:27 | K27: 1 | L27: None. Donation by check.
A28: 56451 | B28: EF50-000027 | C28: 100 | D28: PayPal | E28: 1 | F28: 1973 | G28: N | H28: 2021-04-19 | I28: 2021-04-19T22:24:25 | J28: 2021-04-19T22:24:25 | K28: 1 | L28: None. Donation by check.
A29: 56452 | B29: EF50-000028 | C29: 50 | D29: PayPal | E29: 1 | F29: 1975 | G29: N | H29: 2021-04-19 | I29: 2021-04-19T22:25:29 | J29: 2021-04-19T22:25:29 | K29: 1 | L29: None. Donation by check.
A30: 56453 | B30: EF50-000029 | C30: 100 | D30: PayPal | E30: 1 | F30: 1977 | G30: N | H30: 2021-04-19 | I30: 2021-04-19T22:32:02 | J30: 2021-04-19T22:32:02 | K30: 1 | L30: None. Donation by check.
A31: 56454 | B31: EF50-000030 | C31: 35 | D31: PayPal | E31: 1 | F31: 1966 | G31: N | H31: 2021-04-19 | I31: 2021-04-19T22:33:21 | J31: 2021-04-19T22:33:21 | K31: 1 | L31: None. Donation by check.
A32: 56455 | B32: EF50-000031 | C32: 10 | D32: PayPal | E32: 1 | F32: 1968 | G32: N | H32: 2021-04-19 | I32: 2021-04-19T22:34:31 | J32: 2021-04-19T22:36:39 | K32: 1 | L32: None. Donation by check.
A33: 56456 | B33: EF50-000032 | C33: 77.77 | D33: PayPal | E33: 1 | F33: 1977 | G33: N | H33: 2021-04-19 | I33: 2021-04-19T22:38:25 | J33: 2021-04-19T22:38:25 | K33: 1 | L33: None. Donation by check.
A34: 56457 | B34: EF50-000033 | C34: 50 | D34: PayPal | E34: 1 | F34: 1958 | G34: N | H34: 2021-04-19 | I34: 2021-04-19T22:39:44 | J34: 2021-04-19T22:39:44 | K34: 1 | L34: None. Donation by check.
A35: 56458 | B35: EF50-000034 | C35: 25 | D35: PayPal | E35: 1 | F35: 1988 | G35: N | H35: 2021-04-19 | I35: 2021-04-19T22:41:58 | J35: 2021-04-19T22:41:58 | K35: 1 | L35: None. Donation by check.
A36: 56459 | B36: EF50-000035 | C36: 100 | D36: PayPal | E36: 2 | F36: 2012 | G36: N | H36: 2021-04-19 | I36: 2021-04-19T22:43:33 | J36: 2021-04-19T22:43:33 | K36: 1 | L36: None. Donation by check.
A37: 56460 | B37: EF50-000036 | C37: 25 | D37: Personal Check | E37: 1 | F37: 1968 | G37: N | H37: 2021-04-12 | I37: 2021-04-19T22:48:05 | J37: 2021-04-19T22:48:05 | K37: 1 | L37: None. Donation by check.
A38: 56461 | B38: EF50-000037 | C38: 100 | D38: Personal Check | E38: 1 | F38: 1958 | G38: N | H38: 2021-04-15 | I38: 2021-04-19T22:49:56 | J38: 2021-04-19T22:49:56 | K38: 1 | L38: None. Donation by check.
A39: 56462 | B39: EF50-000038 | C39: 25 | D39: Personal Check | E39: 1 | F39: 1964 | G39: N | H39: 2021-04-16 | I39: 2021-04-19T22:51:10 | J39: 2021-04-19T22:51:10 | K39: 1 | L39: None. Donation by check.
A40: 56463 | B40: EF50-000039 | C40: 15 | D40: Personal Check | E40: 11 | G40: N | H40: 2021-04-13 | I40: 2021-04-19T22:53:04 | J40: 2021-04-19T22:53:04 | K40: 1 | L40: None. Donation by check.
A41: 56464 | B41: EF50-000040 | C41: 100 | D41: Personal Check | E41: 1 | F41: 1967 | G41: N | H41: 2021-04-14 | I41: 2021-04-19T22:54:17 | J41: 2021-04-19T22:54:17 | K41: 1 | L41: None. Donation by check.
A42: 56465 | B42: EF50-000041 | C42: 100 | D42: Personal Check | E42: 1 | F42: 1965 | G42: N | H42: 2021-04-13 | I42: 2021-04-19T22:56:37 | J42: 2021-04-19T22:56:37 | K42: 1 | L42: None. Donation by check.
A43: 56466 | B43: EF50-000042 | C43: 50 | D43: Personal Check | E43: 1 | F43: 1959 | G43: N | H43: 2021-04-13 | I43: 2021-04-19T22:59:11 | J43: 2021-04-19T22:59:11 | K43: 1 | L43: None. Donation by check.
A44: 56467 | B44: EF50-000043 | C44: 25 | D44: Personal Check | E44: 1 | F44: 1968 | G44: N | H44: 2021-04-13 | I44: 2021-04-19T23:00:53 | J44: 2021-04-19T23:00:53 | K44: 1 | L44: None. Donation by check.
A45: 56468 | B45: EF50-000044 | C45: 50 | D45: Personal Check | E45: 2 | F45: 2007 | G45: N | H45: 2021-04-20 | I45: 2021-04-19T23:02:20 | J45: 2021-04-19T23:02:20 | K45: 1 | L45: None. Donation by check.
A46: 56469 | B46: EF50-000045 | C46: 100 | D46: Personal Check | E46: 1 | F46: 1968 | G46: N | H46: 2021-04-14 | I46: 2021-04-19T23:05:02 | J46: 2021-04-19T23:05:02 | K46: 1 | L46: None. Donation by check.
A47: 56470 | B47: EF50-000046 | C47: 55 | D47: Personal Check | E47: 1 | F47: 1955 | G47: N | H47: 2021-04-15 | I47: 2021-04-19T23:06:33 | J47: 2021-04-19T23:06:33 | K47: 1 | L47: None. Donation by check.
A48: 56471 | B48: EF50-000047 | C48: 25 | D48: Personal Check | E48: 1 | F48: 1956 | G48: N | H48: 2021-04-15 | I48: 2021-04-19T23:07:45 | J48: 2021-04-19T23:07:45 | K48: 1 | L48: None. Donation by check.
A49: 56472 | B49: EF50-000048 | C49: 25 | D49: Personal Check | E49: 1 | F49: 1966 | G49: N | H49: 2021-04-14 | I49: 2021-04-19T23:09:07 | J49: 2021-04-19T23:09:07 | K49: 1 | L49: None. Donation by check.
A50: 56473 | B50: EF50-000049 | C50: 50 | D50: Personal Check | E50: 1 | F50: 1956 | G50: N | H50: 2021-04-19 | I50: 2021-04-22T18:07:07 | J50: 2021-04-22T18:07:07 | K50: 1 | L50: None. Donation by check.
A51: 56474 | B51: EF50-000050 | C51: 19.63 | D51: Personal Check | E51: 1 | F51: 1963 | G51: N | H51: 2021-04-15 | I51: 2021-04-22T18:09:16 | J51: 2021-04-22T18:09:16 | K51: 1 | L51: None. Donation by check.
A52: 56475 | B52: EF50-000051 | C52: 64 | D52: Personal Check | E52: 1 | F52: 1964 | G52: N | H52: 2021-04-19 | I52: 2021-04-22T18:11:55 | J52: 2021-04-22T18:11:55 | K52: 1 | L52: None. Donation by check.
A53: 56476 | B53: EF50-000052 | C53: 158 | D53: Personal Check | E53: 1 | F53: 1958 | G53: N | H53: 2021-04-19 | I53: 2021-04-22T18:14:54 | J53: 2021-04-22T18:16:14 | K53: 1 | L53: None. Donation by check.
A54: 56477 | B54: EF50-000053 | C54: 50 | D54: Personal Check | E54: 1 | F54: 1958 | G54: N | H54: 2021-04-18 | I54: 2021-04-22T18:17:37 | J54: 2021-04-22T18:17:37 | K54: 1 | L54: None. Donation by check.
A55: 56478 | B55: EF50-000054 | C55: 200 | D55: Personal Check | E55: 1 | F55: 1978 | G55: N | H55: 2021-04-16 | I55: 2021-04-22T18:19:15 | J55: 2021-04-22T18:19:15 | K55: 1 | L55: None. Donation by check.
A56: 56479 | B56: EF50-000055 | C56: 25 | D56: Personal Check | E56: 1 | F56: 1975 | G56: N | H56: 2021-04-15 | I56: 2021-04-22T18:20:46 | J56: 2021-04-22T18:20:46 | K56: 1 | L56: None. Donation by check.
A57: 56480 | B57: EF50-000056 | C57: 39.25 | D57: Personal Check | E57: 1 | F57: 1963 | G57: N | H57: 2021-04-13 | I57: 2021-04-22T18:22:38 | J57: 2021-04-22T18:22:38 | K57: 1 | L57: None. Donation by check.
A58: 56481 | B58: EF50-000057 | C58: 64 | D58: Personal Check | E58: 1 | F58: 1964 | G58: N | H58: 2021-04-21 | I58: 2021-04-26T14:56:52 | J58: 2021-04-26T14:56:52 | K58: 1 | L58: None. Donation by check.
A59: 56482 | B59: EF50-000058 | C59: 50 | D59: Personal Check | E59: 1 | F59: 1958 | G59: N | H59: 2021-04-20 | I59: 2021-04-26T15:21:03 | J59: 2021-04-26T15:21:03 | K59: 1 | L59: None. Donation by check.
A60: 56483 | B60: EF50-000059 | C60: 25 | D60: Personal Check | E60: 1 | F60: 1980 | G60: N | H60: 2021-04-21 | I60: 2021-04-26T15:39:06 | J60: 2021-04-26T15:39:06 | K60: 1 | L60: None. Donation by check.
A61: 56484 | B61: EF50-000060 | C61: 100 | D61: Personal Check | E61: 1 | F61: 1951 | G61: N | H61: 2021-04-17 | I61: 2021-04-26T15:40:19 | J61: 2021-04-26T15:40:19 | K61: 1 | L61: None. Donation by check.
A62: 56485 | B62: EF50-000061 | C62: 50 | D62: Personal Check | E62: 1 | F62: 1957 | G62: N | H62: 2021-04-19 | I62: 2021-04-26T15:41:35 | J62: 2021-04-26T15:41:35 | K62: 1 | L62: None. Donation by check.
A63: 56486 | B63: EF50-000062 | C63: 50 | D63: Personal Check | E63: 1 | F63: 1960 | G63: N | H63: 2021-04-19 | I63: 2021-04-26T15:42:46 | J63: 2021-04-26T15:42:46 | K63: 1 | L63: None. Donation by check.
A64: 56487 | B64: EF50-000063 | C64: 100 | D64: Personal Check | E64: 1 | F64: 1964 | G64: N | H64: 2021-04-19 | I64: 2021-04-26T15:44:19 | J64: 2021-04-26T15:44:19 | K64: 1 | L64: None. Donation by check.
A65: 56488 | B65: EF50-000064 | C65: 30 | D65: Personal Check | E65: 1 | F65: 1968 | G65: N | H65: 2021-04-19 | I65: 2021-04-26T15:46:19 | J65: 2021-04-26T15:46:19 | K65: 1 | L65: None. Donation by check.
A66: 56489 | B66: EF50-000065 | C66: 25 | D66: Personal Check | E66: 1 | F66: 1969 | G66: N | H66: 2021-04-22 | I66: 2021-04-27T15:49:19 | J66: 2021-04-27T15:49:19 | K66: 1 | L66: None. Donation by check.
A67: 56490 | B67: EF50-000066 | C67: 100 | D67: Personal Check | E67: 1 | F67: 1963 | G67: N | H67: 2021-04-23 | I67: 2021-04-27T16:05:19 | J67: 2021-04-27T16:05:19 | K67: 1 | L67: None. Donation by check.
A68: 56491 | B68: EF50-000067 | C68: 100 | D68: Personal Check | E68: 2 | F68: 2014 | G68: N | H68: 2021-04-22 | I68: 2021-04-27T16:07:08 | J68: 2021-04-27T16:07:08 | K68: 1 | L68: None. Donation by check.
A69: 56492 | B69: EF50-000068 | C69: 100 | D69: Personal Check | E69: 1 | F69: 1965 | G69: N | H69: 2021-04-21 | I69: 2021-04-27T16:09:30 | J69: 2021-04-27T16:09:30 | K69: 1 | L69: None. Donation by check.
A70: 56493 | B70: EF50-000069 | C70: 58 | D70: Personal Check | E70: 1 | F70: 1958 | G70: N | H70: 2021-04-21 | I70: 2021-04-27T16:10:35 | J70: 2021-04-27T16:10:35 | K70: 1 | L70: None. Donation by check.
A71: 56494 | B71: EF50-000070 | C71: 50 | D71: Personal Check | E71: 1 | F71: 1977 | G71: N | H71: 2021-04-21 | I71: 2021-04-27T16:13:40 | J71: 2021-04-27T16:13:40 | K71: 1 | L71: None. Donation by check.
A72: 56495 | B72: EF50-000071 | C72: 50 | D72: Personal Check | E72: 1 | F72: 1964 | G72: N | H72: 2021-04-19 | I72: 2021-04-27T16:18:15 | J72: 2021-04-27T16:18:15 | K72: 1 | L72: None. Donation by check.
A73: 56496 | B73: EF50-000072 | C73: 200 | D73: Personal Check | E73: 1 | F73: 1968 | G73: N | H73: 2021-04-19 | I73: 2021-04-27T16:20:51 | J73: 2021-04-27T16:20:51 | K73: 1 | L73: None. Donation by check.
A74: 56497 | B74: EF50-000073 | C74: 555 | D74: Personal Check | E74: 1 | F74: 1955 | G74: N | H74: 2021-04-21 | I74: 2021-04-27T16:25:33 | J74: 2021-04-27T16:25:33 | K74: 1 | L74: None. Donation by check.
A75: 56498 | B75: EF50-000074 | C75: 50 | D75: Personal Check | E75: 1 | F75: 1964 | G75: N | H75: 2021-04-22 | I75: 2021-04-29T21:05:35 | J75: 2021-04-29T21:05:35 | K75: 1 | L75: None. Donation by check.
A76: 56499 | B76: EF50-000075 | C76: 40 | D76: Personal Check | E76: 1 | F76: 1958 | G76: N | H76: 2021-04-20 | I76: 2021-04-29T21:07:53 | J76: 2021-04-29T21:07:53 | K76: 1 | L76: None. Donation by check.
A77: 56500 | B77: EF50-000076 | C77: 50 | D77: Personal Check | E77: 1 | F77: 1969 | G77: N | H77: 2021-04-23 | I77: 2021-04-29T21:09:45 | J77: 2021-04-29T21:09:45 | K77: 1 | L77: None. Donation by check.
A78: 56501 | B78: EF50-000077 | C78: 100 | D78: Personal Check | E78: 1 | F78: 1986 | G78: N | H78: 2021-04-24 | I78: 2021-05-03T08:42:44 | J78: 2021-05-03T08:42:44 | K78: 1 | L78: None. Donation by check.
A79: 56502 | B79: EF50-000078 | C79: 10 | D79: Personal Check | E79: 11 | G79: N | H79: 2021-04-27 | I79: 2021-05-03T08:44:57 | J79: 2021-05-03T08:44:57 | K79: 1 | L79: None. Donation by check.
A80: 56503 | B80: EF50-000079 | C80: 100 | D80: Personal Check | E80: 2 | F80: 2012 | G80: N | H80: 2021-04-30 | I80: 2021-05-03T08:46:36 | J80: 2021-05-03T08:46:36 | K80: 1 | L80: None. Donation by check.
A81: 56504 | B81: EF50-000080 | C81: 100 | D81: Personal Check | E81: 1 | F81: 1960 | G81: N | H81: 2021-04-19 | I81: 2021-05-03T08:48:11 | J81: 2021-05-03T08:48:11 | K81: 1 | L81: None. Donation by check.
A82: 56505 | B82: EF50-000081 | C82: 19.23 | D82: ACH Grant Deposit | E82: 2 | F82: 2015 | G82: N | H82: 2021-05-03 | I82: 2021-05-10T15:05:51 | J82: 2021-08-04T02:07:16 | K82: 1 | L82: None. Donation by check.
A83: 56506 | B83: EF50-000082 | C83: 2 | D83: ACH Grant Deposit | E83: 1 | F83: 1977 | G83: N | H83: 2021-03-19 | I83: 2021-05-10T15:29:02 | J83: 2021-08-04T14:27:28 | K83: 1 | L83: None. Donation by check.
A84: 56507 | B84: EF50-000083 | C84: 100 | D84: Matching Grant | E84: 12 | F84: 1979 | G84: N | H84: 2021-02-01 | I84: 2021-05-10T15:30:17 | J84: 2021-08-04T21:40:38 | K84: 1 | L84: None. Donation by check.
A85: 56508 | B85: F50-000002 | C85: 10 | D85: CC | E85: 4 | F85: 1964 | G85: N | H85: 2021-05-15T10:25:47 | I85: 2021-05-15T10:25:13 | J85: 2021-05-15T10:25:13 | K85: 1 | L85: 10
A86: 56509 | B86: EF50-000084 | C86: 55 | D86: Personal Check | E86: 1 | F86: 1955 | G86: N | H86: 2021-05-21 | I86: 2021-05-17T16:19:14 | J86: 2021-05-17T16:19:14 | K86: 1 | L86: None. Donation by check.
A87: 56510 | B87: EF50-000085 | C87: 50 | D87: Personal Check | E87: 1 | F87: 1996 | G87: N | H87: 2021-05-27 | I87: 2021-05-17T16:21:53 | J87: 2021-05-17T16:21:53 | K87: 1 | L87: None. Donation by check.
A88: 56511 | B88: EF50-000086 | C88: 50 | D88: Personal Check | E88: 2 | F88: 2007 | G88: N | H88: 2021-05-20 | I88: 2021-05-23T11:44:23 | J88: 2021-05-23T11:44:23 | K88: 1 | L88: None. Donation by check.
A89: 56512 | B89: EF50-000087 | C89: 25 | D89: Personal Check | E89: 11 | G89: N | H89: 2021-06-02 | I89: 2021-05-29T23:27:54 | J89: 2021-05-29T23:27:54 | K89: 1 | L89: None. Donation by check.
A90: 56513 | B90: F50-000003 | C90: 10 | D90: CC | E90: 1 | F90: 1965 | G90: N | H90: 2021-06-12T08:04:02 | I90: 2021-06-12T08:03:28 | J90: 2021-06-12T08:03:28 | K90: 1 | L90: 10
A91: 56514 | B91: EF50-000088 | C91: 50 | D91: Personal Check | E91: 2 | F91: 2007 | G91: N | H91: 2021-06-18 | I91: 2021-06-19T10:06:36 | J91: 2021-06-19T10:06:36 | K91: 1 | L91: None. Donation by check.
A92: 56515 | B92: EF50-000089 | C92: 555 | D92: Personal Check | E92: 1 | F92: 1955 | G92: N | H92: 2021-06-23 | I92: 2021-07-14T01:53:27 | J92: 2021-07-14T01:53:27 | K92: 1 | L92: None. Donation by check.
A93: 56516 | B93: EF50-000090 | C93: 50 | D93: Personal Check | E93: 2 | F93: 2007 | G93: N | H93: 2021-07-20 | I93: 2021-07-31T01:26:17 | J93: 2021-07-31T01:26:17 | K93: 1 | L93: None. Donation by check.
A94: 56517 | B94: EF50-000091 | C94: 2 | D94: ACH Grant Deposit | E94: 1 | F94: 1977 | G94: N | H94: 2021-05-13 | I94: 2021-08-04T01:36:17 | J94: 2021-08-04T21:59:15 | K94: 1 | L94: None. Donation by check.
A95: 56518 | B95: EF50-000092 | C95: 2 | D95: Matching Grant | E95: 12 | F95: 1977 | G95: N | H95: 2021-05-13 | I95: 2021-08-04T01:37:38 | J95: 2021-08-04T22:06:49 | K95: 1 | L95: None. Donation by check.
A96: 56519 | B96: EF50-000093 | C96: 2 | D96: ACH Grant Deposit | E96: 1 | F96: 1977 | G96: N | H96: 2021-05-13 | I96: 2021-08-04T01:39:32 | J96: 2021-08-04T22:03:43 | K96: 1 | L96: None. Donation by check.
A97: 56520 | B97: EF50-000094 | C97: 2 | D97: Matching Grant | E97: 12 | F97: 1977 | G97: N | H97: 2021-05-13 | I97: 2021-08-04T01:41:31 | J97: 2021-08-30T00:58:22 | K97: 1 | L97: None. Donation by check.
A98: 56521 | B98: EF50-000095 | C98: 2 | D98: ACH Grant Deposit | E98: 1 | F98: 1977 | G98: N | H98: 2021-05-17 | I98: 2021-08-04T01:44:38 | J98: 2021-08-04T23:55:29 | K98: 1 | L98: None. Donation by check.
A99: 56522 | B99: EF50-000096 | C99: 2 | D99: Matching Grant | E99: 12 | F99: 1977 | G99: N | H99: 2021-05-17 | I99: 2021-08-04T01:47:13 | J99: 2021-08-04T23:56:17 | K99: 1 | L99: None. Donation by check.
A100: 56523 | B100: EF50-000097 | C100: 19.23 | D100: Matching Grant | E100: 12 | G100: N | H100: 2021-05-03 | I100: 2021-08-04T02:09:36 | J100: 2021-08-04T14:24:12 | K100: 1 | L100: None. Donation by check.
A101: 56529 | B101: EF50-000098 | C101: 2 | D101: Matching Grant | E101: 12 | G101: N | H101: 2021-03-19 | I101: 2021-08-04T14:26:37 | J101: 2021-08-04T14:26:37 | K101: 1 | L101: None. Donation by check.
A102: 56530 | B102: EF50-000099 | C102: 19.23 | D102: ACH Grant Deposit | E102: 1 | F102: 1987 | G102: N | H102: 2021-05-31 | I102: 2021-08-04T23:58:53 | J102: 2021-08-04T23:58:53 | K102: 1 | L102: None. Donation by check.
A103: 56531 | B103: EF50-000100 | C103: 19.23 | D103: Matching Grant | E103: 12 | F103: 2015 | G103: N | H103: 2021-05-31 | I103: 2021-08-05T00:02:16 | J103: 2021-08-05T00:02:16 | K103: 1 | L103: None. Donation by check.
A104: 56532 | B104: EF50-000101 | C104: 19.23 | D104: ACH Grant Deposit | E104: 2 | F104: 2015 | G104: N | H104: 2021-05-31 | I104: 2021-08-05T00:03:51 | J104: 2021-08-05T00:03:51 | K104: 1 | L104: None. Donation by check.
A105: 56533 | B105: EF50-000102 | C105: 19.23 | D105: Matching Grant | E105: 12 | F105: 2015 | G105: N | H105: 2021-05-31 | I105: 2021-08-05T00:06:05 | J105: 2021-08-05T00:06:05 | K105: 1 | L105: None. Donation by check.
A106: 56534 | B106: EF50-000103 | C106: 19.23 | D106: ACH Grant Deposit | E106: 2 | F106: 2015 | G106: N | H106: 2021-05-31 | I106: 2021-08-05T00:08:08 | J106: 2021-08-05T00:08:08 | K106: 1 | L106: None. Donation by check.
A107: 56535 | B107: EF50-000104 | C107: 19.23 | D107: Matching Grant | E107: 12 | F107: 2015 | G107: N | H107: 2021-05-31 | I107: 2021-08-05T00:10:12 | J107: 2021-08-05T00:10:12 | K107: 1 | L107: None. Donation by check.
A108: 56536 | B108: EF50-000105 | C108: 19.23 | D108: ACH Grant Deposit | E108: 2 | F108: 2015 | G108: N | H108: 2021-06-29 | I108: 2021-08-05T00:21:54 | J108: 2021-08-05T00:21:54 | K108: 1 | L108: None. Donation by check.
A109: 56537 | B109: EF50-000106 | C109: 19.23 | D109: Matching Grant | E109: 12 | F109: 2015 | G109: N | H109: 2021-06-29 | I109: 2021-08-05T00:24:20 | J109: 2021-08-05T00:24:20 | K109: 1 | L109: None. Donation by check.
A110: 56538 | B110: EF50-000107 | C110: 250 | D110: ACH Grant Deposit | E110: 1 | F110: 1992 | G110: N | H110: 2021-06-29 | I110: 2021-08-05T00:28:04 | J110: 2021-08-05T00:28:04 | K110: 1 | L110: None. Donation by check.
A111: 56539 | B111: EF50-000108 | C111: 250 | D111: Matching Grant | E111: 12 | F111: 1992 | G111: N | H111: 2021-06-29 | I111: 2021-08-05T00:30:28 | J111: 2021-08-05T00:30:49 | K111: 1 | L111: None. Donation by check.
A112: 56540 | B112: EF50-000109 | C112: 19.23 | D112: ACH Grant Deposit | E112: 2 | F112: 2015 | G112: N | H112: 2021-06-29 | I112: 2021-08-05T00:35:34 | J112: 2021-08-05T00:35:34 | K112: 1 | L112: None. Donation by check.
A113: 56541 | B113: EF50-000110 | C113: 19.23 | D113: Matching Grant | E113: 12 | F113: 2015 | G113: N | H113: 2021-06-29 | I113: 2021-08-05T00:37:28 | J113: 2021-08-05T00:37:28 | K113: 1 | L113: None. Donation by check.
A114: 56542 | B114: EF50-000111 | C114: 2 | D114: ACH Grant Deposit | E114: 1 | F114: 1977 | G114: N | H114: 2021-06-29 | I114: 2021-08-05T00:40:20 | J114: 2021-08-05T00:40:20 | K114: 1 | L114: None. Donation by check.
A115: 56543 | B115: EF50-000112 | C115: 2 | D115: Matching Grant | E115: 12 | F115: 1977 | G115: N | H115: 2021-06-29 | I115: 2021-08-05T00:42:09 | J115: 2021-08-05T00:42:09 | K115: 1 | L115: None. Donation by check.
A116: 56544 | B116: EF50-000113 | C116: 100 | D116: ACH Grant Deposit | E116: 1 | F116: 1992 | G116: N | H116: 2021-06-29 | I116: 2021-08-05T00:44:11 | J116: 2021-08-05T00:45:23 | K116: 1 | L116: None. Donation by check.
A117: 56545 | B117: EF50-000114 | C117: 212.5 | D117: ACH Grant Deposit | E117: 4 | G117: N | H117: 2021-08-03 | I117: 2021-08-05T01:42:52 | J117: 2021-08-05T01:45:55 | K117: 1 | L117: None. Donation by check.
A118: 56546 | B118: EF50-000115 | C118: 19.23 | D118: ACH Grant Deposit | E118: 2 | F118: 2015 | G118: N | H118: 2021-08-03 | I118: 2021-08-05T01:45:21 | J118: 2021-08-05T01:45:21 | K118: 1 | L118: None. Donation by check.
A119: 56547 | B119: EF50-000116 | C119: 19.23 | D119: Matching Grant | E119: 12 | F119: 2015 | G119: N | H119: 2021-08-03 | I119: 2021-08-05T01:48:03 | J119: 2021-08-05T01:48:03 | K119: 1 | L119: None. Donation by check.
A120: 56548 | B120: EF50-000117 | C120: 19.23 | D120: ACH Grant Deposit | E120: 2 | F120: 2015 | G120: N | H120: 2021-08-03 | I120: 2021-08-05T01:49:38 | J120: 2021-08-05T01:49:38 | K120: 1 | L120: None. Donation by check.
A121: 56549 | B121: EF50-000118 | C121: 19.23 | D121: Matching Grant | E121: 12 | F121: 2015 | G121: N | H121: 2021-08-03 | I121: 2021-08-05T01:51:15 | J121: 2021-08-05T01:51:15 | K121: 1 | L121: None. Donation by check.
A122: 56550 | B122: EF50-000119 | C122: 2 | D122: ACH Grant Deposit | E122: 1 | F122: 1977 | G122: N | H122: 2021-08-03 | I122: 2021-08-05T01:53:09 | J122: 2021-08-05T01:53:09 | K122: 1 | L122: None. Donation by check.
A123: 56551 | B123: EF50-000120 | C123: 2 | D123: Matching Grant | E123: 12 | F123: 1977 | G123: N | H123: 2021-08-03 | I123: 2021-08-05T01:54:38 | J123: 2021-08-05T01:54:38 | K123: 1 | L123: None. Donation by check.
A124: 56552 | B124: EF50-000121 | C124: 2 | D124: ACH Grant Deposit | E124: 1 | F124: 1977 | G124: N | H124: 2021-08-03 | I124: 2021-08-05T02:10:36 | J124: 2021-08-05T02:10:36 | K124: 1 | L124: None. Donation by check.
A125: 56553 | B125: EF50-000122 | C125: 2 | D125: Matching Grant | E125: 12 | F125: 1977 | G125: N | H125: 2021-08-03 | I125: 2021-08-05T02:11:50 | J125: 2021-08-05T02:11:50 | K125: 1 | L125: None. Donation by check.
A126: 56554 | B126: EF50-000123 | C126: 100 | D126: Personal Check | E126: 1 | F126: 1963 | G126: N | H126: 2021-08-03 | I126: 2021-08-14T01:34:51 | J126: 2021-08-14T01:34:51 | K126: 1 | L126: None. Donation by check.
A127: 56555 | B127: EF50-000124 | C127: 50 | D127: Personal Check | E127: 2 | F127: 2007 | G127: N | H127: 2021-08-20 | I127: 2021-09-02T02:00:20 | J127: 2021-09-02T02:00:20 | K127: 1 | L127: None. Donation by check.
A128: 56556 | B128: EF50-000125 | C128: 19.58 | D128: Personal Check | E128: 1 | F128: 1958 | G128: N | H128: 2021-09-16 | I128: 2021-09-20T18:32:40 | J128: 2021-09-20T18:32:40 | K128: 1 | L128: None. Donation by check.
A129: 56557 | B129: EF50-000126 | C129: 50 | D129: Personal Check | E129: 2 | F129: 2007 | G129: N | H129: 2021-09-20 | I129: 2021-09-20T18:34:11 | J129: 2021-09-20T18:34:11 | K129: 1 | L129: None. Donation by check.
A130: 56558 | B130: EF50-000127 | C130: 900 | D130: Personal Check | E130: 1 | F130: 1969 | G130: N | H130: 2021-09-20 | I130: 2021-09-28T08:43:21 | J130: 2021-09-28T08:43:21 | K130: 1 | L130: None. Donation by check.
A131: 56559 | B131: EF50-000128 | C131: 100 | D131: PayPal | E131: 1 | F131: 1969 | G131: N | H131: 2021-04-20 | I131: 2021-09-29T23:42:34 | J131: 2021-09-29T23:42:34 | K131: 1 | L131: None. Donation by check.
A132: 56560 | B132: EF50-000129 | C132: 25 | D132: PayPal | E132: 1 | F132: 1975 | G132: N | H132: 2021-04-20 | I132: 2021-09-29T23:45:20 | J132: 2021-09-29T23:45:20 | K132: 1 | L132: None. Donation by check.
A133: 56561 | B133: EF50-000130 | C133: 20.09 | D133: PayPal | E133: 3 | F133: 2009 | G133: N | H133: 2021-04-23 | I133: 2021-09-29T23:46:32 | J133: 2021-09-29T23:46:32 | K133: 1 | L133: None. Donation by check.
A134: 56562 | B134: EF50-000131 | C134: 10 | D134: PayPal | E134: 2 | F134: 2016 | G134: N | H134: 2021-04-23 | I134: 2021-09-29T23:47:34 | J134: 2021-09-29T23:47:34 | K134: 1 | L134: None. Donation by check.
A135: 56563 | B135: EF50-000132 | C135: 25 | D135: PayPal | E135: 1 | F135: 1975 | G135: N | H135: 2021-04-24 | I135: 2021-09-29T23:49:36 | J135: 2021-09-29T23:49:36 | K135: 1 | L135: None. Donation by check.
A136: 56564 | B136: EF50-000133 | C136: 75 | D136: PayPal | E136: 1 | F136: 1975 | G136: N | H136: 2021-04-24 | I136: 2021-09-29T23:51:17 | J136: 2021-09-29T23:51:17 | K136: 1 | L136: None. Donation by check.
A137: 56565 | B137: EF50-000134 | C137: 20 | D137: PayPal | E137: 11 | G137: N | H137: 2021-04-26 | I137: 2021-09-29T23:53:59 | J137: 2021-09-29T23:53:59 | K137: 1 | L137: None. Donation by check.
A138: 56566 | B138: EF50-000135 | C138: 10 | D138: PayPal | E138: 1 | F138: 2007 | G138: N | H138: 2021-04-27 | I138: 2021-09-29T23:55:03 | J138: 2021-09-29T23:55:03 | K138: 1 | L138: None. Donation by check.
A139: 56567 | B139: EF50-000136 | C139: 20 | D139: PayPal | E139: 2 | F139: 2015 | G139: N | H139: 2021-04-28 | I139: 2021-09-29T23:58:38 | J139: 2021-09-29T23:58:38 | K139: 1 | L139: None. Donation by check.
A140: 56568 | B140: EF50-000137 | C140: 25 | D140: PayPal | E140: 1 | F140: 1980 | G140: N | H140: 2021-04-28 | I140: 2021-09-30T00:00:16 | J140: 2021-09-30T00:00:16 | K140: 1 | L140: None. Donation by check.
A141: 56569 | B141: EF50-000138 | C141: 10 | D141: PayPal | E141: 1 | F141: 1986 | G141: N | H141: 2021-04-29 | I141: 2021-09-30T00:01:34 | J141: 2021-09-30T00:01:34 | K141: 1 | L141: None. Donation by check.
A142: 56570 | B142: EF50-000139 | C142: 35 | D142: PayPal | E142: 6 | F142: 1978 | G142: N | H142: 2021-05-02 | I142: 2021-09-30T00:03:24 | J142: 2021-09-30T00:03:24 | K142: 1 | L142: None. Donation by check.
A143: 56571 | B143: EF50-000140 | C143: 25 | D143: PayPal | E143: 2 | F143: 2018 | G143: N | H143: 2021-05-03 | I143: 2021-09-30T00:06:03 | J143: 2021-09-30T00:06:03 | K143: 1 | L143: None. Donation by check.
A144: 56572 | B144: EF50-000141 | C144: 3 | D144: PayPal | E144: 1 | F144: 1975 | G144: N | H144: 2021-05-04 | I144: 2021-09-30T00:07:18 | J144: 2021-09-30T00:07:18 | K144: 1 | L144: None. Donation by check.
A145: 56573 | B145: EF50-000142 | C145: 58 | D145: PayPal | E145: 1 | F145: 1958 | G145: N | H145: 2021-05-04 | I145: 2021-09-30T00:08:37 | J145: 2021-09-30T00:08:37 | K145: 1 | L145: None. Donation by check.
A146: 56574 | B146: EF50-000143 | C146: 20 | D146: PayPal | E146: 1 | F146: 1977 | G146: N | H146: 2021-05-05 | I146: 2021-09-30T00:10:43 | J146: 2021-09-30T00:10:43 | K146: 1 | L146: None. Donation by check.
A147: 56575 | B147: EF50-000144 | C147: 5 | D147: PayPal | E147: 1 | F147: 1978 | G147: N | H147: 2021-05-06 | I147: 2021-09-30T00:11:42 | J147: 2021-09-30T00:11:42 | K147: 1 | L147: None. Donation by check.
A148: 56576 | B148: EF50-000145 | C148: 10 | D148: PayPal | E148: 2 | F148: 2019 | G148: N | H148: 2021-05-08 | I148: 2021-09-30T00:12:45 | J148: 2021-09-30T00:12:45 | K148: 1 | L148: None. Donation by check.
A149: 56577 | B149: EF50-000146 | C149: 5 | D149: PayPal | E149: 1 | F149: 1956 | G149: N | H149: 2021-05-09 | I149: 2021-09-30T00:14:06 | J149: 2021-09-30T00:14:06 | K149: 1 | L149: None. Donation by check.
A150: 56578 | B150: EF50-000147 | C150: 10 | D150: PayPal | E150: 1 | F150: 1981 | G150: N | H150: 2021-05-11 | I150: 2021-09-30T00:15:29 | J150: 2021-09-30T00:15:29 | K150: 1 | L150: None. Donation by check.
A151: 56579 | B151: EF50-000148 | C151: 10 | D151: PayPal | E151: 1 | F151: 1965 | G151: N | H151: 2021-05-11 | I151: 2021-09-30T00:16:30 | J151: 2021-09-30T00:16:30 | K151: 1 | L151: None. Donation by check.
A152: 56580 | B152: EF50-000149 | C152: 25 | D152: PayPal | E152: 1 | F152: 2005 | G152: N | H152: 2021-05-14 | I152: 2021-09-30T00:17:40 | J152: 2021-09-30T00:17:40 | K152: 1 | L152: None. Donation by check.
A153: 56581 | B153: F50-000004 | C153: 50 | D153: CC | E153: 2 | F153: 2002 | G153: N | H153: 2021-09-30T00:18:02 | I153: 2021-09-30T00:18:05 | J153: 2021-09-30T00:18:05 | K153: 1 | L153: 50
A154: 56582 | B154: EF50-000150 | C154: 10 | D154: PayPal | E154: 1 | F154: 1966 | G154: N | H154: 2021-05-15 | I154: 2021-09-30T00:18:42 | J154: 2021-09-30T00:18:42 | K154: 1 | L154: None. Donation by check.
A155: 56583 | B155: EF50-000151 | C155: 20.09 | D155: PayPal | E155: 3 | F155: 2009 | G155: N | H155: 2021-05-23 | I155: 2021-09-30T00:20:17 | J155: 2021-09-30T00:20:17 | K155: 1 | L155: None. Donation by check.
A156: 56584 | B156: EF50-000152 | C156: 10 | D156: PayPal | E156: 2 | F156: 2016 | G156: N | H156: 2021-05-23 | I156: 2021-09-30T00:21:14 | J156: 2021-09-30T00:21:14 | K156: 1 | L156: None. Donation by check.
A157: 56585 | B157: EF50-000153 | C157: 100 | D157: PayPal | E157: 4 | G157: N | H157: 2021-05-23 | I157: 2021-09-30T00:23:04 | J157: 2021-09-30T00:23:04 | K157: 1 | L157: None. Donation by check.
A158: 56586 | B158: EF50-000154 | C158: 35 | D158: PayPal | E158: 6 | F158: 1978 | G158: N | H158: 2021-05-27 | I158: 2021-09-30T00:24:45 | J158: 2021-09-30T00:24:45 | K158: 1 | L158: None. Donation by check.
A159: 56587 | B159: EF50-000155 | C159: 10 | D159: PayPal | E159: 1 | F159: 2007 | G159: N | H159: 2021-05-27 | I159: 2021-09-30T00:25:47 | J159: 2021-09-30T00:25:47 | K159: 1 | L159: None. Donation by check.
A160: 56588 | B160: EF50-000156 | C160: 20 | D160: PayPal | E160: 2 | F160: 2015 | G160: N | H160: 2021-05-28 | I160: 2021-09-30T00:26:44 | J160: 2021-09-30T00:26:44 | K160: 1 | L160: None. Donation by check.
A161: 56589 | B161: EF50-000157 | C161: 10 | D161: PayPal | E161: 1 | F161: 1986 | G161: N | H161: 2021-05-29 | I161: 2021-09-30T00:27:44 | J161: 2021-09-30T00:27:44 | K161: 1 | L161: None. Donation by check.
A162: 56590 | B162: EF50-000158 | C162: 58 | D162: PayPal | E162: 1 | F162: 1958 | G162: N | H162: 2021-06-04 | I162: 2021-09-30T11:26:56 | J162: 2021-09-30T11:26:56 | K162: 1 | L162: None. Donation by check.
A163: 56591 | B163: EF50-000159 | C163: 3 | D163: PayPal | E163: 1 | F163: 1975 | G163: N | H163: 2021-06-04 | I163: 2021-09-30T11:27:40 | J163: 2021-09-30T11:27:40 | K163: 1 | L163: None. Donation by check.
A164: 56592 | B164: EF50-000160 | C164: 20 | D164: PayPal | E164: 1 | F164: 1977 | G164: N | H164: 2021-06-05 | I164: 2021-09-30T11:29:02 | J164: 2021-09-30T11:29:02 | K164: 1 | L164: None. Donation by check.
A165: 56593 | B165: EF50-000161 | C165: 5 | D165: PayPal | E165: 1 | F165: 1978 | G165: N | H165: 2021-06-06 | I165: 2021-09-30T11:30:17 | J165: 2021-09-30T11:30:17 | K165: 1 | L165: None. Donation by check.
A166: 56594 | B166: EF50-000162 | C166: 10 | D166: PayPal | E166: 2 | F166: 2019 | G166: N | H166: 2021-06-08 | I166: 2021-09-30T11:31:24 | J166: 2021-09-30T11:31:24 | K166: 1 | L166: None. Donation by check.
A167: 56595 | B167: EF50-000163 | C167: 5 | D167: PayPal | E167: 1 | F167: 1956 | G167: N | H167: 2021-06-09 | I167: 2021-09-30T11:32:13 | J167: 2021-09-30T11:32:13 | K167: 1 | L167: None. Donation by check.
A168: 56596 | B168: EF50-000164 | C168: 10 | D168: PayPal | E168: 1 | F168: 1981 | G168: N | H168: 2021-06-11 | I168: 2021-09-30T11:33:20 | J168: 2021-09-30T11:33:20 | K168: 1 | L168: None. Donation by check.
A169: 56597 | B169: EF50-000165 | C169: 25 | D169: PayPal | E169: 1 | F169: 2005 | G169: N | H169: 2021-06-14 | I169: 2021-09-30T11:34:15 | J169: 2021-09-30T11:34:15 | K169: 1 | L169: None. Donation by check.
A170: 56598 | B170: EF50-000166 | C170: 10 | D170: PayPal | E170: 1 | F170: 1966 | G170: N | H170: 2021-06-15 | I170: 2021-09-30T11:35:08 | J170: 2021-09-30T11:35:08 | K170: 1 | L170: None. Donation by check.
A171: 56599 | B171: EF50-000167 | C171: 10 | D171: PayPal | E171: 2 | F171: 2016 | G171: N | H171: 2021-06-23 | I171: 2021-09-30T11:36:02 | J171: 2021-09-30T11:36:02 | K171: 1 | L171: None. Donation by check.
A172: 56600 | B172: EF50-000168 | C172: 20.09 | D172: PayPal | E172: 3 | F172: 2009 | G172: N | H172: 2021-06-23 | I172: 2021-09-30T11:37:24 | J172: 2021-09-30T11:37:24 | K172: 1 | L172: None. Donation by check.
A173: 56601 | B173: EF50-000169 | C173: 10 | D173: PayPal | E173: 1 | F173: 2007 | G173: N | H173: 2021-06-27 | I173: 2021-09-30T11:38:18 | J173: 2021-09-30T11:38:18 | K173: 1 | L173: None. Donation by check.
A174: 56602 | B174: EF50-000170 | C174: 24 | D174: PayPal | E174: 6 | F174: 1978 | G174: N | H174: 2021-06-27 | I174: 2021-09-30T11:39:26 | J174: 2021-09-30T11:39:26 | K174: 1 | L174: None. Donation by check.
A175: 56603 | B175: EF50-000171 | C175: 20 | D175: PayPal | E175: 2 | F175: 2015 | G175: N | H175: 2021-06-28 | I175: 2021-09-30T11:40:21 | J175: 2021-09-30T11:40:21 | K175: 1 | L175: None. Donation by check.
A176: 56604 | B176: EF50-000172 | C176: 10 | D176: PayPal | E176: 1 | F176: 1986 | G176: N | H176: 2021-06-29 | I176: 2021-09-30T11:41:23 | J176: 2021-09-30T11:41:23 | K176: 1 | L176: None. Donation by check.
A177: 56605 | B177: EF50-000173 | C177: 58 | D177: PayPal | E177: 1 | F177: 1958 | G177: N | H177: 2021-07-04 | I177: 2021-09-30T11:42:23 | J177: 2021-09-30T11:42:23 | K177: 1 | L177: None. Donation by check.
A178: 56606 | B178: EF50-000174 | C178: 3 | D178: PayPal | E178: 1 | F178: 1975 | G178: N | H178: 2021-07-04 | I178: 2021-09-30T11:43:07 | J178: 2021-09-30T11:43:07 | K178: 1 | L178: None. Donation by check.
A179: 56607 | B179: EF50-000175 | C179: 20 | D179: PayPal | E179: 1 | F179: 1977 | G179: N | H179: 2021-07-05 | I179: 2021-09-30T11:43:51 | J179: 2021-09-30T11:43:51 | K179: 1 | L179: None. Donation by check.
A180: 56608 | B180: EF50-000176 | C180: 5 | D180: PayPal | E180: 1 | F180: 1978 | G180: N | H180: 2021-07-06 | I180: 2021-09-30T11:44:50 | J180: 2021-09-30T11:44:50 | K180: 1 | L180: None. Donation by check.
A181: 56609 | B181: EF50-000177 | C181: 10 | D181: PayPal | E181: 2 | F181: 2019 | G181: N | H181: 2021-07-08 | I181: 2021-09-30T11:45:53 | J181: 2021-09-30T11:45:53 | K181: 1 | L181: None. Donation by check.
A182: 56610 | B182: EF50-000178 | C182: 5 | D182: PayPal | E182: 1 | F182: 1956 | G182: N | H182: 2021-07-09 | I182: 2021-09-30T11:46:50 | J182: 2021-09-30T11:46:50 | K182: 1 | L182: None. Donation by check.
A183: 56611 | B183: EF50-000179 | C183: 10 | D183: PayPal | E183: 1 | F183: 1981 | G183: N | H183: 2021-07-11 | I183: 2021-09-30T11:47:51 | J183: 2021-09-30T11:47:51 | K183: 1 | L183: None. Donation by check.
A184: 56612 | B184: EF50-000180 | C184: 25 | D184: PayPal | E184: 1 | F184: 2005 | G184: N | H184: 2021-07-14 | I184: 2021-09-30T11:48:50 | J184: 2021-09-30T11:48:50 | K184: 1 | L184: None. Donation by check.
A185: 56613 | B185: EF50-000181 | C185: 10 | D185: PayPal | E185: 1 | F185: 1966 | G185: N | H185: 2021-07-15 | I185: 2021-09-30T11:49:43 | J185: 2021-09-30T11:49:43 | K185: 1 | L185: None. Donation by check.
A186: 56614 | B186: EF50-000182 | C186: 10 | D186: PayPal | E186: 2 | F186: 2016 | G186: N | H186: 2021-07-23 | I186: 2021-09-30T11:50:34 | J186: 2021-09-30T11:50:34 | K186: 1 | L186: None. Donation by check.
A187: 56615 | B187: EF50-000183 | C187: 20.09 | D187: PayPal | E187: 3 | F187: 2009 | G187: N | H187: 2021-07-23 | I187: 2021-09-30T11:51:35 | J187: 2021-09-30T11:51:35 | K187: 1 | L187: None. Donation by check.
A188: 56616 | B188: EF50-000184 | C188: 10 | D188: PayPal | E188: 1 | F188: 2007 | G188: N | H188: 2021-07-27 | I188: 2021-09-30T11:52:35 | J188: 2021-09-30T11:52:35 | K188: 1 | L188: None. Donation by check.
A189: 56617 | B189: EF50-000185 | C189: 20 | D189: PayPal | E189: 2 | F189: 2015 | G189: N | H189: 2021-07-28 | I189: 2021-09-30T11:53:30 | J189: 2021-09-30T11:53:30 | K189: 1 | L189: None. Donation by check.
A190: 56618 | B190: EF50-000186 | C190: 10 | D190: PayPal | E190: 1 | F190: 1986 | G190: N | H190: 2021-07-29 | I190: 2021-09-30T11:54:16 | J190: 2021-09-30T11:54:16 | K190: 1 | L190: None. Donation by check.
A191: 56619 | B191: EF50-000187 | C191: 58 | D191: PayPal | E191: 1 | F191: 1958 | G191: N | H191: 2021-08-04 | I191: 2021-09-30T11:55:02 | J191: 2021-09-30T11:55:02 | K191: 1 | L191: None. Donation by check.
A192: 56620 | B192: EF50-000188 | C192: 3 | D192: PayPal | E192: 1 | F192: 1975 | G192: N | H192: 2021-08-04 | I192: 2021-09-30T11:55:59 | J192: 2021-09-30T11:55:59 | K192: 1 | L192: None. Donation by check.
A193: 56621 | B193: EF50-000189 | C193: 20 | D193: PayPal | E193: 1 | F193: 1977 | G193: N | H193: 2021-08-05 | I193: 2021-09-30T11:56:54 | J193: 2021-09-30T11:56:54 | K193: 1 | L193: None. Donation by check.
A194: 56622 | B194: EF50-000190 | C194: 5 | D194: PayPal | E194: 1 | F194: 1978 | G194: N | H194: 2021-08-06 | I194: 2021-09-30T11:57:43 | J194: 2021-09-30T11:57:43 | K194: 1 | L194: None. Donation by check.
A195: 56623 | B195: EF50-000191 | C195: 10 | D195: PayPal | E195: 2 | F195: 2019 | G195: N | H195: 2021-08-08 | I195: 2021-09-30T11:58:32 | J195: 2021-09-30T11:58:32 | K195: 1 | L195: None. Donation by check.
A196: 56624 | B196: EF50-000192 | C196: 5 | D196: PayPal | E196: 1 | F196: 1956 | G196: N | H196: 2021-08-09 | I196: 2021-09-30T11:59:28 | J196: 2021-09-30T11:59:28 | K196: 1 | L196: None. Donation by check.
A197: 56625 | B197: EF50-000193 | C197: 10 | D197: PayPal | E197: 1 | F197: 1981 | G197: N | H197: 2021-08-11 | I197: 2021-09-30T12:00:16 | J197: 2021-09-30T12:00:16 | K197: 1 | L197: None. Donation by check.
A198: 56626 | B198: EF50-000194 | C198: 25 | D198: PayPal | E198: 1 | F198: 2005 | G198: N | H198: 2021-08-14 | I198: 2021-09-30T12:01:39 | J198: 2021-09-30T12:01:39 | K198: 1 | L198: None. Donation by check.
A199: 56627 | B199: EF50-000195 | C199: 10 | D199: PayPal | E199: 1 | F199: 1966 | G199: N | H199: 2021-08-15 | I199: 2021-09-30T12:02:49 | J199: 2021-09-30T12:02:49 | K199: 1 | L199: None. Donation by check.
A200: 56628 | B200: EF50-000196 | C200: 10 | D200: PayPal | E200: 2 | F200: 2016 | G200: N | H200: 2021-08-23 | I200: 2021-09-30T12:03:45 | J200: 2021-09-30T12:03:45 | K200: 1 | L200: None. Donation by check.
... 574 more rows

Sheet Sheet11 (hidden)
A1: 1
A2: 2
A3: 3
A4: 4
A5: 5
A6: 6
A7: 7
A8: 8
A9: 9
A10: 10
A11: 11
A12: 12
A13: 13
A14: 14
A15: 15
A16: 16
A17: 17
A18: 18
A19: 19
A20: 20
A21: 21
A22: 22
A23: 23
A24: 24
A25: 25
A26: 26
A27: 27
A28: 28
A29: 29
A30: 30
A31: 31
A32: 32
A33: 33
A34: 34
A35: 35
A36: 36
A37: 37
A38: 38
A39: 39
A40: 40
A41: 41
A42: 42
A43: 43
A44: 44
A45: 45
A46: 46
A47: 47
A48: 48
A49: 49
A50: 50
A51: 51
A52: 52
A53: 53
A54: 54
A55: 55
A56: 56
A57: 57
A58: 58
A59: 59
A60: 60
A61: 61
A62: 62
